Inv Transaction,Supplier Name,Headserv Name,Stratdir Name,Account Description, Redacted Personal Data ,Paid Date, Amount ,Non Recoverable VAT (Where Applicable),Merchant Category
5203404,A & E FURNITURE LTD T.A THE PAVILION,Adult Social Care,Director of People,Fixtures & Fittings Purchase,,01/07/2015, 699.00 ,,Furniture
5202683,BEN HALL TREE SURGEONS,Environmental Services,Director of Place,Engineers Works,,01/07/2015, 550.00 ,,Horticultural
5202966,A MULLANEY,Engineers Client,Director of Place,Licences,Business Payment,01/07/2015," 1,950.00 ",,Unclassifiable
5203046,HMCTS,Exchequer,Director of Governance and Resources,Court Fees,,01/07/2015, 500.00 ,,Non 3rd Party spend  
5201828,COOLSPIRIT LTD,Multiple Heads of Service,Multiple Strategic Directorates,Communications Equipment,,01/07/2015, 554.35 ,,Information Communication Technology
5203155, ,Adult Social Care,Director of People,Day Care Fees,Redacted Supplier,01/07/2015, 785.27 ,,Unclassifiable
5203389,CARE UK HOMECARE,Adult Social Care,Director of People,Homecare Fees,,01/07/2015," 34,443.96 ",,Social Community Care Supplies & Services
5203400,CARE UK HOMECARE,Adult Social Care,Director of People,Homecare Fees,,01/07/2015," 37,246.51 ",,Social Community Care Supplies & Services
5203313,MERIDIAN HEALTHCARE LTD,Adult Social Care,Director of People,Voluntary Organisations Fees,,01/07/2015," 21,358.00 ",,Social Community Care Supplies & Services
5203153, ,Adult Social Care,Director of People,Professional Consultancy Services,Redacted Supplier ,01/07/2015," 2,100.00 ",,Unclassifiable
5203202,MES LTD,Stronger Communities,Director of People,General Equipment Repair & Maintenance,,01/07/2015, 554.50 ,,Environmental Services
5203177,PATCHSAVE LIMITED,Multiple Heads of Service,Multiple Strategic Directorates,Communications Equipment,,01/07/2015, 700.00 ,,Information Communication Technology
5203111, ,Childrens Services,Director of People,Cash Grants,Redacted Supplier,01/07/2015, 500.00 ,,Unclassifiable
5196434,TAMESIDE HOSPITAL NHS FOUNDATION TRUST,Stronger Communities,Director of People,Purchase Books,,01/07/2015, 635.02 ,,Unclassified
5203410,TAMESIDE HOSPITAL NHS FOUNDATION TRUST,Public Health,Director of Public Health,Professional Services,,01/07/2015," 6,400.00 ",,Unclassified
5199459,TAMESIDE HOSPITAL NHS FOUNDATION TRUST,Governance,Director of Governance and Resources,Professional Medical Services,,01/07/2015," 4,472.00 ",,Unclassified
5199469,TAMESIDE HOSPITAL NHS FOUNDATION TRUST,Public Health,Director of Public Health,Professional Services,,01/07/2015, 710.00 ,,Unclassified
5201689,CENTRAL MANCHESTER UNIVERSITY HOSPITAL NHS FT,Public Health,Director of Public Health,Professional Services,,01/07/2015," 2,564.00 ",,Human Resources
5203171,PARITOR LTD,Education,Director of People,Professional Consultancy Services,,01/07/2015," 1,876.00 ",,Information Communication Technology
5200462,STOCKPORT NHS FOUNDATION TRUST,Public Health,Director of Public Health,Professional Services,,01/07/2015," 2,994.32 ",,Medical
5200276,STOCKPORT NHS FOUNDATION TRUST,Adult Social Care,Director of People,Agency Staff,,01/07/2015," 2,977.08 ",,Medical
5202221,TYNETEC,Adult Social Care,Director of People,It Equipment,,01/07/2015," 2,519.50 ",,Social Community Care
5201648,TUNSTALL HEALTHCARE (UK) LTD,Adult Social Care,Director of People,It Equipment,,01/07/2015, 723.00 ,,Social Community Care Supplies & Services
5203381,COMFORT CALL LIMITED,Adult Social Care,Director of People,Homecare Fees,,01/07/2015," 33,036.99 ",,Medical
5202788,PENNINE CARE IN PATIENT SERVS PRIORY,Education,Director of People,Voluntary Organisations Fees,,01/07/2015," 1,750.00 ",,Social Community Care
5203351,PULSE,Adult Social Care,Director of People,Homecare Fees,,01/07/2015," 2,684.32 ",,Unclassified
5202396,LIFELINE PROJECT LTD (PH),Public Health,Director of Public Health,Professional Services,,01/07/2015," 6,556.00 ",,Consultancy
5203373,TOBACCO FREE FUTURES,Public Health,Director of Public Health,Professional Services,,01/07/2015," 4,925.00 ",,Consultancy
5203325,POLLOCK LIFTS LTD,Housing,Director of Place,Improvement Grants - Final Mandatory,,01/07/2015," 8,834.00 ",,Unclassified
5203024,TAMESIDE 4 GOOD,Multiple Heads of Service,Multiple Strategic Directorates,Contributions, ,01/07/2015," 2,394.39 ",,Catering
5203457,CITY LIFT SERVICES (NW) LTD,Adult Social Care,Director of People,General Equipment Repair & Maintenance,,01/07/2015," 9,390.00 ",,"Works - Construction, Repair & Maintenance"
5202789,DOCUMENT AND DATA SHRED LTD,Multiple Heads of Service,Multiple Strategic Directorates,Waste Disposal Fees,,01/07/2015, 760.80 ,,Environmental Services
5203027,FAMILY SUPPORT CHARITY,Multiple Heads of Service,Multiple Strategic Directorates,Contributions,,01/07/2015," 2,394.35 ",,Charities and Voluntary Organisations
5199783,VIRGIN BLACKPOOL,Public Health,Director of Public Health,Professional Services,,01/07/2015," 1,311.00 ",,Consultancy
5203308,CW CONSULTING (UK) LTD,Development Growth & Investment,Director of Place,Professional Services,,01/07/2015," 7,150.00 ",,Unclassifiable
5203200,CLICKS TO APPS LTD,Digital Tameside,Director of Place,"Marketing, Publicity and Recruitment",,01/07/2015, 928.68 ,,Unclassifiable
5203616,JASON HEPPENSTALL,Stronger Communities,Director of People,Professional Services,Business Payment,01/07/2015, 700.00 ,,Education
5203617,JASON HEPPENSTALL,Stronger Communities,Director of People,Professional Services,Business Payment,01/07/2015," 2,500.00 ",,Education
5203077, ,Childrens Services,Director of People,Living Without Formal Support,Redacted Supplier,01/07/2015, 535.00 ,,Unclassifiable
5192761,DURBIN PLC,Public Health,Director of Public Health,Professional Medical Services,,01/07/2015, 669.76 ,,Unclassifiable
5192154,DURBIN PLC,Public Health,Director of Public Health,Professional Medical Services,,01/07/2015," 1,530.88 ",,Unclassifiable
5203020,CENTUM CONSTRUCTION SERVICES LTD,Engineers Client,Director of Place,Refurbishment Construction Costs,,01/07/2015," 4,200.21 ",,"Building,Const,Materials& Services"
5203123, ,Adult Social Care,Director of People,Contribution to Maintenance Fee Income,Redacted Supplier,01/07/2015, 701.80 ,,Unclassifiable
5203055, ,Adult Social Care,Director of People,Contribution to Maintenance Fee Income,Redacted Supplier,01/07/2015, 788.76 ,,Unclassifiable
5203025,ALZHEIMER'S SOCIETY NORTH WEST OFFICE,Multiple Heads of Service,Multiple Strategic Directorates,Contributions,,01/07/2015," 2,394.35 ",,Unclassifiable
5203026,ALEX WILLIAMS BELIEVE AND ACHIEVE TRUST,Multiple Heads of Service,Multiple Strategic Directorates,Contributions,,01/07/2015," 2,394.35 ",,Unclassifiable
5203030,STOKE ASSOCIATION,Multiple Heads of Service,Multiple Strategic Directorates,Contributions,,01/07/2015," 2,394.35 ",,Unclassifiable
5203028,SOPHIE'S TINY STEPS,Multiple Heads of Service,Multiple Strategic Directorates,Contributions,,01/07/2015," 2,394.35 ",,Unclassifiable
5203068, ,Adult Social Care,Director of People,Contribution to Maintenance Fee Income,Redacted Supplier,01/07/2015, 918.57 ,,Unclassifiable
5203124, ,Adult Social Care,Director of People,Contribution to Maintenance Fee Income,Redacted Supplier,01/07/2015, 552.87 ,,Unclassifiable
5203118, ,Adult Social Care,Director of People,Contribution to Maintenance Fee Income,Redacted Supplier,01/07/2015," 2,225.56 ",,Unclassifiable
5203060, ,Adult Social Care,Director of People,Contribution to Maintenance Fee Income,Redacted Supplier,01/07/2015, 916.68 ,,Unclassifiable
5203057, ,Adult Social Care,Director of People,Contribution to Maintenance Fee Income,Redacted Supplier,01/07/2015, 928.68 ,,Unclassifiable
5203195, ,Adult Social Care,Director of People,Contribution to Maintenance Fee Income,Redacted Supplier,01/07/2015, 550.53 ,,Unclassifiable
5203602,XMA LIMITED,Multiple Heads of Service,Multiple Strategic Directorates,Communications Equipment,,01/07/2015," 2,808.00 ",,Information Communication Technology
5203603,XMA LIMITED,Multiple Heads of Service,Multiple Strategic Directorates,Computer Hardware,,01/07/2015," 3,600.00 ",,Information Communication Technology
5203601,XMA LIMITED,Multiple Heads of Service,Multiple Strategic Directorates,Communications Equipment,,01/07/2015, 792.00 ,,Information Communication Technology
5203203,CLEAR SKIES SOFTWARE LTD,Environmental Services,Director of Place,Computer Software Maintenance Costs,,01/07/2015," 3,200.00 ",,Information Communication Technology
5203370,ROYAL MAIL GROUP PLC,Exchequer,Director of Governance and Resources,Postages,,01/07/2015," 31,904.53 ",,Mail Services
5202863,TAMESIDE LINK,Adult Social Care,Director of People,Voluntary Organisations Fees,,01/07/2015," 15,254.59 ",,Social Community Care Supplies & Services
5203282,CREATIVE SUPPORT LTD,Adult Social Care,Director of People,Homecare Fees,,01/07/2015," 15,126.50 ",,Social Community Care Supplies & Services
5203383,LAUREL BANK SUPPORT AT HOME,Adult Social Care,Director of People,Homecare Fees,,01/07/2015," 2,570.64 ",,Social Community Care Supplies & Services
5203334,UNIVERSITY OF SALFORD,Stronger Communities,Director of People,Contributions, ,01/07/2015," 23,512.50 ",,Unclassified
5203220,CASCADE MACHINERY SUPPLIES LTD,Environmental Services,Director of Place,General Materials,,01/07/2015, 880.00 ,,Vehicles
5203363,"TAMESIDE, OLDHAM AND GLOSSOP MIND",Adult Social Care,Director of People,Professional Services,,01/07/2015," 3,672.00 ",,Social Community Care Supplies & Services
5203176,STAFF CARE SERVICES,Adult Social Care,Director of People,Professional Consultancy Services,,01/07/2015," 1,350.00 ",,Human Resources
5203176,STAFF CARE SERVICES,Adult Social Care,Director of People,Staff Travel Costs,,01/07/2015, 57.12 ,,Human Resources
5203444,M G DOMESTIC,Adult Social Care,Director of People,Fixtures & Fittings Purchase,,01/07/2015, 549.99 ,,Domestic Goods
5203029,WILLOW WOOD HOSPICE,Multiple Heads of Service,Multiple Strategic Directorates,Contributions,,01/07/2015," 2,394.35 ",,Unclassified
5203391,BRIAN GLYNN & CO,Housing,Director of Place,Improvement Grants - Final Mandatory,,01/07/2015," 4,545.00 ",,"Works -  Construction, Repair & Maintenance"
5203407,BRIAN GLYNN & CO,Housing,Director of Place,Improvement Grants - Final Mandatory,,01/07/2015," 4,340.00 ",,"Works -  Construction, Repair & Maintenance"
5203168,P MCGUINNESS & CO LTD,Development Growth & Investment,Director of Place,Contractor Expenditure,,01/07/2015, 680.00 ,,"Works - Construction, Repair & Maintenance"
5203034,ANVIL MASTERS,Stronger Communities,Director of People,Security Equipment,,01/07/2015," 1,660.00 ",,Building Construction Materials
5203033,ANVIL MASTERS,Stronger Communities,Director of People,Security Equipment,,01/07/2015, 993.33 ,,Building Construction Materials
5203035,ANVIL MASTERS,Stronger Communities,Director of People,Security Equipment,,01/07/2015," 1,234.67 ",,Building Construction Materials
5203312,ROGER HANNAH & CO,Engineers Client,Director of Place,Building Maintenance,,01/07/2015," 1,760.00 ",,Legal Services
5203319,ROGER HANNAH & CO,Engineers Client,Director of Place,Building Maintenance,,01/07/2015," 2,384.00 ",,Legal Services
5203158,NIELSEN BOOK SERVICES LTD.,Stronger Communities,Director of People,Computer Software,,01/07/2015," 2,200.00 ",,Education
5203165,KEYSOFT SOLUTIONS LTD,Environmental Services,Director of Place,Engineers Works,,01/07/2015," 1,706.00 ",,Information Communication Technology
5203165,KEYSOFT SOLUTIONS LTD,Environmental Services,Director of Place,Licences,,01/07/2015," 3,813.40 ",,Information Communication Technology
5201702,THE PENNINE ACUTE HOSPITALS NHS TRUST,Public Health,Director of Public Health,Professional Services,,01/07/2015," 1,587.00 ",,Medical
5199536,THE PENNINE ACUTE HOSPITALS NHS TRUST,Public Health,Director of Public Health,Professional Services,,01/07/2015," 1,336.00 ",,Medical
5203251,BUSINESS IN THE COMMUNITY,Stronger Communities,Director of People,Professional Services,,01/07/2015," 3,000.00 ",,Financial Services
5203145,TAMESIDE ARTS LTD,Adult Social Care,Director of People,Professional Services,,01/07/2015," 1,071.00 ",,Leisure Services
5203763,BRENTWOOD MOSS NURSERIES,Environmental Services,Director of Place,General Materials,,02/07/2015," 4,036.43 ",,Horticultural
5203577,CARE UK HOMECARE,Adult Social Care,Director of People,Homecare Fees,,02/07/2015," 34,616.89 ",,Social Community Care Supplies & Services
3250515,F & G COMMERCIALS (OLDHAM) LIMITED,Environmental Services,Director of Place,General Materials,,02/07/2015, 651.41 ,,Vehicles
3250515,G B OILS TA CARLTON FUELS,Transport,Director of Place,Petrol Fuel,,02/07/2015," 2,406.50 ",,Transport
3250515,HI-Q TYRESERVICES,Environmental Services,Director of Place,Tyre Costs,,02/07/2015, 614.06 ,,Vehicles
3250515,TOLLAND PRECISION ENGINEERING LTD,Environmental Services,Director of Place,General Materials,,02/07/2015, 636.00 ,,"Works -  Construction, Repair & Maintenance"
5203181,LOCAL GOVERNMENT ASSOCIATION,Development Growth & Investment,Director of Place,Professional services,,02/07/2015," 2,010.36 ",,Unclassified
5203712,HARTTRON  LTD,Environmental Services,Director of Place,Security Equipment,,02/07/2015," 3,350.00 ",,"Works -  Construction, Repair & Maintenance"
5203682,VINCENT OBRIEN (CONSTRUCTION),Housing,Director of Place,Improvement Grants - Final Mandatory,,02/07/2015, 621.16 ,,"Works - Construction, Repair & Maintenance"
5203713,OLDHAM COUNCIL,Environmental Services,Director of Place,Professional Consultancy Services,,02/07/2015," 1,713.03 ",,Unclassified
5202312,TYNETEC,Adult Social Care,Director of People,It Equipment,,02/07/2015," 8,841.55 ",,Social Community Care
5203675,NORCOMM (UK) LTD,Multiple Heads of Service,Multiple Strategic Directorates,Communications Equipment,,02/07/2015," 1,632.41 ",,Information Communication Technology
5203109,PARAGON POS,Asset & Investment Partnership Management,Director of Place,Computer Software Maintenance Costs,,02/07/2015," 1,200.00 ",,Information Communication Technology
5203681,SYMOLOGY LIMITED,Environmental Services,Director of Place,Computer Software,,02/07/2015, 560.00 ,,Information Communication Technology
5203721,CITY LIFT SERVICES (NW) LTD,Adult Social Care,Director of People,General Equipment Repair & Maintenance,,02/07/2015, 730.00 ,,"Works - Construction, Repair & Maintenance"
5203428,IAN MCKERCHAR,Development Growth & Investment,Director of Place,Professional Consultancy Services,Business Payment,02/07/2015," 4,000.00 ",,Unclassifiable
5202899,ABLE CARE AND SUPPORT SERVICES LTD,Adult Social Care,Director of People,Homecare Fees,,02/07/2015," 1,716.54 ",,Social Community Care Supplies & Services
5203413,VIRGIN BLACKPOOL,Public Health,Director of Public Health,Professional services,,02/07/2015," 1,952.00 ",,Consultancy
5203770,CARE IN MIND RESIDENTIAL,Adult Social Care,Director of People,Residential Home Short Stay Fees,,02/07/2015," 2,524.33 ",,Social Community Care
5202974,REVOLVEMCR,Stronger Communities,Director of People,Professional Services,,02/07/2015, 960.00 ,,Unclassifiable
5203040,GROUNDWORK MSSTT,Asset & Investment Partnership Management,Director of Place,Building & Contents Insurance,,02/07/2015, 674.52 ,,Unclassifiable
5203040,GROUNDWORK MSSTT,Asset & Investment Partnership Management,Director of Place,Non-Authority Accommodation Rental,,02/07/2015," 5,784.49 ",,Unclassifiable
5203722,THE CARE TEAM LTD,Stronger Communities,Director of People,Professional Services,,02/07/2015," 1,200.00 ",,Unclassifiable
5203683,MR CHRIS LILLY,Environmental Services,Director of Place,General Materials,Business Payment,02/07/2015, 500.00 ,,Unclassifiable
5203661,TAMESIDE SPORTS TRUST,Adult Social Care,Director of People,Professional Services,,02/07/2015," 4,896.00 ",,Leisure Services
5197516,METRIC GROUP LTD,Environmental Services,Director of Place,Repairs & Maintenance Of Car Park Equipment,,02/07/2015, 689.81 ,,Traffic Management
5203659,"TAMESIDE, OLDHAM AND GLOSSOP MIND",Adult Social Care,Director of People,Professional Services,,02/07/2015," 1,224.00 ",,Social Community Care Supplies & Services
5202806,PLAYDALE PLAYGROUNDS LTD,Environmental Services,Director of Place,General Materials,,02/07/2015," 1,209.00 ",,Sports & Playground Equipment & Maintenance
5203032,ANVIL MASTERS,Multiple Heads of Service,Multiple Strategic Directorates,Fencing Works,,02/07/2015, 660.00 ,,Building Construction Materials
5203696,S & M BUILDERS TAMESIDE LTD,Environmental Services,Director of Place,Engineers -External,,02/07/2015," 3,110.00 ",,"Works - Construction, Repair & Maintenance"
5203484,CORONA ENERGY RETAIL 4 LIMITED,Asset & Investment Partnership Management,Director of Place,Gas,,02/07/2015, 935.19 ,,Utilities
5201750,ROTHWELL TEMPERANCE BAND,Stronger Communities,Director of People,Professional Entertainment Services,,02/07/2015, 750.00 ,,Leisure Services
5203715,ENCYCLOPAEDIA BRITANNICA (UK) LTD,Stronger Communities,Director of People,Purchase Books,,02/07/2015," 2,973.60 ",,Education
5203963,MARK HARLOW,Environmental Services,Director of Place,Hired Transport,Business Payment,06/07/2015, 880.00 ,,Transport
5203874,MARK HARLOW,Environmental Services,Director of Place,Hired Transport,Business Payment,06/07/2015," 1,540.00 ",,Transport
5203875,MARK HARLOW,Environmental Services,Director of Place,Hired Transport,Business Payment,06/07/2015, 530.00 ,,Transport
470621,AGGREGATE INDUSTRIES UK LIMITED,Environmental Services,Director of Place,General Materials,,06/07/2015," 6,629.78 ",,Highway Equipment & Materials
470621,AGGREGATE INDUSTRIES UK LIMITED,Environmental Services,Director of Place,Sub-contractor Services,,06/07/2015," 46,688.74 ",,Highway Equipment & Materials
470621,APSE,Environmental Services,Director of Place,Training Course Costs,,06/07/2015," 3,423.32 ",,Unclassified
470621,ARCO LIMITED,Civil Engineers,Director of Place,Debits Goods Received,,06/07/2015," 1,997.46 ",,Clothing
470621,ARCO LIMITED,Environmental Services,Director of Place,General Materials,,06/07/2015, 158.07 ,,Clothing
470621,ARCO LIMITED,Development Growth & Investment,Director of Place,General Materials,,06/07/2015, 60.00 ,,Clothing
470621,BENCHMARK BUILDING SUPPLIES LTD,Civil Engineers,Director of Place,Debits Goods Received,,06/07/2015," 1,437.55 ",,Building Construction Materials
470621,BENCHMARK BUILDING SUPPLIES LTD,Environmental Services,Director of Place,General Materials,,06/07/2015," 1,052.15 ",,Building Construction Materials
470621,EAGLE CIVIL ENGINEERING LTD,Environmental Services,Director of Place,Sub-contractor Services,,06/07/2015," 3,890.04 ",,Highway Equipment & Materials�
470621,JEWSON LTD,Environmental Services,Director of Place,General Materials,,12/08/2015," 8,422.00 ",,Building Construction Materials
470621,KENNY BROTHERS,Environmental Services,Director of Place,Sub-contractor Services,,06/07/2015," 5,417.96 ",,Non 3rd Party spend  
470621,M.C. & M.A. STEWART HAULAGE LTD,Environmental Services,Director of Place,General Materials,,06/07/2015," 1,225.00 ",,Horticultural
470621,MANCHESTER SAFETY  SERVICES LTD,Environmental Services,Director of Place,General Materials,,06/07/2015, 599.00 ,,Clothing
470621,MARWOOD ELECTRICAL CO,Civil Engineers,Director of Place,Debits Goods Received,,06/07/2015," 1,554.42 ",,Highway Equipment & Materials�
470621,PG FABRICATIONS,Environmental Services,Director of Place,Sub-contractor Services,,06/07/2015, 836.00 ,,"Works - Construction, Repair & Maintenance"
470621,PG FABRICATIONS,Multiple Heads of Service,Multiple Strategic Directorates,Sub-contractor Services,,06/07/2015,-50.16 ,,"Works - Construction, Repair & Maintenance"
470621,PREMIER WASTE (UK) LTD,Environmental Services,Director of Place,General Materials,,06/07/2015," 4,690.90 ",,Environmental Services
470621,STOCKPORT MBC,Engineers Client,Director of Place,General Materials,,06/07/2015, 67.54 ,,Unclassified
470621,STOCKPORT MBC,Environmental Services,Director of Place,General Materials,,06/07/2015," 3,204.27 ",,Unclassified
470621,TARMAC CENTRAL LIMITED,Civil Engineers,Director of Place,Debits Goods Received,,06/07/2015," 10,823.00 ",,Highway Equipment & Materials�
470621,TARMAC CENTRAL LIMITED,Environmental Services,Director of Place,General Materials,,06/07/2015," 10,126.91 ",,Highway Equipment & Materials�
470621,TARMAC CENTRAL LIMITED,Environmental Services,Director of Place,Stores Purchases,,06/07/2015, 206.55 ,,Highway Equipment & Materials�
470621,W & B FORMWORK CO 1990,Environmental Services,Director of Place,Sub-contractor Services,,12/08/2015," 1,700.00 ",,"Works - Construction, Repair & Maintenance"
470621,WOLSELEY UK LTD,Environmental Services,Director of Place,General Materials,,06/07/2015," 2,522.21 ",,Highway Equipment & Materials�
470621,ZODION LTD,Civil Engineers,Director of Place,Debits Goods Received,,06/07/2015, 527.00 ,,Highway Equipment & Materials�
470621,PHOENIX HSC (UK) LTD,Environmental Services,Director of Place,Training Course Costs,,06/07/2015," 1,075.50 ",,Unclassified
470621,SMITH BROS CAER CONAN WHOLESALE LTD,Civil Engineers,Director of Place,Debits Goods Received,,06/07/2015, 671.20 ,,Building Construction Materials
470621,STALYBRIDGE READYMIX LTD,Environmental Services,Director of Place,General Materials,,06/07/2015," 23,603.00 ",,Highway Equipment & Materials�
470621,INSTARMAC GROUP PLC,Civil Engineers,Director of Place,Debits Goods Received,,06/07/2015, 856.00 ,,Highway Equipment & Materials�
470621,P J SPENCER LTD,Environmental Services,Director of Place,Sub-contractor Services,,06/07/2015," 1,096.00 ",,"Works -  Construction, Repair & Maintenance"
470621,MERCURY RECYCLING LTD,Environmental Services,Director of Place,General Materials,,12/08/2015, 922.50 ,,Environmental Services
5202244,CARE UK HOMECARE,Adult Social Care,Director of People,Homecare Fees,,06/07/2015," 5,309.16 ",,Social Community Care Supplies & Services
5202941,DOMAIN CARE NORTH WEST LTD,Adult Social Care,Director of People,Homecare Fees,,06/07/2015, 799.50 ,,Social Community Care
5202939,DOMAIN CARE NORTH WEST LTD,Adult Social Care,Director of People,Homecare Fees,,06/07/2015," 1,584.74 ",,Social Community Care
5202940,DOMAIN CARE NORTH WEST LTD,Adult Social Care,Director of People,Homecare Fees,,06/07/2015," 2,140.00 ",,Social Community Care
5203950,DENTON LINKS,Education,Director of People,Transport Of Ola Pupils,,06/07/2015," 1,125.00 ",,Transport
5203949,DENTON LINKS,Education,Director of People,Transport Of Ola Pupils,,06/07/2015," 1,725.00 ",,Transport
5203948,DENTON LINKS,Education,Director of People,Transport Of Ola Pupils,,06/07/2015," 2,505.00 ",,Transport
5203905,MOSSLEY PRIVATE HIRE,Strategy & Early Intervention,Director of People,Hired Transport,,06/07/2015," 1,535.00 ",,Transport
5203850,MOSSLEY PRIVATE HIRE,Education,Director of People,Transport Of Pupils,,06/07/2015," 1,700.00 ",,Transport
5203904,MOSSLEY PRIVATE HIRE,Environmental Services,Director of Place,Hired Transport,,06/07/2015," 1,368.00 ",,Transport
5203903,MOSSLEY PRIVATE HIRE,Environmental Services,Director of Place,Hired Transport,,06/07/2015," 1,298.00 ",,Transport
5203906,MOSSLEY PRIVATE HIRE,Environmental Services,Director of Place,Hired Transport,,06/07/2015, 680.00 ,,Transport
5203853,MOSSLEY PRIVATE HIRE,Education,Director of People,Transport Of Pupils,,06/07/2015," 2,750.00 ",,Transport
5202920,WATTS GROUP PLC,Environmental Services,Director of Place,Building Maintenance,,06/07/2015, 660.00 ,,Consultancy
5202220,MONO ALARM INSTALLATIONS LTD.,Environmental Services,Director of Place,Computer Software Maintenance Costs,,06/07/2015, 604.00 ,,Facilities & Management Services
5203955,DAVID CROZIER,Education,Director of People,Transport Of Post 16 Pupils,Business Payment,06/07/2015," 1,920.00 ",,Unclassifiable
5203954,DAVID CROZIER,Education,Director of People,Transport Of Post 16 Pupils,Business Payment,06/07/2015," 1,920.00 ",,Unclassifiable
5203953,DAVID CROZIER,Education,Director of People,Transport Of Pupils,Business Payment,06/07/2015," 1,672.00 ",,Unclassifiable
5203952,DAVID CROZIER,Education,Director of People,Transport Of Pupils,Business Payment,06/07/2015," 1,452.00 ",,Unclassifiable
5203956,DAVID CROZIER,Education,Director of People,Transport Of Post 16 Pupils,Business Payment,06/07/2015," 2,345.00 ",,Unclassifiable
5203912,LIME TRAVEL,Environmental Services,Director of Place,Hired Transport,,06/07/2015," 1,760.00 ",,Human Resources
5203911,LIME TRAVEL,Education,Director of People,Transport Of Pupils,,06/07/2015," 1,547.00 ",,Human Resources
5203815,LIME TRAVEL,Education,Director of People,Transport Of Pupils,,06/07/2015," 2,002.00 ",,Human Resources
5203913,LIME TRAVEL,Strategy & Early Intervention,Director of People,Hired Transport,,06/07/2015," 3,006.50 ",,Human Resources
5203916,LIME TRAVEL,Education,Director of People,Transport Of Pupils,,06/07/2015," 1,547.00 ",,Human Resources
5203915,LIME TRAVEL,Education,Director of People,Transport Of Ola Pupils,,06/07/2015," 1,470.50 ",,Human Resources
5203914,LIME TRAVEL,Education,Director of People,Transport Of Pupils,,06/07/2015, 773.50 ,,Human Resources
5203866,LIME TRAVEL,Childrens Services,Director of People,Hired Transport,,06/07/2015, 800.00 ,,Human Resources
5203655,ROCOM,Multiple Heads of Service,Multiple Strategic Directorates,Communications Equipment,,06/07/2015," 12,250.00 ",,Information Communication Technology
5203269,COACTIVA ASPIREN LTD,Exchequer,Director of Governance and Resources,Subscriptions,,06/07/2015," 24,995.00 ",,Consultancy
5201519,FRONTIER MEDICAL PRODUCTS,Public Health,Director of Public Health,Local Enhanced Services,,06/07/2015," 2,355.95 ",,Consultancy
5203733,WILLIAMS WOODWARD LTD,Finance,Director of Governance and Resources,Professional Consultancy Services,,06/07/2015," 5,395.00 ",,Consultancy
5203728,WILLIAMS WOODWARD LTD,Finance,Director of Governance and Resources,Professional Consultancy Services,,06/07/2015," 7,470.00 ",,Consultancy
5203842, ,Adult Social Care,Director of People,Residential Home Short Stay Fees,Redacted Supplier,06/07/2015, 510.24 ,,Unclassifiable
5203274,STOCKPORT CP  SOCIETY,Adult Social Care,Director of People,Day Centre Fees,,06/07/2015," 1,341.00 ",,Social Community Care Supplies & Services
5203273,STOCKPORT CP  SOCIETY,Adult Social Care,Director of People,Day Centre Fees,,06/07/2015," 1,341.80 ",,Social Community Care Supplies & Services
5203605,XMA LIMITED,Digital Tameside,Director of Place,It Equipment,,06/07/2015," 21,060.00 ",,Information Communication Technology
5201016,DIRECT CARE (NORTH WEST) LTD,Adult Social Care,Director of People,Homecare Fees,,06/07/2015, 761.08 ,,Social Community Care Supplies & Services
5203812,MR JAMES TURLEY T/A R TURLEY PLUMBERS,Housing,Director of Place,Improvement Grants - Final Mandatory,Business Payment,06/07/2015," 3,880.00 ",,"Works - Construction, Repair & Maintenance"
5203811,MR JAMES TURLEY T/A R TURLEY PLUMBERS,Housing,Director of Place,Improvement Grants - Final Mandatory,Business Payment,06/07/2015," 3,880.00 ",,"Works - Construction, Repair & Maintenance"
5203321,MAKING SPACE,Adult Social Care,Director of People,Voluntary Organisations Fees,,06/07/2015," 20,735.75 ",,Social Community Care Supplies & Services
5203648,MAKING SPACE,Adult Social Care,Director of People,Voluntary Organisations Fees,,06/07/2015," 20,735.75 ",,Social Community Care Supplies & Services
460296,SIGN,Adult Social Care,Director of People,Residential Home Long Stay Fees,,06/07/2015," 4,878.51 ",,Social Community Care Supplies & Services
460296,HAMILTON HOUSE NURSING HOME,Adult Social Care,Director of People,Residential Home Long Stay Fees,,08/07/2015," 11,452.84 ",,Social Community Care Supplies & Services
5203364,NORTH WEST COMMUNITY  SERVICES (GTR M/CR) LTD,Adult Social Care,Director of People,Homecare Fees,,06/07/2015," 8,816.01 ",,Social Community Care Supplies & Services
5203259,NORTH WEST COMMUNITY  SERVICES (GTR M/CR) LTD,Adult Social Care,Director of People,Homecare Fees,,06/07/2015, 780.75 ,,Social Community Care Supplies & Services
5203261,NORTH WEST COMMUNITY  SERVICES (GTR M/CR) LTD,Adult Social Care,Director of People,Homecare Fees,,06/07/2015," 1,478.22 ",,Social Community Care Supplies & Services
5203961,RADIO CABS (ASHTON)LTD,Childrens Services,Director of People,Hired Transport,,06/07/2015," 1,200.00 ",,Transport
5203823,ROYALE MINICOACHES,Education,Director of People,Transport Of Pupils,,06/07/2015," 2,200.00 ",,Unclassified
5203820,PRISM MEDICAL UK (CARE FREE DIVISION),Housing,Director of Place,Improvement Grants - Final Mandatory,,06/07/2015," 2,197.48 ",,Social Community Care Supplies & Services
5203838, ,Adult Social Care,Director of People,Day Care Fees,Redacted Supplier,06/07/2015, 608.20 ,,Unclassifiable
5203957,GLENN CAWTHORN,Education,Director of People,Transport Of Pupils,Business Payment,06/07/2015," 1,003.00 ",,Transport
5203610,JOHN SLATTERY JOINER,Environmental Services,Director of Place,Building Works,,06/07/2015, 595.00 ,,"Works - Construction, Repair & Maintenance"
5203738,ABLE COMMUNITY CARE,Adult Social Care,Director of People,Homecare Fees,,06/07/2015," 1,580.00 ",,Social Community Care Supplies & Services
5204152,COOLSPIRIT LTD,Digital Tameside,Director of Place,Computer Hardware Maintenance Costs,,08/07/2015," 9,264.44 ",,Information Communication Technology
5203968,CALL A CAR (TAMESIDE) LTD,Asset & Investment Partnership Management,Director of Place,Hired Transport,,08/07/2015, 637.50 ,,Human Resources
5203227,MICROGRAPHIC EQUIPMENT SERVICES LTD,Stronger Communities,Director of People,General Equipment Repair & Maintenance,,08/07/2015, 554.50 ,,Facilities & Management Services
5204037,LIQUIDLOGIC LTD,Adult Social Care,Director of People,Computer Software,,08/07/2015," 10,837.50 ",,Information Communication Technology
5204036,LIQUIDLOGIC LTD,Adult Social Care,Director of People,Computer Software,,08/07/2015," 8,000.00 ",,Information Communication Technology
5204035,LIQUIDLOGIC LTD,Adult Social Care,Director of People,Computer Software,,08/07/2015," 25,996.00 ",,Information Communication Technology
5203902,MOSSLEY PRIVATE HIRE,Strategy & Early Intervention,Director of People,Hired Transport,,08/07/2015," 1,795.00 ",,Transport
5203925,DWP,Multiple Heads of Service,Multiple Strategic Directorates,Claims Settled,,08/07/2015, 615.00 ,,Unclassified
5203921,A & G BUILDING & JOINERY SERVICES LTD,Housing,Director of Place,Adaptations - Jobs <#500,,08/07/2015, 500.00 ,,"Works - Construction, Repair & Maintenance"
5204101,TYNETEC,Adult Social Care,Director of People,It Equipment,,08/07/2015," 2,185.20 ",,Social Community Care
5204103,POSITIVE STEPS OLDHAM,Strategy & Early Intervention,Director of People,Professional Services,,08/07/2015," 38,219.18 ",,Unclassified
5204055,ROCOM,Multiple Heads of Service,Multiple Strategic Directorates,Communications Equipment,,08/07/2015, 506.70 ,,Information Communication Technology
5203867,NORTHENDEN TRAVEL LTD,Strategy & Early Intervention,Director of People,Transport Of Pupils,,08/07/2015," 2,018.35 ",,Human Resources
5203241,NCER CIC,Childrens Services,Director of People,Subscriptions,,08/07/2015," 3,946.64 ",,Consultancy
5204131,CLOVERLEAF ADVOCACY 2000 LTD,Adult Social Care,Director of People,Professional Services,,08/07/2015," 12,408.30 ",,Social Community Care Supplies & Services
5204130,CLOVERLEAF ADVOCACY 2000 LTD,Adult Social Care,Director of People,Professional Services,,08/07/2015," 12,408.30 ",,Social Community Care Supplies & Services
5203993,COMMUNITY AND VOLUNTARY ACTION TAMESIDE,Stronger Communities,Director of People,Professional Services,,08/07/2015," 34,000.00 ",,Financial Services
5203884,BROADWAY BUILDING CONTRACTORS (OLDHAM) LTD,Housing,Director of Place,Improvement Grants - Final Mandatory,,08/07/2015, 605.47 ,,"Works - Construction, Repair & Maintenance"
5204031,UPDATA INFRASTRUCTURE UK LTD,Multiple Heads of Service,Multiple Strategic Directorates,Telephone Landline Costs,,08/07/2015, 825.51 ,,Consultancy
5204147,UPDATA INFRASTRUCTURE UK LTD,Multiple Heads of Service,Multiple Strategic Directorates,Telephone Landline Costs,,08/07/2015," 6,787.50 ",,Consultancy
5203331,UPDATA INFRASTRUCTURE UK LTD,Multiple Heads of Service,Multiple Strategic Directorates,Telephone Landline Costs,,08/07/2015," 22,659.00 ",,Consultancy
5202840,UPDATA INFRASTRUCTURE UK LTD,Multiple Heads of Service,Multiple Strategic Directorates,Communications Equipment,,08/07/2015," 2,160.00 ",,Consultancy
5203338,UPDATA INFRASTRUCTURE UK LTD,Multiple Heads of Service,Multiple Strategic Directorates,Telephone Landline Costs,,08/07/2015," 8,197.50 ",,Consultancy
5204030,UPDATA INFRASTRUCTURE UK LTD,Multiple Heads of Service,Multiple Strategic Directorates,Telephone Landline Costs,,08/07/2015, 568.89 ,,Consultancy
5203136,UPDATA INFRASTRUCTURE UK LTD,Multiple Heads of Service,Multiple Strategic Directorates,Telephone Landline Costs,,08/07/2015," 27,457.50 ",,Consultancy
5201586,UPDATA INFRASTRUCTURE UK LTD,Multiple Heads of Service,Multiple Strategic Directorates,Telephone Landline Costs,,08/07/2015, 521.90 ,,Consultancy
5204026,LIFELINE PROJECT LTD (PH),Public Health,Director of Public Health,Professional Services,,08/07/2015," 8,329.66 ",,Consultancy
5204118,MRL HEALTHCARE LIMITED,Adult Social Care,Director of People,Homecare Fees,,08/07/2015," 19,215.00 ",,Social Community Care Supplies & Services
5204041,MRL HEALTHCARE LIMITED,Adult Social Care,Director of People,Homecare Fees,,08/07/2015," 19,215.00 ",,Social Community Care Supplies & Services
5204063,CITY LIFT SERVICES (NW) LTD,Adult Social Care,Director of People,General Equipment Repair & Maintenance,,08/07/2015," 3,580.00 ",,"Works - Construction, Repair & Maintenance"
5203719,WILLIAMS WOODWARD LTD,Finance,Director of Governance and Resources,Professional Consultancy Services,,08/07/2015," 2,905.00 ",,Consultancy
5203717,WILLIAMS WOODWARD LTD,Finance,Director of Governance and Resources,Professional Consultancy Services,,08/07/2015," 3,735.00 ",,Consultancy
5204167,DR RICHARD SKELTON,Education,Director of People,Professional Services,Business Payment,08/07/2015," 3,400.00 ",,Medical
460303,HAMILTON HOUSE NURSING HOME,Adult Social Care,Director of People,Nursing Home Long Stay Fees,,08/07/2015," 5,354.14 ",,Social Community Care Supplies & Services
460303,APPLETON MANOR,Adult Social Care,Director of People,Nursing Home Long Stay Fees,,14/07/2015," 7,063.33 ",,Social Community Care
5203649,GALLAGHER BASSET,Corporate Costs,Corporate Costs,Professional Services,,08/07/2015," 2,805.00 ",,Financial Services
5203774,CARILLION SPECIALIST SERVICES LTD,Asset Management and Investment Partnership Management,Director of Place,External  Consultants,,08/07/2015," 1,920.00 ",,"Building,Const,Materials& Services"
5204061, ,Environmental Services,Director of Place,Grave Purchase/Maintenance Fee ,Redacted Supplier,08/07/2015, 990.00 ,,Unclassifiable
5204061, ,Environmental Services,Director of Place,Memorials & Foundation Fee ,Redacted Supplier,08/07/2015, 145.00 ,,Unclassifiable
5204073,CIPFA BUSINESS LIMITED,Finance,Director of Governance and Resources,Subscriptions,,08/07/2015, 678.00 ,,Financial Services
5204164,TROJAN LTD,Exchequer,Director of Governance and Resources,Training Course Costs,,08/07/2015, 937.70 ,,Unclassified
5203732,TAMESIDE SPORTS TRUST,Public Health,Director of Public Health,Leisure Services Contract Payment,,08/07/2015," 366,250.00 ",,Leisure Services
5203732,TAMESIDE SPORTS TRUST,Public Health,Director of Public Health,Professional Services,,08/07/2015," 100,000.00 ",,Leisure Services
5203332,TEACHING PERSONNEL LTD,Education,Director of People,Agency Staff,,08/07/2015, 800.00 ,,Human Resources
5202786,LUCY FAITHFULL FOUNDATION,Childrens Services,Director of People,Professional Consultancy Services,,08/07/2015," 1,344.30 ",,Unclassifiable
5196740,CREATIVE SUPPORT LTD,Adult Social Care,Director of People,Independent Sector Care Fees,,08/07/2015," 67,669.36 ",,Social Community Care Supplies & Services
5204139,ADDLESHAW GODDARD,Asset & Investment Partnership Management,Director of Place,Legal Fees,,08/07/2015," 2,760.33 ",,Unclassified
5204049,BERTRAM LIBRARY SERVICES,Stronger Communities,Director of People,Purchase Books,,08/07/2015," 4,286.74 ",,Education
5203073,BT PLC,Multiple Heads of Service,Multiple Strategic Directorates,Telephone Landline Costs,,08/07/2015," 2,644.17 ",,Information Communication Technology
5203707,ORANGE PCS,Digital Tameside,Director of Place,Mobile Telephones,,08/07/2015," 6,756.34 ",,Information Communication Technology
5203992,STALYBRIDGE READYMIX LTD,Environmental Services,Director of Place,General Equipment Purchase,,08/07/2015," 1,000.00 ",,Highway Equipment & Materials�
5203676,TAMESIDE COLLEGE,Education,Director of People,Training Course Costs,,08/07/2015," 1,200.00 ",,Unclassified
5204034,LANCASHIRE COUNTY COUNCIL,Stronger Communities,Director of People,Subscriptions,,08/07/2015," 1,737.00 ",,Unclassified
5203639,MCI DIVENTI LTD,Multiple Heads of Service,Multiple Strategic Directorates,Communications Equipment,,08/07/2015," 8,828.00 ",,Information Communication Technology
5204106,WESSEX LIFT CO. LIMITED,Housing,Director of Place,Improvement Grants - Final Mandatory,,08/07/2015," 9,226.00 ",,"Works - Construction, Repair & Maintenance"
5203660,TAMESIDE ARTS LTD,Adult Social Care,Director of People,Professional Services,,08/07/2015," 1,071.00 ",,Leisure Services
5204132,TOGETHER FOR MENTAL WELLBEING,Adult Social Care,Director of People,Professional Services,,08/07/2015," 7,418.25 ",,Social Community Care
5204133,TOGETHER FOR MENTAL WELLBEING,Adult Social Care,Director of People,Professional Services,,08/07/2015," 7,418.25 ",,Social Community Care
3250516,DENNIS EAGLE LTD,Environmental Services,Director of Place,General Materials,,09/07/2015, 154.71 ,,Vehicles
3250516,DENNIS EAGLE LTD,Transport,Director of Place,Debits Goods Received,,09/07/2015," 1,218.12 ",,Vehicles
3250516,FREIGHT TRANSPORT ASSOCIATION,Environmental Services,Director of Place,Vehicle Inspection/Testing Costs,,09/07/2015, 511.50 ,,Vehicles
3250516,JOHNSTON SWEEPERS LTD,Environmental Services,Director of Place,Consumable Materials,,09/07/2015, 6.53 ,,Environmental Services
3250516,JOHNSTON SWEEPERS LTD,Environmental Services,Director of Place,General Materials,,09/07/2015," 1,297.85 ",,Environmental Services
3250516,M T KAILL(PLANT HIRE)LTD,Environmental Services,Director of Place,Additional Hire,,09/07/2015," 1,668.00 ",,Vehicles
3250516,M T KAILL(PLANT HIRE)LTD,Environmental Services,Director of Place,Workshop Recharges including Misuse & Damage Costs,,09/07/2015, 50.00 ,,Vehicles
3250516,SHB HIRE LTD,Environmental Services,Director of Place,Core Hire,,09/07/2015," 10,313.31 ",,Vehicles
3250516,SOMERS TOTALKARE LTD,Environmental Services,Director of Place,General Equipment Repair & Maintenance,,09/07/2015," 1,728.00 ",,Unclassified
3250516,DAWSON RENTALS BUS AND COACH LTD,Environmental Services,Director of Place,Core Hire,,09/07/2015," 1,499.11 ",,Transport
5204253,TRINITY COLLEGE LONDON,Stronger Communities,Director of People,Professional Entertainment Services,,09/07/2015, 960.00 ,,Non 3rd Party spend  
5203974,GLM ACCESSIBLE TRANSPORT,Education,Director of People,Transport Of Pupils, ,09/07/2015," 2,332.00 ",,Transport
5203965,GLM ACCESSIBLE TRANSPORT,Education,Director of People,Transport Of Post 16 Pupils, ,09/07/2015," 1,760.00 ",,Transport
5203021,ASHTON CHURCH OF THE NAZARENE,Corporate Costs,Corporate Costs,Building Works,,09/07/2015," 10,000.00 ",,Non 3rd Party spend  
5203628,NHS TAMESIDE AND GLOSSOP CCG,Adult Social Care,Director of People,Professional Services,,09/07/2015," 36,489.00 ",,Medical
5204351,DEFENSIVE DRIVER TRAINING LTD,Environmental Services,Director of Place,Training Course Costs,,09/07/2015, 678.75 ,,Human Resources
5204272,MATTHEWS & GOODMAN LLP,Multiple Heads of Service,Multiple Strategic Directorates,Building Maintenance,,09/07/2015," 3,140.00 ",,Consultancy
5203995,COMMUNITY AND VOLUNTARY ACTION TAMESIDE,Stronger Communities,Director of People,Professional Services,,09/07/2015," 27,693.00 ",,Financial Services
5203945,TARGET ESOLUTIONS LTD,Exchequer,Director of Governance and Resources,Professional Consultancy Services,,09/07/2015," 15,507.00 ",,Unclassifiable
5202578,APPLIED PSYCHOLOGIES,Education,Director of People,Professional Services,,09/07/2015," 2,800.00 ",,Education
5204373,R S & P HARRISON PROPERTY,Asset & Investment Partnership Management,Director of Place,Non-Authority Accommodation Rental,,09/07/2015," 1,666.66 ",,Unclassifiable
5204374,R S & P HARRISON PROPERTY,Asset & Investment Partnership Management,Director of Place,Non-Authority Accommodation Rental,,09/07/2015," 1,666.66 ",,Unclassifiable
5204372,R S & P HARRISON PROPERTY,Asset & Investment Partnership Management,Director of Place,Non-Authority Accommodation Rental,,09/07/2015," 1,666.66 ",,Unclassifiable
5204370,R S & P HARRISON PROPERTY,Asset & Investment Partnership Management,Director of Place,Non-Authority Accommodation Rental,,09/07/2015," 1,666.66 ",,Unclassifiable
5203844,W A MEADOWCROFT,Education,Director of People,Transport Of Pupils,Business Payment,09/07/2015," 1,222.50 ",,Unclassifiable
5203962,W A MEADOWCROFT,Environmental Services,Director of Place,Hired Transport,Business Payment,09/07/2015," 1,760.00 ",,Unclassifiable
5203846,MR JOHN DELANEY,Education,Director of People,Transport Of Post 16 Pupils,Business Payment,09/07/2015," 1,800.00 ",,Unclassified
5203845,MR JOHN DELANEY,Education,Director of People,Transport Of Pupils,Business Payment,09/07/2015," 2,200.00 ",,Unclassified
5203907,MR JOHN DELANEY,Environmental Services,Director of Place,Hired Transport,Business Payment,09/07/2015," 1,870.00 ",,Unclassified
5203848,MR JOHN DELANEY,Education,Director of People,Transport Of Pupils,Business Payment,09/07/2015," 1,530.00 ",,Unclassified
5203847,MR JOHN DELANEY,Education,Director of People,Transport Of Pupils,Business Payment,09/07/2015," 2,200.00 ",,Unclassified
5203936,G M GREEN,Education,Director of People,Transport Of Pupils,Business Payment,09/07/2015," 1,190.00 ",,Social Community Care Supplies & Services
5203958,B MORRELL,Environmental Services,Director of Place,Hired Transport,Business Payment,09/07/2015," 1,136.25 ",,Social Community Care
5203821,B MORRELL,Education,Director of People,Transport Of Pupils,Business Payment,09/07/2015," 2,200.00 ",,Social Community Care
5199301,GREATER MANCHESTER COMBINED AUTHORITY,Environmental Services,Director of Place,Passenger Transport Levy,,09/07/2015," 1,585,400.00 ",,Unclassified
5196802,TAMESIDE SPORTS TRUST,Environmental Services,Director of Place,Contributions,,09/07/2015," 5,680.00 ",,Leisure Services
5203814,J & R TAXIS LTD,Environmental Services,Director of Place,Hired Transport,,09/07/2015," 2,314.00 ",,Transport
5204281,RADIO CABS (ASHTON)LTD,Childrens Services,Director of People,Staff Travel Costs,,09/07/2015, 567.40 ,,Transport
5204236,RADIO CABS (ASHTON)LTD,Education,Director of People,Transport Of Pupils,,09/07/2015," 1,009.20 ",,Transport
5204309,RADIO CABS (ASHTON)LTD,Education,Director of People,Transport Of Pupils,,09/07/2015," 1,410.00 ",,Transport
5204234,RADIO CABS (ASHTON)LTD,Education,Director of People,Transport Of Pupils,,09/07/2015," 1,410.00 ",,Transport
5204307,RADIO CABS (ASHTON)LTD,Education,Director of People,Transport Of Pupils,,09/07/2015," 1,725.00 ",,Transport
5204245,RADIO CABS (ASHTON)LTD,Education,Director of People,Transport Of Pupils,,09/07/2015," 1,410.00 ",,Transport
5204231,RADIO CABS (ASHTON)LTD,Childrens Services,Director of People,Staff Travel Costs,,09/07/2015, 644.00 ,,Transport
5204246,RADIO CABS (ASHTON)LTD,Education,Director of People,Transport Of Post 16 Pupils,,09/07/2015," 1,259.80 ",,Transport
5204238,RADIO CABS (ASHTON)LTD,Education,Director of People,Transport Of Pupils,,09/07/2015, 774.00 ,,Transport
5204314,RADIO CABS (ASHTON)LTD,Education,Director of People,Transport Of Post 16 Pupils,,09/07/2015," 1,246.50 ",,Transport
5204243,RADIO CABS (ASHTON)LTD,Environmental Services,Director of Place,Hired Transport,,09/07/2015, 609.00 ,,Transport
5204299,RADIO CABS (ASHTON)LTD,Education,Director of People,Transport Of Ola Pupils,,09/07/2015," 1,539.00 ",,Transport
5204235,RADIO CABS (ASHTON)LTD,Education,Director of People,Transport Of Pupils,,09/07/2015," 1,620.00 ",,Transport
5204233,RADIO CABS (ASHTON)LTD,Education,Director of People,Transport Of Pupils,,09/07/2015," 1,200.00 ",,Transport
5204302,RADIO CABS (ASHTON)LTD,Education,Director of People,Transport Of Ola Pupils,,09/07/2015, 864.00 ,,Transport
5204304,RADIO CABS (ASHTON)LTD,Education,Director of People,Transport Of Ola Pupils,,09/07/2015," 1,149.00 ",,Transport
5204203,STAMFORD CARS UK LTD,Education,Director of People,Transport Of Pupils,,09/07/2015," 1,782.00 ",,Transport
5204221,STAMFORD CARS UK LTD,Education,Director of People,Transport Of Ola Pupils,,09/07/2015," 1,727.00 ",,Transport
5204206,STAMFORD CARS UK LTD,Education,Director of People,Transport Of Pupils,,09/07/2015," 1,782.00 ",,Transport
5204207,STAMFORD CARS UK LTD,Education,Director of People,Transport Of Ola Pupils,,09/07/2015," 2,073.50 ",,Transport
5204214,STAMFORD CARS UK LTD,Education,Director of People,Transport Of Post 16 Pupils,,09/07/2015, 990.00 ,,Transport
5204209,STAMFORD CARS UK LTD,Education,Director of People,Transport Of Pupils,,09/07/2015," 1,452.00 ",,Transport
5204212,STAMFORD CARS UK LTD,Education,Director of People,Transport Of Ola Pupils,,09/07/2015," 1,859.00 ",,Transport
5204204,STAMFORD CARS UK LTD,Education,Director of People,Transport Of Ola Pupils,,09/07/2015," 1,815.00 ",,Transport
5204208,STAMFORD CARS UK LTD,Education,Director of People,Transport Of Post 16 Pupils,,09/07/2015, 550.00 ,,Transport
5204187,STAMFORD CARS UK LTD,Education,Director of People,Transport Of Pupils,,09/07/2015," 1,194.25 ",,Transport
5204213,STAMFORD CARS UK LTD,Education,Director of People,Transport Of Pupils,,09/07/2015," 1,071.00 ",,Transport
5204201,STAMFORD CARS UK LTD,Education,Director of People,Transport Of Pupils,,09/07/2015," 1,738.00 ",,Transport
5204211,STAMFORD CARS UK LTD,Education,Director of People,Transport Of Post 16 Pupils,,09/07/2015, 840.00 ,,Transport
5204199,STAMFORD CARS UK LTD,Education,Director of People,Transport Of Pupils,,09/07/2015," 1,194.25 ",,Transport
5204220,STAMFORD CARS UK LTD,Education,Director of People,Transport Of Ola Pupils,,09/07/2015," 3,168.00 ",,Transport
5204216,STAMFORD CARS UK LTD,Education,Director of People,Transport Of Ola Pupils,,09/07/2015," 2,018.50 ",,Transport
5204210,STAMFORD CARS UK LTD,Education,Director of People,Transport Of Pupils,,09/07/2015, 807.50 ,,Transport
5204215,STAMFORD CARS UK LTD,Education,Director of People,Transport Of Ola Pupils,,09/07/2015," 2,255.00 ",,Transport
5204217,STAMFORD CARS UK LTD,Education,Director of People,Transport Of Ola Pupils,,09/07/2015," 1,963.50 ",,Transport
5204200,STAMFORD CARS UK LTD,Education,Director of People,Transport Of Pupils,,09/07/2015," 1,782.00 ",,Transport
5204222,STAMFORD CARS UK LTD,Education,Director of People,Transport Of Ola Pupils,,09/07/2015," 2,720.00 ",,Transport
5204202,STAMFORD CARS UK LTD,Education,Director of People,Transport Of Pupils,,09/07/2015," 1,307.00 ",,Transport
5204205,STAMFORD CARS UK LTD,Education,Director of People,Transport Of Pupils,,09/07/2015," 1,452.00 ",,Transport
5204178,K P DODD CONSTRUCTION LTD,Housing,Director of Place,Improvement Grants - Final Mandatory,,09/07/2015," 3,635.00 ",,"Works - Construction, Repair & Maintenance"
5204188,MOSSLEY BAND,Stronger Communities,Director of People,Professional Entertainment Services,,14/07/2015, 750.00 ,,Leisure Services
5204418,ALLIANCE DISPOSABLES LTD,Adult Social Care,Director of People,Cleaning Materials,,14/07/2015, 628.00 ,,Cleaning & Janitorial
470622,ABACUS LIGHTING LTD,Civil Engineers,Director of Place,Debits Goods Received,,14/07/2015," 9,154.60 ",,Highway Equipment & Materials�
470622,AGGREGATE INDUSTRIES UK LIMITED,Environmental Services,Director of Place,General Materials,,14/07/2015," 6,226.52 ",,Highway Equipment & Materials
470622,AMBERON LTD,Environmental Services,Director of Place,Additional Hire,,14/07/2015, 687.43 ,,Highway Equipment & Materials
470622,ARCO LIMITED,Civil Engineers,Director of Place,Debits Goods Received,,14/07/2015," 1,238.60 ",,Clothing
470622,ARCO LIMITED,Environmental Services,Director of Place,General Materials,,14/07/2015, 900.10 ,,Clothing
470622,BENCHMARK BUILDING SUPPLIES LTD,Civil Engineers,Director of Place,Debits Goods Received,,14/07/2015," 1,198.00 ",,Building Construction Materials
470622,BENCHMARK BUILDING SUPPLIES LTD,Environmental Services,Director of Place,General Materials,,14/07/2015, 56.78 ,,Building Construction Materials
470622,EAGLE CIVIL ENGINEERING LTD,Environmental Services,Director of Place,Sub-contractor Services,,14/07/2015," 62,840.65 ",,Highway Equipment & Materials�
470622,P P O'CONNOR,Environmental Services,Director of Place,Sub-contractor Services,Business Payment,14/07/2015," 46,796.21 ",,Public Bodies
470622,P P O'CONNOR,Multiple Heads of Service,Multiple Strategic Directorates,Tax Retained Sub Contractors,Business Payment,14/07/2015,"-1,665.10 ",,Public Bodies
470622,SECURETASK SECURITY LTD,Environmental Services,Director of Place,Sub-contractor Services,,14/07/2015," 4,466.14 ",,Facilities & Management Services
470622,STOCKPORT MBC,Environmental Services,Director of Place,Hospitality,,14/07/2015," 1,040.00 ",,Unclassified
470622,WOLSELEY UK LTD,Civil Engineers,Director of Place,Debits Goods Received,,14/07/2015, 786.98 ,,Highway Equipment & Materials�
470622,WOLSELEY UK LTD,Environmental Services,Director of Place,General Materials,,14/07/2015, 537.02 ,,Highway Equipment & Materials�
470622,STALYBRIDGE READYMIX LTD,Environmental Services,Director of Place,General Materials,,14/07/2015," 11,410.40 ",,Highway Equipment & Materials�
470622,SEDDONS (PLANT&ENGINEER) LTD,Environmental Services,Director of Place,General Materials,,14/07/2015," 1,407.00 ",,"Works - Construction, Repair & Maintenance"
470622,HUGH LOGAN ENGINEERING,Civil Engineers,Director of Place,Debits Goods Received,,14/07/2015," 2,644.00 ",,Highway Equipment & Materials�
470622,HUGH LOGAN ENGINEERING,Environmental Services,Director of Place,General Materials,,14/07/2015, 50.00 ,,Highway Equipment & Materials�
470622,VIRIDOR,Environmental Services,Director of Place,Hospitality,,14/07/2015," 46,300.48 ",,Environmental Services
470622,ENVIRONMENT AGENCY,Environmental Services,Director of Place,Hospitality,,14/07/2015," 4,130.00 ",,Environmental Services
470622,FORMWORK DIRECT INTERNATIONAL,Environmental Services,Director of Place,Additional Hire,,14/07/2015, 787.99 ,,Unclassifiable
470622,BRAMHALL SURFACING LTD,Environmental Services,Director of Place,Sub-contractor Services,,14/07/2015," 31,970.95 ",,"Works - Construction, Repair & Maintenance"
470622,HSS HIRE SERVICE GROUP  PLC,Environmental Services,Director of Place,Additional Hire,,14/07/2015, 131.50 ,,Vehicles
470622,HSS HIRE SERVICE GROUP  PLC,Environmental Services,Director of Place,General Materials,,14/07/2015," 3,120.00 ",,Vehicles
470622,CHALLENGER SITE SERVICES,Environmental Services,Director of Place,Additional Hire,,14/07/2015, 700.00 ,,Facilities & Management Services
470622,ACORN LIGHTING SERVICES LTD,Environmental Services,Director of Place,Sub-contractor Services,,14/07/2015," 22,652.10 ",,Highway Equipment & Materials�
470622,HEALTH AND SAFETY LABORATORY,Environmental Services,Director of Place,Training Course Costs,,17/08/2015, 650.00 ,,Environmental Services
5204698,CARE UK HOMECARE,Adult Social Care,Director of People,Homecare Fees,,14/07/2015," 34,954.22 ",,Social Community Care Supplies & Services
5204407,TRINITY COLLEGE LONDON,Stronger Communities,Director of People,Professional Entertainment Services,,14/07/2015, 660.00 ,,Non 3rd Party spend  
5204750,B&E CONSULTANTS LTD,Public Health,Director of Public Health,Professional Services,,14/07/2015," 1,475.00 ",,Consultancy
5202270,VILLAGE URBAN RESORTS,Education,Director of People,Room Hire,,14/07/2015, 661.04 ,,Human Resources
5204082,GBM DIGITAL TECHNOLOGIESLIMITED,Governance,Director of Governance and Resources,Printing And Stationery,,14/07/2015," 1,420.00 ",,Information Communication Technology
5204180,TRANSPORT FOR GREATER MANCHESTER,Engineers Client,Director of Place,Traffic Signals,,14/07/2015," 3,182.63 ",,Transport
5204331,CACI LTD,Childrens Services,Director of People,Computer Software Maintenance Costs,,14/07/2015," 15,583.65 ",,Information Communication Technology
5204413,MAGIQUE GALILEO SOFTWARD LTD,Finance,Director of Governance and Resources,Computer Hardware Maintenance Costs,,14/07/2015," 2,400.00 ",,Information Communication Technology
5204508,FRIENDS OF OXFORD PARK,Stronger Communities,Director of People,Room Hire,,14/07/2015, 910.00 ,,Human Resources
5204414,TYNETEC,Adult Social Care,Director of People,It Equipment,,14/07/2015," 5,890.00 ",,Social Community Care
5204616,NORCOMM (UK) LTD,Multiple Heads of Service,Multiple Strategic Directorates,Communications Equipment,,14/07/2015," 1,633.42 ",,Information Communication Technology
5204556,PERSON CENTRED CARE SERVICES LIMITED,Adult Social Care,Director of People,Homecare Fees,,14/07/2015," 1,767.52 ",,Medical
5204839,BALLET THEATRE UK,Stronger Communities,Director of People,Professional Entertainment Services,,14/07/2015, 828.75 ,,Leisure Services
5204463,MATTHEWS & GOODMAN LLP,Asset & Investment Partnership Management,Director of Place,Building Maintenance,,14/07/2015," 1,295.00 ",,Consultancy
5204800,MATTHEWS & GOODMAN LLP,Asset & Investment Partnership Management,Director of Place,Building Maintenance,,14/07/2015," 1,255.40 ",,Consultancy
5204783,MATTHEWS & GOODMAN LLP,Tameside Investment Partnership,Director of Place,Professional Services,,14/07/2015, 950.00 ,,Consultancy
5204511,HANDICARE LIMITED,Housing,Director of Place,Improvement Grants - Final Mandatory,,14/07/2015," 3,750.00 ",,Social Community Care
5204811,THE GUINNESS PARTNERSHIP LTD,Adult Social Care,Director of People,Non-Authority Accommodation Rental,,14/07/2015," 1,221.48 ",,Housing Management
5204812,THE GUINNESS PARTNERSHIP LTD,Adult Social Care,Director of People,Non-Authority Accommodation Rental,,14/07/2015," 4,066.40 ",,Housing Management
5204619,FACILITY SOLUTIONS NORTHWEST,Governance,Director of Governance and Resources,Security Services,,14/07/2015, 840.00 ,,Public Bodies
5204836,POLLOCK LIFTS LTD,Housing,Director of Place,Improvement Grants - Final Mandatory,,14/07/2015," 8,834.00 ",,Unclassified
5204763, ,Adult Social Care,Director of People,Residential Home Short Stay Fees,Redacted Supplier,14/07/2015, 595.28 ,,Unclassifiable
5204165,HMS DECORATIVE SURFACING LTD,Engineers Client,Director of Place,Road Marking Works,,14/07/2015," 9,201.62 ",,Building Construction Materials
5204917,LEGGETT PSYCHOLOGY LTD,Education,Director of People,Professional Services,,14/07/2015," 1,600.00 ",,Education
5203849, ,Childrens Services,Director of People,Foster Carer Agency Fees,Redacted Supplier,14/07/2015," 1,986.00 ",,Unclassifiable
5204449,PAD CONSULTANCY AND TRAINING LTD,Education,Director of People,Training Course Costs,,14/07/2015, 550.00 ,,Consultancy
5204639,BIG LOCAL,Childrens Services,Director of People,Planning Fees,,14/07/2015," 3,458.83 ",,Unclassifiable
5204639,BIG LOCAL,Public Health,Director of Public Health,Supporting People Gross Contract,,14/07/2015," 13,176.25 ",,Unclassifiable
5204639,BIG LOCAL,Stronger Communities,Director of People,Supporting People Gross Contract,,14/07/2015," 25,599.75 ",,Unclassifiable
5204635,BIG LOCAL,Adult Social Care,Director of People,Non-Authority Accommodation Rental,,14/07/2015," 3,972.75 ",,Unclassifiable
5204894,BIG LOCAL,Asset & Investment Partnership Management,Director of Place,Non-Authority Accommodation Rental,,14/07/2015," 1,004.16 ",,Unclassifiable
5204796, ,Adult Social Care,Director of People,Contribution to Maintenance Fee Income,Redacted Supplier,14/07/2015, 637.39 ,,Unclassifiable
5204758, ,Adult Social Care,Director of People,Contribution to Maintenance Fee Income,Redacted Supplier,14/07/2015, 543.57 ,,Unclassifiable
5204819, ,Adult Social Care,Director of People,Contribution to Maintenance Fee Income,Redacted Supplier,14/07/2015," 1,018.87 ",,Unclassifiable
5204654, ,Environmental Services,Director of Place,Interment Fee ,Redacted Supplier,14/07/2015, 825.00 ,,Unclassifiable
5204699,LAUREL BANK RESIDENTIAL CARE HOME LTD,Adult Social Care,Director of People,Homecare Fees,,14/07/2015," 2,297.22 ",,Social Community Care Supplies & Services
5204747,DIRECT CARE (NORTH WEST) LTD,Adult Social Care,Director of People,Homecare Fees,,14/07/2015, 597.86 ,,Social Community Care Supplies & Services
5204855,BROXAP LIMITED,Environmental Services,Director of Place,General Materials,,14/07/2015, 555.00 ,,Highway Equipment & Materials�
5204368,ROYAL MAIL GROUP PLC,Governance,Director of Governance and Resources,Postages,,14/07/2015," 3,939.98 ",,Mail Services
5204380,ROYAL MAIL GROUP PLC,Governance,Director of Governance and Resources,Postages,,14/07/2015," 3,899.00 ",,Mail Services
5204726,ROYAL MAIL GROUP PLC,Exchequer,Director of Governance and Resources,Postages,,14/07/2015," 1,953.74 ",,Mail Services
5204729,ROYAL MAIL GROUP PLC,Exchequer,Director of Governance and Resources,Postages,,14/07/2015," 12,575.51 ",,Mail Services
5202752,TAMESIDE SPORTS TRUST,Strategy & Early Intervention,Director of People,"Activity (Materials, Trips)",,14/07/2015," 1,920.00 ",,Leisure Services
5202771,TAMESIDE SPORTS TRUST,Strategy & Early Intervention,Director of People,"Activity (Materials, Trips)",,14/07/2015, 946.50 ,,Leisure Services
5204561,LAUREL BANK SUPPORT AT HOME,Adult Social Care,Director of People,Homecare Fees,,14/07/2015," 2,282.23 ",,Social Community Care Supplies & Services
5204426,ULVERSCROFT LARGE PRINT  BOOKS LTD,Stronger Communities,Director of People,Purchase Books,,14/07/2015," 1,116.40 ",,Education
5204170,BT PLC,Multiple Heads of Service,Multiple Strategic Directorates,Telephone Landline Costs,,14/07/2015," 14,182.70 ",,Information Communication Technology
5204172,BT PLC,Multiple Heads of Service,Multiple Strategic Directorates,Telephone Landline Costs,,14/07/2015," 2,644.17 ",,Information Communication Technology
5204586,RADIO CABS (ASHTON)LTD,Environmental Services,Director of Place,Hired Transport,,14/07/2015, 864.80 ,,Transport
5204557,"TAMESIDE, OLDHAM AND GLOSSOP MIND",Adult Social Care,Director of People,Professional Services,,14/07/2015," 2,448.00 ",,Social Community Care Supplies & Services
5204591,M G DOMESTIC,Adult Social Care,Director of People,Fixtures & Fittings Purchase,,14/07/2015, 514.99 ,,Domestic Goods
5204579,NEW CHARTER HOUSING TRUST GROUP,Stronger Communities,Director of People,Professional Medical Services,,14/07/2015," 11,250.00 ",,Social Community Care Supplies & Services
5203379,PLAYDALE PLAYGROUNDS LTD,Environmental Services,Director of Place,General Materials,,14/07/2015," 1,634.00 ",,Sports & Playground Equipment & Maintenance
5204588,JACKSON & TAYLOR LTD,Housing,Director of Place,Improvement Grants - Final Mandatory,,14/07/2015," 6,560.00 ",,"Works -  Construction, Repair & Maintenance"
5202913,JAMES BUTTON & CO SOLICITORS,Environmental Services,Director of Place,Subscriptions,,14/07/2015, 625.00 ,,Legal Services
5204547,TAMESIDE TRAINING CONSORTIUM,Governance,Director of Governance and Resources,Training Course Costs,,14/07/2015, 560.00 ,,Human Resources
5204479,FORBES SOLICITORS,Multiple Heads of Service,Multiple Strategic Directorates,Claims Settled,,14/07/2015, 943.00 ,,Legal Services
5204827,KIELEY BROS LTD,Engineers Client,Director of Place,Road Marking Works,,14/07/2015," 262,978.64 ",,Highway Equipment & Materials�
5204546,AUTUMN (UK)  LTD,Housing,Director of Place,Improvement Grants - Final Mandatory,,14/07/2015," 3,932.93 ",,Social Community Care Supplies & Services
5202954,MICRO LIBRARIAN SYSTEMS LIMITED,Education,Director of People,Licences,,14/07/2015, 565.00 ,,Information Communication Technology
5204505,TOUGH FURNITURE LTD,Childrens Services,Director of People,Other Accomodation Related Costs,,14/07/2015, 810.00 ,,Furniture
5205164,ANDREW MOORE,Childrens Services,Director of People,Legal Fees,Business Payment,15/07/2015," 3,790.00 ",,Legal Services
5205155,ACCENT,Stronger Communities,Director of People,Supporting People Gross Contract,,16/07/2015," 2,162.25 ",,Housing Management
5205151,ACCENT,Stronger Communities,Director of People,Supporting People Gross Contract,,16/07/2015," 2,138.25 ",,Housing Management
5204048,PAYPARTNERS LTD (MONTHLY),Adult Social Care,Director of People,Sub-contractor Services,,16/07/2015," 9,000.00 ",,Social Community Care Supplies & Services
5204862,EVERGLADES NURSERIES LTD,Environmental Services,Director of Place,General Materials,,16/07/2015," 5,179.00 ",,Horticultural
5204669,DOMAIN CARE NORTH WEST LTD,Adult Social Care,Director of People,Homecare Fees,,16/07/2015, 753.63 ,,Social Community Care
5204668,DOMAIN CARE NORTH WEST LTD,Adult Social Care,Director of People,Homecare Fees,,16/07/2015, 799.50 ,,Social Community Care
5204667,DOMAIN CARE NORTH WEST LTD,Adult Social Care,Director of People,Homecare Fees,,16/07/2015," 2,140.00 ",,Social Community Care
5204666,DOMAIN CARE NORTH WEST LTD,Adult Social Care,Director of People,Homecare Fees,,16/07/2015, 900.47 ,,Social Community Care
5204435,NORTHGATE PUBLIC SERVICES UK LTD,Stronger Communities,Director of People,Computer Hardware Purchase,,16/07/2015," 1,380.00 ",,Information Communication Technology
5204194,CREAMLINE DAIRIES LTD,Education,Director of People,Milk For Under 5 Year Olds,,16/07/2015," 1,636.59 ",,Catering 
5204196,CREAMLINE DAIRIES LTD,Education,Director of People,Milk For Under 5 Year Olds,,16/07/2015," 1,898.43 ",,Catering 
5204193,CREAMLINE DAIRIES LTD,Education,Director of People,Milk For Under 5 Year Olds,,16/07/2015," 1,000.77 ",,Catering 
5203310,LIQUIDLOGIC LTD,Adult Social Care,Director of People,Computer Software,,16/07/2015," 10,000.00 ",,Information Communication Technology
5204965,MOSSLEY PRIVATE HIRE,Asset & Investment Partnership Management,Director of Place,Hired Transport,,16/07/2015, 810.00 ,,Transport
5204991,DWP,Multiple Heads of Service,Multiple Strategic Directorates,Claims Settled,,16/07/2015, 627.00 ,,Unclassified
5204990,DWP,Multiple Heads of Service,Multiple Strategic Directorates,Claims Settled,,16/07/2015, 615.00 ,,Unclassified
5203714,HECTARE 8 CONTRACTS LTD,Environmental Services,Director of Place,General Materials,,16/07/2015," 4,400.00 ",,"Works -  Construction, Repair & Maintenance"
5203386,MONO ALARM INSTALLATIONS LTD.,Environmental Services,Director of Place,Computer Software Maintenance Costs,,16/07/2015, 850.00 ,,Facilities & Management Services
5204388,TURNING POINT SERVICES LTD,Adult Social Care,Director of People,Independent Sector Care Fees,,16/07/2015," 152,854.49 ",,Social Community Care
5204957,FURNACE CONSTRUCTION CREMATORS LIMITED,Environmental Services,Director of Place,Building Works,,16/07/2015," 1,876.00 ",,"Works -  Construction, Repair & Maintenance"
5204951,FURNACE CONSTRUCTION CREMATORS LIMITED,Environmental Services,Director of Place,Building Works,,16/07/2015," 1,750.00 ",,"Works -  Construction, Repair & Maintenance"
5204076,REDDIPAK LIMITED,Environmental Services,Director of Place,General Materials,,16/07/2015," 2,096.00 ",,Unclassifiable
5204163,REDDIPAK LIMITED,Environmental Services,Director of Place,General Materials,,16/07/2015," 1,048.00 ",,Unclassifiable
5203629,NORCOMM (UK) LTD,Multiple Heads of Service,Multiple Strategic Directorates,Communications Equipment,,16/07/2015," 9,253.13 ",,Information Communication Technology
5205061,SOFTCAT LIMITED,Digital Tameside,Director of Place,Computer Hardware Maintenance Costs,,16/07/2015, 719.40 ,,Information Communication Technology
5202429,PARAGON POS,Asset & Investment Partnership Management,Director of Place,Computer Software Maintenance Costs,,16/07/2015," 1,200.00 ",,Information Communication Technology
5204168,PROFILE SECURITY SERVICES LIMITED,Environmental Services,Director of Place,Security Services,,16/07/2015," 2,408.17 ",,Facilities & Management Services
5204169,PROFILE SECURITY SERVICES LIMITED,Environmental Services,Director of Place,General Materials,,16/07/2015," 4,920.63 ",,Facilities & Management Services
5202815,PENNINE CARE IN PATIENT SERVS PRIORY,Education,Director of People,Voluntary Organisations Fees,,16/07/2015," 2,625.00 ",,Social Community Care
5204716,NEW BRIDGE HORIZONS,Adult Social Care,Director of People,Homecare Fees,,16/07/2015," 1,868.00 ",,Social Community Care Supplies & Services
5205052,NEW BRIDGE HORIZONS,Adult Social Care,Director of People,Homecare Fees,,16/07/2015," 1,868.00 ",,Social Community Care Supplies & Services
5205118,JULIE BURNELL,Education,Director of People,Professional Services,Business Payment,16/07/2015," 1,600.00 ",,Education
5205147,JULIE BURNELL,Education,Director of People,Professional Services,Business Payment,16/07/2015, 800.00 ,,Education
5204578,SCS,Asset & Investment Partnership Management,Director of Place,Telephone Landline Costs,,16/07/2015," 1,411.10 ",,Unclassifiable
5194524,UPDATA INFRASTRUCTURE UK LTD,Multiple Heads of Service,Multiple Strategic Directorates,Communications Equipment,,16/07/2015," 6,578.75 ",,Consultancy
5201073,UPDATA INFRASTRUCTURE UK LTD,Multiple Heads of Service,Multiple Strategic Directorates,Communications Equipment,,16/07/2015, 630.00 ,,Consultancy
5201074,UPDATA INFRASTRUCTURE UK LTD,Multiple Heads of Service,Multiple Strategic Directorates,Communications Equipment,,16/07/2015," 1,320.00 ",,Consultancy
5201070,UPDATA INFRASTRUCTURE UK LTD,Multiple Heads of Service,Multiple Strategic Directorates,Communications Equipment,,16/07/2015, 630.00 ,,Consultancy
5201069,UPDATA INFRASTRUCTURE UK LTD,Multiple Heads of Service,Multiple Strategic Directorates,Communications Equipment,,16/07/2015, 630.00 ,,Consultancy
5201068,UPDATA INFRASTRUCTURE UK LTD,Multiple Heads of Service,Multiple Strategic Directorates,Communications Equipment,,16/07/2015, 630.00 ,,Consultancy
5201071,UPDATA INFRASTRUCTURE UK LTD,Multiple Heads of Service,Multiple Strategic Directorates,Communications Equipment,,16/07/2015, 630.00 ,,Consultancy
5205252,R-COM CONSULTING LTD,Adult Social Care,Director of People,Licences,,16/07/2015, 770.00 ,,Public Bodies
5202649,THE FURNISHING SERVICE LTD,Stronger Communities,Director of People,Fixtures & Fittings Purchase,,16/07/2015, 762.42 ,,Furniture
5203309,THE FURNISHING SERVICE LTD,Stronger Communities,Director of People,Fixtures & Fittings Purchase,,16/07/2015," 1,198.34 ",,Furniture
5202646,THE FURNISHING SERVICE LTD,Stronger Communities,Director of People,Fixtures & Fittings Purchase,,16/07/2015, 966.06 ,,Furniture
5202841,THE FURNISHING SERVICE LTD,Stronger Communities,Director of People,Fixtures & Fittings Purchase,,16/07/2015," 1,134.62 ",,Furniture
5202647,THE FURNISHING SERVICE LTD,Stronger Communities,Director of People,Fixtures & Fittings Purchase,,16/07/2015, 613.38 ,,Furniture
5204988, ,Childrens Services,Director of People,Cash Grants,Redacted Supplier,16/07/2015," 1,000.00 ",,Unclassifiable
5205238,MRL HEALTHCARE LIMITED,Adult Social Care,Director of People,Homecare Fees,,16/07/2015," 1,070.66 ",,Social Community Care Supplies & Services
5205185,MRL HEALTHCARE LIMITED,Adult Social Care,Director of People,Homecare Fees,,16/07/2015," 19,215.00 ",,Social Community Care Supplies & Services
5205172,CITY LIFT SERVICES (NW) LTD,Adult Social Care,Director of People,General Equipment Repair & Maintenance,,16/07/2015," 1,620.00 ",,"Works - Construction, Repair & Maintenance"
5205202, ,Adult Social Care,Director of People,Residential Home Short Stay Fees,Redacted Supplier,16/07/2015, 639.40 ,,Unclassifiable
5204400,COMMUNITY INTEGRATED CARE,Adult Social Care,Director of People,Homecare Fees,,16/07/2015," 18,360.00 ",,Social Community Care Supplies & Services
5205306,ABLE CARE AND SUPPORT SERVICES LTD,Adult Social Care,Director of People,Homecare Fees,,16/07/2015," 1,338.65 ",,Social Community Care Supplies & Services
5204195,CREAMLINE DAIRIES (STOCKPORT) LTD,Education,Director of People,Milk For Under 5 Year Olds,,16/07/2015," 9,167.16 ",,Catering 
5204197,CREAMLINE DAIRIES (STOCKPORT) LTD,Education,Director of People,Milk For Under 5 Year Olds,,16/07/2015," 9,418.92 ",,Catering 
5204192,CREAMLINE DAIRIES (STOCKPORT) LTD,Education,Director of People,Milk For Under 5 Year Olds,,16/07/2015," 4,526.37 ",,Catering 
5204367,LES HALMAN NURSERIES LIMITED,Environmental Services,Director of Place,General Materials,,16/07/2015," 3,520.82 ",,Environmental Services
5202820,THE CHESHIRE & GREATER MANCHESTER COMMUNITY REHABILITATION COMPANY LTD,Stronger Communities,Director of People,Supporting People Gross Contract,,16/07/2015," 3,615.16 ",,Unclassifiable
5205177,LISA HEYS,Education,Director of People,Training Course Costs,Business Payment,16/07/2015, 900.00 ,,Unclassifiable
5204587,KINGSTON BUSINESS CENTRE/ASHTON SELF STORE,Development Growth & Investment,Director of Place,Non-Authority Accommodation Rental,,16/07/2015, 530.00 ,,Facilities & Management Services
5204740,FIRST AID FOR ALL LTD,Environmental Services,Director of Place,General Equipment Purchase,,16/07/2015," 2,740.00 ",,Human Resources
5204736,FIRST AID FOR ALL LTD,Environmental Services,Director of Place,Building Works,,16/07/2015," 1,270.00 ",,Human Resources
5205293,ROYAL MAIL GROUP PLC,Governance,Director of Governance and Resources,Postages,,16/07/2015," 6,217.09 ",,Mail Services
5204982,TAMESIDE LINK,Adult Social Care,Director of People,Voluntary Organisations Fees,,16/07/2015," 15,254.59 ",,Social Community Care Supplies & Services
5204459,THE TOGETHER TRUST,Adult Social Care,Director of People,Homecare Fees, ,16/07/2015," 1,968.00 ",,Social Community Care
5204830,THE TOGETHER TRUST,Adult Social Care,Director of People,Homecare Fees, ,16/07/2015," 2,214.00 ",,Social Community Care
5203292,CREATIVE SUPPORT LTD,Adult Social Care,Director of People,Homecare Fees,,16/07/2015," 15,126.50 ",,Social Community Care Supplies & Services
5203286,CREATIVE SUPPORT LTD,Adult Social Care,Director of People,Homecare Fees,,16/07/2015," 15,170.50 ",,Social Community Care Supplies & Services
5204125,CREATIVE SUPPORT LTD,Adult Social Care,Director of People,Independent Sector Care Fees,,16/07/2015," 67,669.36 ",,Social Community Care Supplies & Services
5202953,CREATIVE SUPPORT LTD,Adult Social Care,Director of People,Independent Sector Care Fees,,16/07/2015," 67,669.36 ",,Social Community Care Supplies & Services
5203289,CREATIVE SUPPORT LTD,Adult Social Care,Director of People,Homecare Fees,,16/07/2015," 15,126.50 ",,Social Community Care Supplies & Services
5204995,BERTRAM LIBRARY SERVICES,Stronger Communities,Director of People,Purchase Books,,16/07/2015," 4,204.35 ",,Education
5204162,BT PLC,Asset & Investment Partnership Management,Director of Place,Telephone Landline Costs,,16/07/2015," 1,118.00 ",,Information Communication Technology
5205138,COACHFINDER LIMITED,Development Growth & Investment,Director of Place,Professional Services,,16/07/2015," 1,820.00 ",,Transport
5204613,COACHFINDER LIMITED,Development Growth & Investment,Director of Place,Professional Services,,16/07/2015," 1,100.00 ",,Transport
5204922,M G DOMESTIC,Adult Social Care,Director of People,Fixtures & Fittings Purchase,,16/07/2015, 514.99 ,,Domestic Goods
5204926,NEW CHARTER HOUSING TRUST GROUP,Stronger Communities,Director of People,Supporting People Gross Contract,,16/07/2015," 5,940.33 ",,Social Community Care Supplies & Services
5204928,NEW CHARTER HOUSING TRUST GROUP,Stronger Communities,Director of People,Professional Medical Services,,16/07/2015," 3,750.00 ",,Social Community Care Supplies & Services
5204924,NEW CHARTER HOUSING TRUST GROUP,Stronger Communities,Director of People,Contributions,,16/07/2015," 4,166.66 ",,Social Community Care Supplies & Services
5204937,NEW CHARTER HOUSING TRUST GROUP,Stronger Communities,Director of People,Housing Aid Function,,16/07/2015," 33,740.57 ",,Social Community Care Supplies & Services
5204860,FAIRWAY LANDSCAPES LTD,Environmental Services,Director of Place,General Materials,,16/07/2015, 571.00 ,,"Works - Construction, Repair & Maintenance"
5204277,CORONA ENERGY RETAIL 4 LIMITED,Asset & Investment Partnership Management,Director of Place,Gas,,16/07/2015, 830.52 ,,Utilities
5204344,CORONA ENERGY RETAIL 4 LIMITED,Asset & Investment Partnership Management,Director of Place,Gas,,16/07/2015," 1,521.38 ",,Utilities
5204284,CORONA ENERGY RETAIL 4 LIMITED,Asset & Investment Partnership Management,Director of Place,Gas,,16/07/2015, 683.39 ,,Utilities
5204333,CORONA ENERGY RETAIL 4 LIMITED,Asset & Investment Partnership Management,Director of Place,Gas,,16/07/2015," 1,380.24 ",,Utilities
5204292,CORONA ENERGY RETAIL 4 LIMITED,Asset & Investment Partnership Management,Director of Place,Gas,,16/07/2015, 588.79 ,,Utilities
5204353,CORONA ENERGY RETAIL 4 LIMITED,Asset & Investment Partnership Management,Director of Place,Gas,,16/07/2015," 2,210.60 ",,Utilities
5204348,CORONA ENERGY RETAIL 4 LIMITED,Asset & Investment Partnership Management,Director of Place,Gas,,16/07/2015, 777.20 ,,Utilities
5204279,CORONA ENERGY RETAIL 4 LIMITED,Asset & Investment Partnership Management,Director of Place,Gas,,16/07/2015," 3,039.36 ",,Utilities
5204318,CORONA ENERGY RETAIL 4 LIMITED,Asset & Investment Partnership Management,Director of Place,Gas,,16/07/2015, 990.71 ,,Utilities
5204335,CORONA ENERGY RETAIL 4 LIMITED,Asset & Investment Partnership Management,Director of Place,Gas,,16/07/2015, 643.87 ,,Utilities
5204300,CORONA ENERGY RETAIL 4 LIMITED,Asset & Investment Partnership Management,Director of Place,Gas,,16/07/2015, 775.51 ,,Utilities
5204332,CORONA ENERGY RETAIL 4 LIMITED,Asset & Investment Partnership Management,Director of Place,Gas,,16/07/2015," 1,421.77 ",,Utilities
5204250,CORONA ENERGY RETAIL 4 LIMITED,Asset & Investment Partnership Management,Director of Place,Gas,,16/07/2015, 528.99 ,,Utilities
5204315,CORONA ENERGY RETAIL 4 LIMITED,Asset & Investment Partnership Management,Director of Place,Gas,,16/07/2015, 555.11 ,,Utilities
5204341,CORONA ENERGY RETAIL 4 LIMITED,Asset & Investment Partnership Management,Director of Place,Gas,,16/07/2015," 3,502.00 ",,Utilities
5204289,CORONA ENERGY RETAIL 4 LIMITED,Asset & Investment Partnership Management,Director of Place,Gas,,16/07/2015," 1,746.54 ",,Utilities
5204301,CORONA ENERGY RETAIL 4 LIMITED,Asset & Investment Partnership Management,Director of Place,Gas,,16/07/2015, 541.95 ,,Utilities
5204349,CORONA ENERGY RETAIL 4 LIMITED,Asset & Investment Partnership Management,Director of Place,Gas,,16/07/2015, 802.34 ,,Utilities
5205267,ASKEWS  AND HOLTS LIBRARY SERVICES LTD,Stronger Communities,Director of People,Purchase Books,,16/07/2015," 1,410.16 ",,Education
5205242, ,Adult Social Care,Director of People,Residential Home Short Stay Fees,Redacted Supplier,16/07/2015, 510.24 ,,Unclassifiable
5205139,AMTEC COMPUTER SERVICES LTD,Digital Tameside,Director of Place,Computer Hardware Maintenance Costs,,16/07/2015," 1,601.84 ",,Information Communication Technology
5205262,THE BLACKBURN PRODUCTS CO LTD,Environmental Services,Director of Place,Waste Disposal Fees,,16/07/2015, 540.00 ,,Environmental Services
5204886,UNITED UTILITIES WATER PLC,Asset & Investment Partnership Management,Director of Place,Metered Water Costs,,16/07/2015," 2,144.24 ",,Utilities
5204885,UNITED UTILITIES WATER PLC,Asset & Investment Partnership Management,Director of Place,Metered Water Costs,,16/07/2015," 1,122.62 ",,Utilities
5204901,UNITED UTILITIES WATER PLC,Asset & Investment Partnership Management,Director of Place,Metered Water Costs,,16/07/2015," 1,544.75 ",,Utilities
5202658,UNITED UTILITIES WATER PLC,Environmental Services,Director of Place,Water Rates,,16/07/2015, 682.75 ,,Utilities
5204140,UNITED UTILITIES WATER PLC,Asset & Investment Partnership Management,Director of Place,Metered Water Costs,,16/07/2015, 684.54 ,,Utilities
5202659,UNITED UTILITIES WATER PLC,Environmental Services,Director of Place,Water Rates,,16/07/2015," 1,608.92 ",,Utilities
5204881,UNITED UTILITIES WATER PLC,Asset & Investment Partnership Management,Director of Place,Metered Water Costs,,16/07/2015," 1,131.87 ",,Utilities
5205171,ABLE COMMUNITY CARE,Adult Social Care,Director of People,Homecare Fees,,16/07/2015," 1,580.00 ",,Social Community Care Supplies & Services
5204509,ABLE COMMUNITY CARE,Adult Social Care,Director of People,Homecare Fees,,16/07/2015," 1,580.00 ",,Social Community Care Supplies & Services
5204490,TRIBAL EDUCATION LTD,Education,Director of People,Computer Software Maintenance Costs,,16/07/2015, 575.00 ,,Information Communication Technology
5204950,INSPIREDSPACES TAMESIDE LTD,Asset Management and Investment Partnership Management,Director of Place,Refurbishment Construction Costs,,16/07/2015," 1,339.75 ",,Consultancy
5204950,INSPIREDSPACES TAMESIDE LTD,Tameside Investment Partnership,Director of Place,Other Works,,16/07/2015," 180,801.63 ",,Consultancy
5204950,INSPIREDSPACES TAMESIDE LTD,Tameside Investment Partnership,Director of Place,Telecom,,16/07/2015," 1,363.38 ",,Consultancy
5204952,INSPIREDSPACES TAMESIDE LTD,Asset Management and Investment Partnership Management,Director of Place,Refurbishment Construction Costs,,16/07/2015," 218,261.64 ",,Consultancy
5204952,INSPIREDSPACES TAMESIDE LTD,Tameside Investment Partnership,Director of Place,Other Works,,16/07/2015," 540,412.35 ",,Consultancy
5204952,INSPIREDSPACES TAMESIDE LTD,Tameside Investment Partnership,Director of Place,Other Works,,16/07/2015," 348,415.04 ",,Consultancy
5204394,INSPIREDSPACES TAMESIDE LTD,Asset & Investment Partnership Management,Director of Place,Cleaning Contractor Costs,,16/07/2015," 3,042,600.18 ",,Consultancy
5205022,INSPIREDSPACES TAMESIDE LTD,Multiple Heads of Service,Multiple Strategic Directorates,Communications Equipment,,16/07/2015," 138,612.04 ",,Consultancy
5204415,NABARRO LLP CLIENT,Asset & Investment Partnership Management,Director of Place,Legal Fees,,16/07/2015," 1,500.00 ",,Unclassified
3250517,ATS EUROMASTER LTD,Environmental Services,Director of Place,General Materials,,16/07/2015, 31.00 ,,Vehicles
3250517,ATS EUROMASTER LTD,Environmental Services,Director of Place,Tyre Costs,,16/07/2015," 7,176.62 ",,Vehicles
3250517,DENNIS EAGLE LTD,Environmental Services,Director of Place,General Materials,,16/07/2015," 1,085.79 ",,Vehicles
3250517,DENNIS EAGLE LTD,Transport,Director of Place,Debits Goods Received,,16/07/2015," 1,528.72 ",,Vehicles
3250517,F. R. SHARROCK LIMITED,Environmental Services,Director of Place,General Materials,,16/07/2015, 569.90 ,,Public Bodies
3250517,F. R. SHARROCK LIMITED,Transport,Director of Place,Debits Goods Received,,16/07/2015, 278.20 ,,Public Bodies
3250517,G B OILS TA CARLTON FUELS,Transport,Director of Place,Diesel Fuel,,16/07/2015," 39,150.79 ",,Transport
3250517,BRENNTAG UK LIMITED,Transport,Director of Place,Fuel / Ad Blu,,16/07/2015, 851.36 ,,Cleaning & Janitorial
3250517,MORRIS LUBRICANTS,Transport,Director of Place,Debits Goods Received,,16/07/2015, 639.61 ,,Unclassifiable
3250517,COOLAIR LOGAN LTD,Environmental Services,Director of Place,General Materials,,16/07/2015," 7,200.00 ",,Unclassified
3250517,THOMAS HARDIE,Transport,Director of Place,Debits Goods Received,Business Payment,22/07/2015, 897.28 ,,Vehicles
5194187,TAMESIDE HOSPITAL NHS FOUNDATION TRUST,Public Health,Director of Public Health,Professional Services,,16/07/2015," 2,957.26 ",,Unclassified
5204814,FRIENDS OF COPPERAS FIELD ASSOCIATION,Corporate Costs,Corporate Costs,Contributions,,16/07/2015," 2,000.00 ",,Financial Services
5205410,STOCKPORT NHS FOUNDATION TRUST,Education,Director of People,Professional Services,,16/07/2015," 3,333.00 ",,Medical
5205477,LIME TRAVEL,Education,Director of People,Transport Of Ola Pupils,,16/07/2015," 2,050.00 ",,Human Resources
5205466,ALTERNATIVE FUTURES GROUP,Adult Social Care,Director of People,Homecare Fees,,16/07/2015," 138,141.84 ",,Social Community Care Supplies & Services
5205309,REGENDA LIMITED,Adult Social Care,Director of People,Non-Authority Accommodation Rental,,16/07/2015," 15,596.36 ",,Housing Management
5203890,ROCHDALE MBC,Adult Social Care,Director of People,Residential Home Short Stay Fees,,16/07/2015," 2,657.14 ",,Unclassified
5204576,COMMUNITY AND VOLUNTARY ACTION TAMESIDE,Adults Early Intervention,Director of People,Development Monies,,16/07/2015," 6,557.00 ",,Financial Services
5204574,COMMUNITY AND VOLUNTARY ACTION TAMESIDE,Adults Early Intervention,Director of People,Development Monies,,16/07/2015," 7,994.50 ",,Financial Services
5204918,LIFELINE PROJECT LTD (PH),Public Health,Director of Public Health,Professional Services,,16/07/2015," 21,157.00 ",,Consultancy
5204674,MAPS LEGAL ASSISTANCE,Corporate Costs,Corporate Costs,Transport Insurance,,16/07/2015, 845.82 ,,Unclassified
5203279,TOPMARK CLAIMS MANAGEMENT LTD,Multiple Heads of Service,Multiple Strategic Directorates,Reimbursement Paid To Insurers,,16/07/2015," 15,000.00 ",,Financial Services
5205307,ABLE CARE AND SUPPORT SERVICES LTD,Adult Social Care,Director of People,Homecare Fees,,16/07/2015," 1,601.25 ",,Social Community Care Supplies & Services
29000027,S2 ENTERPRISE LTD T/A PENNY MEADOW PHARMACY,Public Health,Director of Public Health,Local Enhanced Services,,16/07/2015," 1,467.00 ",,Consultancy
5203940,YORKSHIRE GAS AND POWER,Asset & Investment Partnership Management,Director of Place,Gas,,16/07/2015, 514.35 ,,Utilities
5204482,THE UNIVERSITY OF MANCHESTER,Adult Social Care,Director of People,Training Course Costs,,16/07/2015, 665.00 ,,Unclassified
5204480,THE UNIVERSITY OF MANCHESTER,Adult Social Care,Director of People,Training Course Costs,,16/07/2015, 665.00 ,,Unclassified
5204485,THE UNIVERSITY OF MANCHESTER,Adult Social Care,Director of People,Training Course Costs,,16/07/2015, 665.00 ,,Unclassified
5204484,THE UNIVERSITY OF MANCHESTER,Adult Social Care,Director of People,Training Course Costs,,16/07/2015, 665.00 ,,Unclassified
5204483,THE UNIVERSITY OF MANCHESTER,Adult Social Care,Director of People,Training Course Costs,,16/07/2015, 665.00 ,,Unclassified
5205468,PITNEY BOWES UK MAILING LTD,Exchequer,Director of Governance and Resources,Postages,,16/07/2015," 1,602.33 ",,Mail Services
5205292,ROYAL MAIL GROUP PLC,Exchequer,Director of Governance and Resources,Postages,,16/07/2015," 2,544.01 ",,Mail Services
5205442,AON LIMITED,Corporate Costs,Corporate Costs,Miscellaneous Insurance,,16/07/2015," 2,000.00 ",,Human Resources
5205458,AON LIMITED,Corporate Costs,Corporate Costs,Employee Insurance,,16/07/2015," 26,500.00 ",,Human Resources
5205311,CREATIVE SUPPORT LTD,Adult Social Care,Director of People,Homecare Fees,,16/07/2015," 124,890.83 ",,Social Community Care Supplies & Services
5205443,MEDICO NURSING AND HOMECARE,Adult Social Care,Director of People,Homecare Fees,,16/07/2015," 12,107.59 ",,Social Community Care Supplies & Services
5204358,ROSS AUTO ENGINEERING LIMITED,Adult Social Care,Director of People,Joint Loans Store Fee,,16/07/2015," 121,931.35 ",,Social Community Care
5204638,DR C M GREENHOUGH,Public Health,Director of Public Health,Professional Services,Business Payment,16/07/2015," 2,515.50 ",,Unclassified
5202911,TAMESIDE ARTS LTD,Adult Social Care,Director of People,Professional Services,,16/07/2015," 1,071.00 ",,Leisure Services
5204560,TAMESIDE ARTS LTD,Adult Social Care,Director of People,Professional Services,,16/07/2015," 1,071.00 ",,Leisure Services
5205487,STAMFORD CARS UK LTD,Environmental Services,Director of Place,Hired Transport,,16/07/2015, 600.00 ,,Transport
5205492,STAMFORD CARS UK LTD,Environmental Services,Director of Place,Hired Transport,,16/07/2015," 1,210.00 ",,Transport
5205493,STAMFORD CARS UK LTD,Environmental Services,Director of Place,Hired Transport,,16/07/2015, 810.00 ,,Transport
5205476,STAMFORD CARS UK LTD,Environmental Services,Director of Place,Hired Transport,,16/07/2015, 880.00 ,,Transport
5205027,HMRC,Multiple Heads of Service,Multiple Strategic Directorates,Tax Paid Sub Contractors,,16/07/2015," 7,260.83 ",,Unclassified
5204185,WATTS GROUP PLC,Environmental Services,Director of Place,Building Maintenance,,17/07/2015," 1,560.00 ",,Consultancy
5204389,TURNING POINT SERVICES LTD,Adult Social Care,Director of People,Independent Sector Care Fees,,17/07/2015," 46,566.66 ",,Social Community Care
5205617,APPLE TRANSCRIPTION LTD,Governance,Director of Governance and Resources,Professional Interpreter Services,,17/07/2015," 1,143.10 ",,Legal Services
5205636,LAWYERS IN LOCAL GOVERNMENT,Governance,Director of Governance and Resources,Subscriptions,,17/07/2015, 500.00 ,,Human Resources
5205406,STOCKPORT NHS FOUNDATION TRUST,Public Health,Director of Public Health,Professional Services,,17/07/2015," 254,220.00 ",,Medical
5203889,PRICEWATERHOUSECOOPERS,Digital Tameside,Director of Place,Professional Services,,17/07/2015," 10,000.00 ",,Financial Services
5205611,THE FURNISHING SERVICE LTD,Stronger Communities,Director of People,Fixtures & Fittings Purchase,,17/07/2015, 605.32 ,,Furniture
5199635,FRONTLINE CONSULTANCY & BUSINESS SERVICES LTD,Multiple Heads of Service,Multiple Strategic Directorates,Computer Hardware,,17/07/2015, 850.00 ,,Unclassifiable
5205559,MARK HANCOCK,Education,Director of People,Professional Services,Business Payment,17/07/2015," 2,400.00 ",,Education
5205604,MARK HANCOCK,Education,Director of People,Professional Services,Business Payment,17/07/2015," 3,600.00 ",,Education
5205589,GV MULTI-MEDIA,Multiple Heads of Service,Multiple Strategic Directorates,Communications Equipment,,17/07/2015, 600.00 ,,Information Communication Technology
5205386,BRIGHT BOOK SUPPLIES,Stronger Communities,Director of People,Purchase Books,,17/07/2015, 773.01 ,,Education
5205298,ORANGE PCS,Digital Tameside,Director of Place,Mobile Telephones,,17/07/2015," 3,052.65 ",,Information Communication Technology
5205301,ORANGE PCS,Digital Tameside,Director of Place,Mobile Telephones,,17/07/2015, 675.97 ,,Information Communication Technology
5205637,MARTHALL TREE PRODUCTS LTD,Environmental Services,Director of Place,General Materials,,17/07/2015, 571.00 ,,Building Construction Materials
470623,AGGREGATE INDUSTRIES UK LIMITED,Environmental Services,Director of Place,General Materials,,20/07/2015," 5,765.28 ",,Highway Equipment & Materials
470623,AJC ROAD SWEEPERS,Environmental Services,Director of Place,Sub-contractor Services,,20/07/2015," 3,037.50 ",,Vehicles
470623,ALTITUDE SERVICES,Environmental Services,Director of Place,Sub-contractor Services,,20/07/2015," 9,685.55 ",,Utilities
470623,BENCHMARK BUILDING SUPPLIES LTD,Environmental Services,Director of Place,General Materials,,20/07/2015," 9,331.61 ",,Building Construction Materials
470623,CBS (NORTH WEST) LTD,Environmental Services,Director of Place,Sub-contractor Services,,20/07/2015," 5,000.81 ",,"Works - Construction, Repair & Maintenance"
470623,EAGLE CIVIL ENGINEERING LTD,Environmental Services,Director of Place,General Materials,,20/07/2015, 847.56 ,,Highway Equipment & Materials�
470623,EAGLE CIVIL ENGINEERING LTD,Environmental Services,Director of Place,Sub-contractor Services,,20/07/2015," 18,985.31 ",,Highway Equipment & Materials�
470623,ELLIOTT GROUP LTD,Environmental Services,Director of Place,Additional Hire,,20/07/2015," 1,260.29 ",,"Works -  Construction, Repair & Maintenance"
470623,FAIRWAY LANDSCAPES LTD,Environmental Services,Director of Place,Sub-contractor Services,,20/07/2015," 35,377.70 ",,"Works - Construction, Repair & Maintenance"
470623,J HOPKINS CONTRACTORS  LTD,Civil Engineers,Director of Place,Debits Goods Received,,20/07/2015, 214.70 ,,"Works - Construction, Repair & Maintenance"
470623,J HOPKINS CONTRACTORS  LTD,Environmental Services,Director of Place,General Materials,,20/07/2015, 516.38 ,,"Works - Construction, Repair & Maintenance"
470623,KEN TAYLOR SUPPLIES LTD,Environmental Services,Director of Place,General Materials,,20/07/2015," 3,358.35 ",,Unclassified
470623,KENNY BROTHERS,Environmental Services,Director of Place,Sub-contractor Services,,20/07/2015," 11,021.87 ",,Non 3rd Party spend  
470623,KONSTRUCTA HIRE LIMITED,Environmental Services,Director of Place,Additional Hire,,20/07/2015," 1,816.00 ",,"Works -  Construction, Repair & Maintenance"
470623,M.C. & M.A. STEWART HAULAGE LTD,Environmental Services,Director of Place,General Materials,,20/07/2015," 4,156.75 ",,Horticultural
470623,MARWOOD ELECTRICAL CO,Civil Engineers,Director of Place,Debits Goods Received,,20/07/2015," 8,377.80 ",,Highway Equipment & Materials�
470623,MARWOOD ELECTRICAL CO,Environmental Services,Director of Place,General Materials,,20/07/2015," 3,342.00 ",,Highway Equipment & Materials�
470623,NEW CHARTER BUILD CO LTD,Environmental Services,Director of Place,Sub-contractor Services,,20/07/2015," 2,016.05 ",,"Works -  Construction, Repair & Maintenance"
470623,NEWEY & EYRE LTD,Civil Engineers,Director of Place,Debits Goods Received,,20/07/2015, 800.00 ,,Highway Equipment & Materials�
470623,NEWEY & EYRE LTD,Environmental Services,Director of Place,Stores Purchases,,20/07/2015, 235.00 ,,Highway Equipment & Materials�
470623,P F CUSACK LTD,Civil Engineers,Director of Place,Debits Goods Received,,20/07/2015, 907.13 ,,Horticultural
470623,PG FABRICATIONS,Environmental Services,Director of Place,Sub-contractor Services,,20/07/2015," 2,830.00 ",,"Works - Construction, Repair & Maintenance"
470623,PG FABRICATIONS,Multiple Heads of Service,Multiple Strategic Directorates,Tax Retained Sub Contractors,,20/07/2015,-169.80 ,,"Works - Construction, Repair & Maintenance"
470623,PREMIER WASTE (UK) LTD,Environmental Services,Director of Place,Sub-contractor Services,,20/07/2015," 3,520.10 ",,Environmental Services
470623,SECURETASK SECURITY LTD,Environmental Services,Director of Place,Sub-contractor Services,,20/07/2015," 2,271.60 ",,Facilities & Management Services
470623,T N ROBINSON LTD,Environmental Services,Director of Place,General Materials,,20/07/2015," 1,526.87 ",,Building Construction Materials
470623,TARMAC CENTRAL LIMITED,Civil Engineers,Director of Place,Debits Goods Received,,20/07/2015," 8,514.75 ",,Highway Equipment & Materials�
470623,TARMAC CENTRAL LIMITED,Environmental Services,Director of Place,General Materials,,20/07/2015," 2,055.14 ",,Highway Equipment & Materials�
470623,TARMAC CENTRAL LIMITED,Environmental Services,Director of Place,Stores Purchases,,20/07/2015, 206.26 ,,Highway Equipment & Materials�
470623,WOLSELEY UK LTD,Civil Engineers,Director of Place,Debits Goods Received,,20/07/2015, 297.82 ,,Highway Equipment & Materials�
470623,WOLSELEY UK LTD,Environmental Services,Director of Place,General Materials,,20/07/2015," 4,115.08 ",,Highway Equipment & Materials�
470623,HARTTRON  LTD,Environmental Services,Director of Place,Sub-contractor Services,,20/07/2015," 4,800.00 ",,"Works -  Construction, Repair & Maintenance"
470623,CITY ELECTRICAL FACTORS LTD,Civil Engineers,Director of Place,Debits Goods Received,,20/07/2015, 291.05 ,,Building Construction Materials
470623,CITY ELECTRICAL FACTORS LTD,Environmental Services,Director of Place,General Materials,,20/07/2015, 283.70 ,,Building Construction Materials
470623,INSTARMAC GROUP PLC,Civil Engineers,Director of Place,Debits Goods Received,,20/07/2015, 856.00 ,,Highway Equipment & Materials�
470623,HUGH LOGAN ENGINEERING,Civil Engineers,Director of Place,Debits Goods Received,,20/07/2015," 1,547.50 ",,Highway Equipment & Materials�
470623,VERTICAL ACCESS LIMITED,Environmental Services,Director of Place,Sub-contractor Services,,20/07/2015," 5,490.00 ",,Building Construction Materials
470623,INDUSTRIAL NOISE AND VIBRATION CENTRE LIMITED,Environmental Services,Director of Place,Engineers Works,,20/07/2015," 3,455.80 ",,Unclassified
470623,MAILBOX MOULDINGSINTERNATIONAL LIMITED,Environmental Services,Director of Place,General Materials,,20/07/2015, 998.46 ,,Environmental Services
470623,MILLENNIUM BUSINESS SYSTEMS LTD,Environmental Services,Director of Place,General Materials,,20/07/2015," 15,017.00 ",,Cemetery & Crematorium
470623,WENDY LAWTON,Environmental Services,Director of Place,Sub-contractor Services,Business Payment,20/07/2015, 520.00 ,,Cleaning & Janitorial
470623,MATHER AND STUART GENERATORS LTD,Environmental Services,Director of Place,General Materials,,20/07/2015, 616.00 ,,Horticultural
470623,CLEARVIEW TRAFFIC GROUP LTD,Environmental Services,Director of Place,General Materials,,20/07/2015," 10,633.25 ",,"Works - Construction, Repair & Maintenance"
470623,CASTINGS SERVICES LTD,Civil Engineers,Director of Place,Debits Goods Received,,20/07/2015," 1,390.00 ",,Building Construction Materials
5204355,TAMESIDE DEAF ASSOCIATION,Adult Social Care,Director of People,Contributions,,20/07/2015," 17,118.60 ",,Financial Services
5205640,B&E CONSULTANTS LTD,Public Health,Director of Public Health,Professional Services,,20/07/2015," 1,150.00 ",,Consultancy
5205345,W V HOWE LIMITED,Asset & Investment Partnership Management,Director of Place,Refreshments,,20/07/2015, 678.08 ,,Catering
5205332,W V HOWE LIMITED,Asset & Investment Partnership Management,Director of Place,Refreshments,,20/07/2015, 932.56 ,,Catering
5205361,W V HOWE LIMITED,Asset & Investment Partnership Management,Director of Place,Refreshments,,20/07/2015, 568.78 ,,Catering
5205338,W V HOWE LIMITED,Asset & Investment Partnership Management,Director of Place,Refreshments,,20/07/2015, 564.00 ,,Catering
5205333,W V HOWE LIMITED,Asset & Investment Partnership Management,Director of Place,Refreshments,,20/07/2015, 695.22 ,,Catering
5203971,GLM ACCESSIBLE TRANSPORT,Education,Director of People,Transport Of Pupils, ,20/07/2015," 1,190.00 ",,Transport
5205530,TRAVELERS INSURANCE COMPANY LTD,Multiple Heads of Service,Multiple Strategic Directorates,Reimbursement Paid To Insurers,,20/07/2015," 8,955.00 ",,Financial Services
5205187,CYCLESCHEME LTD,Multiple Heads of Service,Multiple Strategic Directorates,General Equipment Purchase,,20/07/2015," 1,068.30 ",,Unclassified
5204390,TURNING POINT SERVICES LTD,Adult Social Care,Director of People,Independent Sector Care Fees,,20/07/2015," 152,854.49 ",,Social Community Care
5203167,STOCKPORT NHS FOUNDATION TRUST,Public Health,Director of Public Health,Professional Services,,20/07/2015," 3,974.46 ",,Medical
5205408,STOCKPORT NHS FOUNDATION TRUST,Public Health,Director of Public Health,Professional Services,,20/07/2015," 271,681.00 ",,Medical
5205130,REGENDA LIMITED,Adult Social Care,Director of People,Non-Authority Accommodation Rental,,20/07/2015," 2,169.66 ",,Housing Management
5205122,REGENDA LIMITED,Adult Social Care,Director of People,Non-Authority Accommodation Rental,,20/07/2015," 2,169.66 ",,Housing Management
5205063,REGENDA LIMITED,Adult Social Care,Director of People,Non-Authority Accommodation Rental,,20/07/2015," 2,169.66 ",,Housing Management
5205303,THE DIOCESE OF SALFORD,Asset & Investment Partnership Management,Director of Place,Non-Authority Accommodation Rental,,20/07/2015," 1,750.00 ",,Non 3rd Party spend  
5205772,THYSSENKRUPP ENCASA LTD,Housing,Director of Place,Improvement Grants - Final Mandatory,,20/07/2015," 1,925.00 ",,Social Community Care
5205721,CALLROUND LIMITED,Education,Director of People,Professional Services,,20/07/2015," 1,400.00 ",,Public Bodies
5204874,ERNEST LEE (HYDE) LTD,Asset & Investment Partnership Management,Director of Place,Electricity,,20/07/2015, 608.64 ,,Unclassifiable
5204599,ROB MARSDEN,Environmental Services,Director of Place,General Materials,Business Payment,20/07/2015, 935.00 ,,"Works - Construction, Repair & Maintenance"
5205377,VIRGIN BLACKPOOL,Public Health,Director of Public Health,Professional services,,20/07/2015," 1,474.00 ",,Consultancy
5205705, ,Environmental Services,Director of Place,Interment Fee ,Redacted Supplier,20/07/2015, 825.00 ,,Unclassifiable
5205620,TRAFFORD MBC,Childrens Services,Director of People,Professional Services,,20/07/2015," 3,320.00 ",,Unclassified
5197216,GREATER MANCHESTER WASTE DISPOSAL AUTH.,Environmental Services,Director of Place,GMC Waste Disposal Levy,,20/07/2015," 1,376,583.00 ",,Environmental Services
5205712,LOUISE LIGHTFOOT,Education,Director of People,Professional Services,Business Payment,20/07/2015," 1,800.00 ",,Medical Services
5204582,TAMESIDE SPORTS TRUST,Strategy & Early Intervention,Director of People,"Activity (Materials, Trips)",,20/07/2015," 1,920.00 ",,Leisure Services
5181254,BARCHAM TREES PLC,Environmental Services,Director of Place,General Materials,,20/07/2015, 753.10 ,,Horticultural
5205285,BT PLC,Asset & Investment Partnership Management,Director of Place,Telephone Landline Costs,,20/07/2015," 1,668.75 ",,Information Communication Technology
5205596,NABMA,Environmental Services,Director of Place,Conference/Seminar Expenses For Staff,,20/07/2015, 975.00 ,,Financial Services
5205667,SANCTUARY HOUSING  ASSOCIATION,Asset & Investment Partnership Management,Director of Place,Non-Authority Accommodation Rental,,20/07/2015," 2,902.07 ",,Unclassified
5205194,NORTH WEST CONSTRUCTION,Housing,Director of Place,Improvement Grants - Final Mandatory,,20/07/2015," 2,000.00 ",,"Works - Construction, Repair & Maintenance"
5205720,AMTEC COMPUTER SERVICES LTD,Digital Tameside,Director of Place,Computer Hardware Maintenance Costs,,20/07/2015, 629.18 ,,Information Communication Technology
5179385,ELECTRICITY NORTH WEST LTD,Engineers Client,Director of Place,Electric,,20/07/2015," 1,193.92 ",,Utilities
5205439,UNITED UTILITIES WATER PLC,Asset & Investment Partnership Management,Director of Place,Metered Water Costs,,20/07/2015," 1,075.89 ",,Utilities
5205384,UNITED UTILITIES WATER PLC,Asset & Investment Partnership Management,Director of Place,Metered Water Costs,,20/07/2015, 774.02 ,,Utilities
5200632,UNITED UTILITIES WATER PLC,Asset & Investment Partnership Management,Director of Place,Water Rates,,20/07/2015, 544.19 ,,Utilities
5205437,UNITED UTILITIES WATER PLC,Environmental Services,Director of Place,Metered Water Costs,,20/07/2015, 389.41 ,,Utilities
5205437,UNITED UTILITIES WATER PLC,Asset & Investment Partnership Management,Director of Place,Metered Water Costs,,20/07/2015, 631.38 ,,Utilities
5205374,UNITED UTILITIES WATER PLC,Asset & Investment Partnership Management,Director of Place,Metered Water Costs,,20/07/2015," 5,468.23 ",,Utilities
5205976,S ROCHE,Housing,Director of Place,Improvement Grants - Final Mandatory,Business Payment,22/07/2015," 2,850.00 ",,Building Construction Materials
5204155,MACK 4 LIMITED,Housing,Director of Place,Improvement Grants - Final Mandatory,,22/07/2015," 4,145.00 ",,"Works - Construction, Repair & Maintenance"
5205862,POST OFFICE,Environmental Services,Director of Place,Motor Licence Costs,,22/07/2015, 955.00 ,,Mail Services
5205479,MISS SARAH DONALDSON,Childrens Services,Director of People,Legal Fees,Business Payment,22/07/2015, 950.00 ,,Legal Services
5204439,NETCARE EUROPE LTD,Multiple Heads of Service,Multiple Strategic Directorates,Communications Equipment,,22/07/2015," 1,868.00 ",,Unclassified
5206034,CARE UK HOMECARE,Adult Social Care,Director of People,Homecare Fees,,22/07/2015," 37,529.75 ",,Social Community Care Supplies & Services
5206030,CARE UK HOMECARE,Adult Social Care,Director of People,Homecare Fees,,22/07/2015," 33,995.61 ",,Social Community Care Supplies & Services
5206024,CARE UK HOMECARE,Adult Social Care,Director of People,Homecare Fees,,22/07/2015," 33,853.63 ",,Social Community Care Supplies & Services
5206026,CARE UK HOMECARE,Adult Social Care,Director of People,Homecare Fees,,22/07/2015," 33,250.49 ",,Social Community Care Supplies & Services
5191498,GREENSCAPE,Environmental Services,Director of Place,General Materials,,22/07/2015," 2,380.00 ",,"Works - Construction, Repair & Maintenance"
5189829,GREENSCAPE,Environmental Services,Director of Place,General Materials,,22/07/2015," 1,205.00 ",,"Works - Construction, Repair & Maintenance"
5205880,TRAVELERS INSURANCE COMPANY LTD,Multiple Heads of Service,Multiple Strategic Directorates,Reimbursement Paid To Insurers,,22/07/2015," 101,245.48 ",,Financial Services
5205188,TAMESIDE HOSPITAL NHS FOUNDATION TRUST,Public Health,Director of Public Health,Professional Services,,22/07/2015," 3,083.00 ",,Unclassified
5204473,A & G BUILDING & JOINERY SERVICES LTD,Housing,Director of Place,Adaptations - Jobs <#500,,22/07/2015, 500.00 ,,"Works - Construction, Repair & Maintenance"
5205829,CYCLESCHEME LTD,Multiple Heads of Service,Multiple Strategic Directorates,General Equipment Purchase,,22/07/2015," 2,692.45 ",,Unclassified
5204550,MONO ALARM INSTALLATIONS LTD.,Asset & Investment Partnership Management,Director of Place,Security Services,,22/07/2015, 608.00 ,,Facilities & Management Services
5205420,STOCKPORT NHS FOUNDATION TRUST,Strategy & Early Intervention,Director of People,Professional Services,,22/07/2015," 2,536.05 ",,Medical
5205747, ,Adult Social Care,Director of People,Day Care Fees,Redacted Supplier,22/07/2015, 593.15 ,,Unclassifiable
5205911,HUGH MASON PROPERTIES LIMITED,Adult Social Care,Director of People,Non-Authority Accommodation Rental,,22/07/2015," 2,207.18 ",,Facilities & Management Services
5205941,HUGH MASON PROPERTIES LIMITED,Adult Social Care,Director of People,Non-Authority Accommodation Rental,,22/07/2015," 2,471.40 ",,Facilities & Management Services
5205942,HUGH MASON PROPERTIES LIMITED,Adult Social Care,Director of People,Non-Authority Accommodation Rental,,22/07/2015," 2,207.18 ",,Facilities & Management Services
5205166,POSITIVE STEPS OLDHAM,Strategy & Early Intervention,Director of People,Professional Services,,22/07/2015," 36,986.30 ",,Unclassified
5205288,REGENDA LIMITED,Adult Social Care,Director of People,Non-Authority Accommodation Rental,,22/07/2015," 15,596.36 ",,Housing Management
5205287,REGENDA LIMITED,Adult Social Care,Director of People,Non-Authority Accommodation Rental,,22/07/2015," 2,169.66 ",,Housing Management
5205289,REGENDA LIMITED,Adult Social Care,Director of People,Non-Authority Accommodation Rental,,22/07/2015," 15,596.36 ",,Housing Management
5205863,REGENDA LIMITED,Adult Social Care,Director of People,Non-Authority Accommodation Rental,,22/07/2015," 15,596.36 ",,Housing Management
5205939,NORTHERN PROPERTIES LTD,Adult Social Care,Director of People,Non-Authority Accommodation Rental,,22/07/2015," 1,847.29 ",,Facilities & Management Services
5206020,COMFORT CALL LIMITED,Adult Social Care,Director of People,Homecare Fees,,22/07/2015," 32,957.99 ",,Medical
5206021,COMFORT CALL LIMITED,Adult Social Care,Director of People,Homecare Fees,,22/07/2015," 33,561.13 ",,Medical
5206017,COMFORT CALL LIMITED,Adult Social Care,Director of People,Homecare Fees,,22/07/2015," 34,831.41 ",,Medical
5205910,CARILLION AMBS LTD,Governance,Director of Governance and Resources,Refreshments,,22/07/2015," 5,142.99 ",,"Works -  Construction, Repair & Maintenance"
5205614,DAISY COMMUNICATIONS LTD,Multiple Heads of Service,Multiple Strategic Directorates,Telephone Landline Costs,,22/07/2015," 4,887.73 ",,Public Bodies
5205723,RICOH UK,Development Growth & Investment,Director of Place,Printing And Stationery,,22/07/2015," 1,066.08 ",,Facilities & Management Services
5205935,THE ETHEROW CENTRE CHARITABLE TRUST LTD,Public Health,Director of Public Health,General Lease,,22/07/2015," 3,750.00 ",,Financial Services
5204033,UPDATA INFRASTRUCTURE UK LTD,Multiple Heads of Service,Multiple Strategic Directorates,Communications Equipment,,22/07/2015," 1,320.00 ",,Consultancy
5199413,UPDATA INFRASTRUCTURE UK LTD,Multiple Heads of Service,Multiple Strategic Directorates,Communications Equipment,,22/07/2015, 630.00 ,,Consultancy
5205722,TRINITY MIRROR NORTH PUBLISHING LTD,Governance,Director of Governance and Resources,Statutory Advertising,,22/07/2015, 982.94 ,,Public Bodies
5204369,LES HALMAN NURSERIES LIMITED,Environmental Services,Director of Place,General Materials,,22/07/2015," 1,588.96 ",,Environmental Services
5205965,ADONI SOFTWARE,Digital Tameside,Director of Place,Computer Software,,22/07/2015," 2,400.00 ",,ICT
5205816,AFFINITY TRUST,Adult Social Care,Director of People,Homecare Fees,,22/07/2015," 115,511.41 ",,Social Community Care
5204555,KINGSTON BUSINESS CENTRE/ASHTON SELF STORE,Development Growth & Investment,Director of Place,Non-Authority Accommodation Rental,,22/07/2015, 530.00 ,,Facilities & Management Services
5205763, ,Childrens Services,Director of People,Cash Grants,Redacted Supplier,22/07/2015, 793.10 ,,Unclassifiable
5205726,ARCO LIMITED,Environmental Services,Director of Place,Protective Clothing,,22/07/2015, 524.61 ,,Clothing
5205672,MOSSCARE HOUSING LTD,Adult Social Care,Director of People,Non-Authority Accommodation Rental,,22/07/2015," 29,330.65 ",,Social Community Care Supplies & Services
5205560,PROGRESS CARE HOUSING ASSOCIATION LIMITED,Adult Social Care,Director of People,Non-Authority Accommodation Rental,,22/07/2015," 5,448.98 ",,Housing Management
5194893,BROXAP LIMITED,Environmental Services,Director of Place,General Materials,,22/07/2015," 1,350.00 ",,Highway Equipment & Materials�
5205950,GREATER MANCHESTER COMBINED AUTHORITY,Engineers Client,Director of Place,Engineers -External,,22/07/2015, 527.90 ,,Unclassified
5205881,GREATER MANCHESTER COMBINED AUTHORITY,Engineers Client,Director of Place,Engineers -External,,22/07/2015," 15,714.60 ",,Unclassified
5205757, ,Adult Social Care,Director of People,Day Care Fees,Redacted Supplier,22/07/2015," 1,081.64 ",,Unclassifiable
5205964,SPECIALIST COMPUTER CENTRES LIMITED,Digital Tameside,Director of Place,It Equipment,,22/07/2015," 2,700.52 ",,Information Communication Technology
5205826,SPECIALIST COMPUTER CENTRES LIMITED,Digital Tameside,Director of Place,Computer Hardware Maintenance Costs,,22/07/2015," 3,472.71 ",,Information Communication Technology
5205844,MAKING SPACE,Adult Social Care,Director of People,Voluntary Organisations Fees,,22/07/2015," 20,735.75 ",,Social Community Care Supplies & Services
5205876,GV MULTI-MEDIA,Governance,Director of Governance and Resources,General Equipment Repair & Maintenance,,22/07/2015, 670.00 ,,Information Communication Technology
5203771,XEROX (UK) LIMITED,Governance,Director of Governance and Resources,Printing And Stationery,,22/07/2015," 6,954.16 ",,Information Communication Technology
5205856,ORANGE PCS,Digital Tameside,Director of Place,Mobile Telephones,,22/07/2015," 2,741.57 ",,Information Communication Technology
5205854,ORANGE PCS,Digital Tameside,Director of Place,Mobile Telephones,,22/07/2015," 4,486.35 ",,Information Communication Technology
5205718,KILLGERM CHEMICALS LTD,Environmental Services,Director of Place,Pest Control Equipment,,22/07/2015," 1,967.68 ",,Environmental Services
5205196,TAMESIDE COLLEGE,Adults Early Intervention,Director of People,Refreshments,,22/07/2015, 715.00 ,,Unclassified
5193863,MASSEY & HARRIS LTD,Environmental Services,Director of Place,Play Equipment,,22/07/2015," 3,150.00 ",,Sports & Playground Equipment & Maintenance
5205191,BRIAN GLYNN & CO,Housing,Director of Place,Improvement Grants - Final Mandatory,,22/07/2015," 4,230.00 ",,"Works -  Construction, Repair & Maintenance"
5205833,ENVIRONMENTAL WATER SERVICES LTD,Adult Social Care,Director of People,Firefighting Equipment,,22/07/2015," 3,601.00 ",,Environmental Services
5205946,JACKSON & TAYLOR LTD,Housing,Director of Place,Improvement Grants - Final Mandatory,,22/07/2015," 6,000.00 ",,"Works -  Construction, Repair & Maintenance"
5205946,JACKSON & TAYLOR LTD,Development Growth & Investment,Director of Place,Improvement Grants - Final Mandatory,,22/07/2015, 480.00 ,,"Works -  Construction, Repair & Maintenance"
5204932,NORTH WEST CONSTRUCTION,Housing,Director of Place,Improvement Grants - Final Mandatory,,22/07/2015," 3,385.00 ",,"Works - Construction, Repair & Maintenance"
5205940,WESLEY PROPERTIES (NORTHERN) LTD,Adult Social Care,Director of People,Non-Authority Accommodation Rental,,22/07/2015," 1,369.89 ",,Facilities & Management Services
5199970,H MULLANEY & SON LTD,Asset & Investment Partnership Management,Director of Place,Refurbishment Construction Costs,,22/07/2015, 620.00 ,,Environmental Services
5205883,ASKEWS  AND HOLTS LIBRARY SERVICES LTD,Stronger Communities,Director of People,Purchase Books,,22/07/2015," 2,537.66 ",,Education
5205905,ELECTORAL REFORM SERVICES,Governance,Director of Governance and Resources,Printing And Stationery,,22/07/2015," 4,675.93 ",,Unclassified
5205897,ELECTORAL REFORM SERVICES,Governance,Director of Governance and Resources,Printing And Stationery,,22/07/2015," 2,156.98 ",,Unclassified
5205926,ELECTORAL REFORM SERVICES,Governance,Director of Governance and Resources,Printing And Stationery,,22/07/2015," 2,972.44 ",,Unclassified
5205928,ELECTORAL REFORM SERVICES,Governance,Director of Governance and Resources,Printing And Stationery,,22/07/2015," 41,607.50 ",,Unclassified
5205906,ELECTORAL REFORM SERVICES,Governance,Director of Governance and Resources,Printing And Stationery,,22/07/2015," 48,887.24 ",,Unclassified
5205907,ELECTORAL REFORM SERVICES,Governance,Director of Governance and Resources,Printing And Stationery,,22/07/2015," 6,523.18 ",,Unclassified
5205924,ELECTORAL REFORM SERVICES,Governance,Director of Governance and Resources,Printing And Stationery,,22/07/2015," 1,683.87 ",,Unclassified
5205938,STAMFORD PROPERTIES,Adult Social Care,Director of People,Non-Authority Accommodation Rental,,22/07/2015," 2,552.73 ",,Unclassifiable
5205944,STAMFORD PROPERTIES,Adult Social Care,Director of People,Non-Authority Accommodation Rental,,22/07/2015," 1,017.43 ",,Unclassifiable
5205767,BENCHMARK BUILDING SUPPLIES LTD,Development Growth & Investment,Director of Place,Planning Fees ,,22/07/2015," 1,925.00 ",,Building Construction Materials
5205945,CROFT INVESTMENTS LTD,Adult Social Care,Director of People,Non-Authority Accommodation Rental,,22/07/2015," 2,024.61 ",,Social Community Care Supplies & Services
5205943,HAMILTON PROPERTIES,Adult Social Care,Director of People,Non-Authority Accommodation Rental,,22/07/2015," 1,575.20 ",,Housing Management
5205861,WORLDPAY,Environmental Services,Director of Place,PDQ Fees,,22/07/2015," 1,389.62 ",,Financial Services
5205861,WORLDPAY,Exchequer,Director of Governance and Resources,PDQ Fees,,22/07/2015, 662.54 ,,Financial Services
5205861,WORLDPAY,Exchequer,Director of Governance and Resources,PDQ Fees,,22/07/2015," 5,095.25 ",,Financial Services
5205861,WORLDPAY,Asset & Investment Partnership Management,Director of Place,PDQ Fees,,22/07/2015," 1,158.01 ",,Financial Services
5205014,INSPIREDSPACES TAMESIDE LTD,Asset & Investment Partnership Management,Director of Place,Agency Staff,,22/07/2015," 36,964.60 ",,Consultancy
5205014,INSPIREDSPACES TAMESIDE LTD,Asset & Investment Partnership Management,Director of Place,Cleaning Materials,,22/07/2015," 3,395.42 ",,Consultancy
5205014,INSPIREDSPACES TAMESIDE LTD,Asset & Investment Partnership Management,Director of Place,Refreshments,,22/07/2015," 91,463.07 ",,Consultancy
5205008,INSPIREDSPACES TAMESIDE LTD,Asset & Investment Partnership Management,Director of Place,Building Maintenance,,22/07/2015," 142,736.36 ",,Consultancy
5205008,INSPIREDSPACES TAMESIDE LTD,Asset & Investment Partnership Management,Director of Place,Hire Of Rooms,,22/07/2015,"-18,822.05 ",,Consultancy
5205008,INSPIREDSPACES TAMESIDE LTD,Asset & Investment Partnership Management,Director of Place,Painting Works,,22/07/2015," 3,207.24 ",,Consultancy
5205008,INSPIREDSPACES TAMESIDE LTD,Asset & Investment Partnership Management,Director of Place,Professional Services,,22/07/2015," 80,900.00 ",,Consultancy
5205025,INSPIREDSPACES TAMESIDE LTD,Tameside Investment Partnership,Director of Place,External  Consultants,,22/07/2015," 9,075.00 ",,Consultancy
5205025,INSPIREDSPACES TAMESIDE LTD,Tameside Investment Partnership,Director of Place,Furniture And Fittings,,22/07/2015," 22,166.24 ",,Consultancy
5205025,INSPIREDSPACES TAMESIDE LTD,Tameside Investment Partnership,Director of Place,Refurbishment Construction Costs,,22/07/2015," 13,527.99 ",,Consultancy
5205025,INSPIREDSPACES TAMESIDE LTD,Tameside Investment Partnership,Director of Place,Furniture And Fittings,,22/07/2015, 654.00 ,,Consultancy
5205011,INSPIREDSPACES TAMESIDE LTD,Asset Management and Investment Partnership Management,Director of Place,Other Works,,22/07/2015," 1,082,672.29 ",,Consultancy
5205010,INSPIREDSPACES TAMESIDE LTD,Asset Management and Investment Partnership Management,Director of Place,Enabling Works,,22/07/2015," 1,023,075.55 ",,Consultancy
5205460,INSPIREDSPACES TAMESIDE (PROJECTCO2) LTD,Asset & Investment Partnership Management,Director of Place,Unitary Charge Payments,,22/07/2015," 17,453.01 ",,"Works - Construction, Repair & Maintenance"
5205074,BT REDCARE,Asset & Investment Partnership Management,Director of Place,Telephone Landline Costs,,22/07/2015," 20,264.00 ",,Facilities & Management Services
5205462,DROYLSDEN FOOTBALL CLUB,Tameside Investment Partnership,Director of Place,Other Works, ,22/07/2015," 43,200.00 ",,Public Bodies
5206181,ORANGE PCS,Digital Tameside,Director of Place,Mobile Telephones,,23/07/2015, 719.12 ,,Information Communication Technology
3250518,BURNT TREE GROUP LIMITED,Environmental Services,Director of Place,Additional Hire,,23/07/2015," 1,096.40 ",,Vehicles
3250518,BURNT TREE GROUP LIMITED,Environmental Services,Director of Place,Core Hire,,23/07/2015," 1,254.00 ",,Vehicles
3250518,DENNIS EAGLE LTD,Environmental Services,Director of Place,General Materials,,23/07/2015, 871.25 ,,Vehicles
3250518,F & G COMMERCIALS (OLDHAM) LIMITED,Environmental Services,Director of Place,General Materials,,23/07/2015," 1,152.16 ",,Vehicles
3250518,FAUN ZOELLER (UK) LTD,Transport,Director of Place,Debits Goods Received,,23/07/2015, 702.28 ,,Vehicles
3250518,I H S HOSEMASTER,Environmental Services,Director of Place,General Materials,,23/07/2015, 953.63 ,,Unclassifiable
3250518,MANCHESTER VAN HIRE LTD,Environmental Services,Director of Place,Additional Hire,,23/07/2015, 315.00 ,,Vehicles
3250518,MANCHESTER VAN HIRE LTD,Environmental Services,Director of Place,Core Hire,,23/07/2015, 638.00 ,,Vehicles
3250518,SHB HIRE LTD,Environmental Services,Director of Place,Core Hire,,23/07/2015," 1,835.10 ",,Vehicles
3250518,RIVERSIDE TRUCK RENTAL LIMITED,Environmental Services,Director of Place,Additional Hire,,23/07/2015, 700.00 ,,Vehicles
3250518,RIVERSIDE TRUCK RENTAL LIMITED,Environmental Services,Director of Place,Replacement Hire,,23/07/2015," 4,290.00 ",,Vehicles
3250518,RIVERSIDE TRUCK RENTAL LIMITED,Environmental Services,Director of Place,Workshop Recharges including Misuse & Damage Costs,,23/07/2015, 335.00 ,,Vehicles
5205317,TRANSPORT FOR GREATER MANCHESTER,Environmental Services,Director of Place,Engineers -External,,23/07/2015," 1,170.00 ",,Transport
5206175,MR KEN STOCKTON,Environmental Services,Director of Place,General Materials,Business Payment,23/07/2015, 750.00 ,,Horticultural
5206152,PEOPLE FIRST TAMESIDE,Adult Social Care,Director of People,Professional Services,,23/07/2015," 5,538.60 ",,Social Community Care Supplies & Services
5205192,RAYMOND C HARRISON BUILDERS,Housing,Director of Place,Improvement Grants - Final Mandatory,,23/07/2015," 4,928.00 ",,"Works -  Construction, Repair & Maintenance"
5206078,COMFORT CALL LIMITED,Adult Social Care,Director of People,Homecare Fees,,23/07/2015," 35,716.46 ",,Medical
5206139,PRIDE OF TAMESIDE BUSINESS AWARDS,Environmental Services,Director of Place,Professional Services,,23/07/2015," 1,500.00 ",,Financial Services
5206099,MRL HEALTHCARE LIMITED,Adult Social Care,Director of People,Homecare Fees,,23/07/2015," 1,317.25 ",,Social Community Care Supplies & Services
5206155,ABLE CARE AND SUPPORT SERVICES LTD,Adult Social Care,Director of People,Homecare Fees,,23/07/2015," 1,667.44 ",,Social Community Care Supplies & Services
5205245, ,Strategy & Early Intervention,Director of People,Personal Needs Entertainments & Holidays,Redacted Supplier,23/07/2015, 600.00 ,,Unclassifiable
5200183,STUFF AND NONSENSE THEATRE COMPANY LTD,Stronger Communities,Director of People,Professional Entertainment Services,,23/07/2015," 1,350.00 ",,Leisure Services
5203988,G P WILSON DECORATORS,Adult Social Care,Director of People,Fixtures & Fittings Purchase,,23/07/2015," 1,500.00 ",,Unclassified
5205615,FALCON CHAMBERS,Asset & Investment Partnership Management,Director of Place,Legal Fees,,23/07/2015, 750.00 ,,Legal Services
5206165,DIRECT CARE (NORTH WEST) LTD,Adult Social Care,Director of People,Homecare Fees,,23/07/2015, 533.81 ,,Social Community Care Supplies & Services
5206167,DIRECT CARE (NORTH WEST) LTD,Adult Social Care,Director of People,Homecare Fees,,23/07/2015, 567.59 ,,Social Community Care Supplies & Services
5206157,DIRECT CARE (NORTH WEST) LTD,Adult Social Care,Director of People,Homecare Fees,,23/07/2015, 508.19 ,,Social Community Care Supplies & Services
5205868,GREATER MANCHESTER COMBINED AUTHORITY,Engineers Client,Director of Place,Engineers -External,,23/07/2015," 9,722.83 ",,Unclassified
5206177,TAMESIDE SPORTS TRUST,Public Health,Director of Public Health,Grants to Organisations,,23/07/2015," 2,500.00 ",,Leisure Services
5206086,M.C. & M.A. STEWART HAULAGE LTD,Environmental Services,Director of Place,General Materials,,23/07/2015, 532.12 ,,Horticultural
5206095,M.C. & M.A. STEWART HAULAGE LTD,Environmental Services,Director of Place,General Materials,,23/07/2015, 887.50 ,,Horticultural
5206160,"TAMESIDE, OLDHAM AND GLOSSOP MIND",Adult Social Care,Director of People,Professional Services,,23/07/2015," 2,448.00 ",,Social Community Care Supplies & Services
5206194,BRIAN GLYNN & CO,Housing,Director of Place,Improvement Grants - Final Mandatory,,23/07/2015," 3,010.00 ",,"Works -  Construction, Repair & Maintenance"
5204562,TAMESIDE ARTS LTD,Adult Social Care,Director of People,Professional Services,,23/07/2015," 1,071.00 ",,Leisure Services
5206150,TAMESIDE ARTS LTD,Adult Social Care,Director of People,Professional Services,,23/07/2015," 1,071.00 ",,Leisure Services
5206151,TAMESIDE ARTS LTD,Adult Social Care,Director of People,Professional Services,,23/07/2015," 1,071.00 ",,Leisure Services
5204177,K P DODD CONSTRUCTION LTD,Housing,Director of Place,Improvement Grants - Final Mandatory,,23/07/2015, 856.25 ,,"Works - Construction, Repair & Maintenance"
460304,AMARA CARE LTD,Adult Social Care,Director of People,Nursing Home Long Stay Fees,,27/07/2015," 6,487.86 ",,Social Community Care Supplies & Services
460304,AUDEN HOUSE RESIDENTIAL HOME,Adult Social Care,Director of People,Nursing Home Long Stay Fees,,27/07/2015," 10,952.89 ",,Social Community Care Supplies & Services
460304,BAMFORD GRANGE N/H,Adult Social Care,Director of People,Nursing Home Long Stay Fees,,27/07/2015," 2,837.43 ",,Social Community Care Supplies & Services
460304,BLACKCLIFFE LTD,Adult Social Care,Director of People,Nursing Home Long Stay Fees,,27/07/2015," 58,524.85 ",,Social Community Care Supplies & Services
460304,BOURNE HOUSE RESIDENTIAL HOME,Adult Social Care,Director of People,Nursing Home Long Stay Fees,,27/07/2015," 39,094.65 ",,Social Community Care Supplies & Services
460304,BROOKVALE,Adult Social Care,Director of People,Nursing Home Long Stay Fees,,27/07/2015," 6,883.85 ",,Social Community Care Supplies & Services
460304,BROUGHTON HOUSE HOME FOR  EX-SERVICE PERSONNEL,Adult Social Care,Director of People,Nursing Home Long Stay Fees,,27/07/2015," 1,854.49 ",,Social Community Care Supplies & Services
460304,CARE UK LEARNING DISABILITIES SERVS LTD,Adult Social Care,Director of People,Nursing Home Long Stay Fees,,27/07/2015," 10,809.26 ",,Public Bodies
460304,CHADDERTON TOTAL CAREUNIT LTD,Adult Social Care,Director of People,Nursing Home Long Stay Fees,,27/07/2015," 6,441.12 ",,Social Community Care Supplies & Services
460304,CHARNLEY HOUSE LIMITED,Adult Social Care,Director of People,Nursing Home Long Stay Fees,,27/07/2015," 12,812.50 ",,Social Community Care Supplies & Services
460304,CLARKSON HOUSE,Adult Social Care,Director of People,Nursing Home Long Stay Fees,,27/07/2015," 19,159.07 ",,Social Community Care Supplies & Services
460304,CLEARWATER CARE,Adult Social Care,Director of People,Nursing Home Long Stay Fees,,27/07/2015," 3,508.98 ",,Social Community Care
460304,CLIFFEMOUNT COMMUNITY CARE,Adult Social Care,Director of People,Nursing Home Long Stay Fees,,27/07/2015," 9,246.46 ",,Public Bodies
460304,COMPASS CARE LIMITED,Adult Social Care,Director of People,Nursing Home Long Stay Fees,,27/07/2015," 4,459.53 ",,Social Community Care Supplies & Services
460304,DANSHELL HEALTHCARE LTD,Adult Social Care,Director of People,Nursing Home Long Stay Fees,,27/07/2015," 8,960.00 ",,Social Community Care
460304,DOM POLSKI CARE HOME,Adult Social Care,Director of People,Nursing Home Long Stay Fees,,27/07/2015," 1,876.16 ",,Social Community Care
460304,ELDER HOMES GROUP,Adult Social Care,Director of People,Nursing Home Long Stay Fees,,27/07/2015," 57,584.08 ",,Social Community Care Supplies & Services
460304,ERNELESTHORP NURSING HOME,Adult Social Care,Director of People,Nursing Home Long Stay Fees,,27/07/2015," 1,783.43 ",,Social Community Care Supplies & Services
460304,FAIRFIELD VIEW CARE LTD,Adult Social Care,Director of People,Nursing Home Long Stay Fees,,27/07/2015," 42,214.25 ",,Social Community Care Supplies & Services
460304,GLENROYD CARE HOME,Adult Social Care,Director of People,Nursing Home Long Stay Fees,,27/07/2015," 1,786.84 ",,Social Community Care Supplies & Services
460304,GRANGEFIELD,Adult Social Care,Director of People,Nursing Home Long Stay Fees,,27/07/2015, 988.90 ,,Social Community Care
460304,HC ONE OF A KIND - GUIDE LANE,Adult Social Care,Director of People,Nursing Home Long Stay Fees,,27/07/2015," 23,759.65 ",,Social Community Care
460304,HC ONE OF A KIND - KINGS PARK,Adult Social Care,Director of People,Nursing Home Long Stay Fees,,27/07/2015," 53,944.57 ",,Social Community Care
460304,JIGSAW CREATIVE CARE LIMITED,Adult Social Care,Director of People,Nursing Home Long Stay Fees,,27/07/2015," 8,179.57 ",,Social Community Care Supplies & Services
460304,LAUREL BANK RESIDENTIAL CARE HOME LTD,Adult Social Care,Director of People,Nursing Home Long Stay Fees,,27/07/2015," 9,647.19 ",,Social Community Care Supplies & Services
460304,LIGHTBOWNE HALL,Adult Social Care,Director of People,Nursing Home Long Stay Fees,,27/07/2015, 662.03 ,,Unclassified
460304,LOUTH CARE LTD,Adult Social Care,Director of People,Nursing Home Long Stay Fees,,27/07/2015," 1,820.14 ",,Social Community Care
460304,MERIDIAN HEALTHCARE LTD,Adult Social Care,Director of People,Nursing Home Long Stay Fees,,27/07/2015," 824,521.04 ",,Social Community Care Supplies & Services
460304,MOSS COTTAGE NURSING HOME,Adult Social Care,Director of People,Nursing Home Long Stay Fees,,27/07/2015," 39,936.74 ",,Social Community Care Supplies & Services
460304,OAKWOOD CARE CENTRE,Adult Social Care,Director of People,Nursing Home Long Stay Fees,,27/07/2015," 7,062.64 ",,Social Community Care Supplies & Services
460304,PENDLEBURY CARE HOMES LTD,Adult Social Care,Director of People,Nursing Home Long Stay Fees,,27/07/2015," 1,895.87 ",,Social Community Care Supplies & Services
460304,POLEBANK HALL RESIDENTIAL CARE HOME LTD,Adult Social Care,Director of People,Nursing Home Long Stay Fees,,27/07/2015," 9,360.09 ",,Social Community Care
460304,PROGRESS ADULT SERVICES LIMITED,Adult Social Care,Director of People,Nursing Home Long Stay Fees,,27/07/2015," 13,797.21 ",,Social Community Care
460304,ST GEORGE'S NURSING HOME (OLDHAM) LTD,Adult Social Care,Director of People,Nursing Home Long Stay Fees,,27/07/2015," 21,395.43 ",,Social Community Care Supplies & Services
460304,ST LAWRENCES LODGE,Adult Social Care,Director of People,Nursing Home Long Stay Fees,,27/07/2015," 10,129.69 ",,Social Community Care Supplies & Services
460304,ST MARY'S CONTINUING CARE LTD,Adult Social Care,Director of People,Nursing Home Long Stay Fees,,27/07/2015, 590.55 ,,Social Community Care Supplies & Services
460304,STALEY HOUSE EPH,Adult Social Care,Director of People,Nursing Home Long Stay Fees,,27/07/2015," 31,349.84 ",,Social Community Care Supplies & Services
460304,SUNNY BANK PRS LTD,Adult Social Care,Director of People,Nursing Home Long Stay Fees,,27/07/2015," 2,633.23 ",,Social Community Care Supplies & Services
460304,THE ALEXANDRA,Adult Social Care,Director of People,Nursing Home Long Stay Fees,,27/07/2015," 2,139.00 ",,Social Community Care Supplies & Services
460304,THE DAVID LEWIS CENTRE,Adult Social Care,Director of People,Nursing Home Long Stay Fees,,27/07/2015," 14,437.21 ",,Social Community Care
460304,THE HESLEY GROUP LTD,Adult Social Care,Director of People,Nursing Home Long Stay Fees,,27/07/2015," 9,955.87 ",,Social Community Care Supplies & Services
460304,THE OLD VICARAGE,Adult Social Care,Director of People,Nursing Home Long Stay Fees,,27/07/2015," 1,580.03 ",,Social Community Care Supplies & Services
460304,THE ROYAL ELMS REST HOMES,Adult Social Care,Director of People,Nursing Home Long Stay Fees,,27/07/2015," 1,841.58 ",,Social Community Care
460304,THE VICARAGE RESIDENTIAL CARE HOME,Adult Social Care,Director of People,Nursing Home Long Stay Fees,,27/07/2015," 9,628.02 ",,Social Community Care Supplies & Services
460304,THORNCLIFFE GRANGE NURSING HOME,Adult Social Care,Director of People,Nursing Home Long Stay Fees,,27/07/2015," 30,381.26 ",,Social Community Care Supplies & Services
460304,TURNING POINT,Public Health,Director of Public Health,Nursing Home Long Stay Fees,,27/07/2015," 6,440.00 ",,Social Community Care Supplies & Services
460304,VICTORIA NURSING HOME,Adult Social Care,Director of People,Nursing Home Long Stay Fees,,27/07/2015," 8,768.57 ",,Social Community Care Supplies & Services
460304,WINDMILL CARE HOME,Adult Social Care,Director of People,Nursing Home Long Stay Fees,,27/07/2015," 2,010.12 ",,Social Community Care Supplies & Services
460304,WOODLANDS RESIDENTIAL CARE HOME,Adult Social Care,Director of People,Nursing Home Long Stay Fees,,27/07/2015," 9,749.59 ",,Social Community Care Supplies & Services
460304,APPLETON MANOR,Adult Social Care,Director of People,Nursing Home Long Stay Fees,,27/07/2015," 1,439.77 ",,Social Community Care
460304,THE FREMANTLE TRUST,Adult Social Care,Director of People,Nursing Home Long Stay Fees,,27/07/2015," 3,061.47 ",,Social Community Care Supplies & Services
460304,LEONARD CHESHIRE DISABILITY,Adult Social Care,Director of People,Nursing Home Long Stay Fees,,27/07/2015," 16,730.00 ",,Social Community Care Supplies & Services
460304,EAGLE HOUSE CARE HOME,Adult Social Care,Director of People,Nursing Home Long Stay Fees,,27/07/2015," 3,034.59 ",,Social Community Care Supplies & Services
460304,GREATER MANCHESTER WEST MENTAL HEALTH FOUNDATION TRUST,Public Health,Director of Public Health,Nursing Home Long Stay Fees,,27/07/2015," 9,614.00 ",,Medical
460304,TREETON GRANGE NURSING HOME,Adult Social Care,Director of People,Nursing Home Long Stay Fees,,27/07/2015," 5,001.31 ",,Social Community Care Supplies & Services
460304,HEATHCOTES CARE,Adult Social Care,Director of People,Nursing Home Long Stay Fees,,27/07/2015," 30,559.95 ",,Social Community Care
460304,BRIGHTERKIND,Adult Social Care,Director of People,Nursing Home Long Stay Fees,,27/07/2015," 27,724.31 ",,Social Community Care Supplies & Services
460304,FERN BANK,Adult Social Care,Director of People,Nursing Home Long Stay Fees,,27/07/2015," 19,901.66 ",,Social Community Care Supplies & Services
460304,ACORN LODGE CARE HOME,Adult Social Care,Director of People,Nursing Home Long Stay Fees,,27/07/2015," 1,857.79 ",,Social Community Care Supplies & Services
460304,RIVERSIDE CARE CENTRE,Adult Social Care,Director of People,Nursing Home Long Stay Fees,,27/07/2015," 53,960.73 ",,Social Community Care Supplies & Services
460304,EQUALIBRIUM HEALTH CARE,Adult Social Care,Director of People,Nursing Home Long Stay Fees,,27/07/2015," 22,501.98 ",,Social Community Care Supplies & Services
460304,EHC MOSTON GRANGE LTD,Adult Social Care,Director of People,Nursing Home Long Stay Fees,,27/07/2015," 10,663.44 ",,Social Community Care Supplies & Services
460304,HOMELEIGH,Adult Social Care,Director of People,Nursing Home Long Stay Fees,,27/07/2015," 2,435.71 ",,Social Community Care Supplies & Services
29000028,AL-ARAM PHARMA LTD T/A DROYLSDEN PHARMACY,Public Health,Director of Public Health,Local Enhanced Services,,27/07/2015, 563.00 ,,Medical Services
29000028,BOOTS UK LTD,Public Health,Director of Public Health,Local Enhanced Services,,27/07/2015," 1,978.68 ",,Unclassified
29000028,DAVAAR MEDICAL CENTRE,Public Health,Director of Public Health,Local Enhanced Services,,27/07/2015, 682.90 ,,Consultancy
29000028,DONNEYBROOK MEDICAL CENTRE,Public Health,Director of Public Health,Local Enhanced Services,,27/07/2015, 597.40 ,,Medical
29000028,DONNEYBROOK MEDICAL CENTRE,Public Health,Director of Public Health,National Enhanced Services,,27/07/2015," 3,616.00 ",,Medical
29000028,GROSVENOR MEDICAL CENTRE,Public Health,Director of Public Health,Local Enhanced Services,,27/07/2015, 572.70 ,,Medical Services
29000028,HAUGHTON-THORNLEY MEDICAL CENTRE,Public Health,Director of Public Health,Local Enhanced Services,,27/07/2015," 6,168.30 ",,Unclassified
29000028,LLOYDS PHARMACY LTD,Public Health,Director of Public Health,Local Enhanced Services,,27/07/2015," 1,651.79 ",,Consultancy
29000028,LOCKSIDE MEDICAL CENTRE,Public Health,Director of Public Health,Local Enhanced Services,,27/07/2015, 924.00 ,,Unclassified
29000028,LOCKSIDE MEDICAL CENTRE,Public Health,Director of Public Health,National Enhanced Services,,27/07/2015," 1,960.00 ",,Unclassified
29000028,MOSSLEY MEDICAL PRACTICE,Public Health,Director of Public Health,Local Enhanced Services,,27/07/2015, 608.00 ,,Consultancy
29000028,MOSSLEY MEDICAL PRACTICE,Public Health,Director of Public Health,National Enhanced Services,,27/07/2015," 6,311.00 ",,Consultancy
29000028,STAMFORD HOUSE MEDICAL CENTRE,Public Health,Director of Public Health,Local Enhanced Services,,27/07/2015," 1,774.00 ",,Medical
29000028,THE BROOKE SURGERY,Public Health,Director of Public Health,Local Enhanced Services,,27/07/2015, 805.50 ,,Consultancy
29000028,WEST END MEDICAL PRACTICE,Public Health,Director of Public Health,Local Enhanced Services,,27/07/2015, 736.00 ,,Consultancy
29000028,WEST END MEDICAL PRACTICE,Public Health,Director of Public Health,National Enhanced Services,,27/07/2015," 2,656.00 ",,Consultancy
29000028,WINDMILL MEDICAL PRACTICE,Public Health,Director of Public Health,Local Enhanced Services,,27/07/2015, 914.50 ,,Unclassified
29000028,WINDMILL MEDICAL PRACTICE,Public Health,Director of Public Health,National Enhanced Services,,27/07/2015," 2,656.00 ",,Unclassified
29000028,S2 ENTERPRISE LTD T/A PENNY MEADOW PHARMACY,Public Health,Director of Public Health,Local Enhanced Services,,17/08/2015," 1,607.00 ",,Consultancy
29000028,AWBURN HOUSE MEDICAL PRACTICE,Public Health,Director of Public Health,Local Enhanced Services,,27/07/2015," 1,495.00 ",,Consultancy
29000028,CHURCHGATE SURGERY,Public Health,Director of Public Health,Local Enhanced Services,,27/07/2015, 213.00 ,,Consultancy
29000028,CHURCHGATE SURGERY,Public Health,Director of Public Health,National Enhanced Services,,27/07/2015," 2,656.00 ",,Consultancy
29000028,WELL PHARMACY,Public Health,Director of Public Health,Local Enhanced Services,,27/07/2015," 2,762.60 ",,Unclassified
29000028,CHAPEL STREET MEDICAL CENTRE,Public Health,Director of Public Health,Local Enhanced Services,,27/07/2015," 1,623.80 ",,Consultancy
29000028,MARKET STREET MEDICAL PRACTICE,Public Health,Director of Public Health,Local Enhanced Services,,27/07/2015," 1,050.00 ",,Medical
29000028,CLARENDON MEDICAL PRACTICE,Public Health,Director of Public Health,Local Enhanced Services,,27/07/2015," 1,703.50 ",,Consultancy
29000028,HIGHLANDS & TRAFALGAR SQUARE SURGERY,Public Health,Director of Public Health,Local Enhanced Services,,27/07/2015, 939.00 ,,Consultancy
29000028,THE PHARMACY- WINDMILL LANE,Public Health,Director of Public Health,Local Enhanced Services,,27/07/2015, 636.89 ,,Consultancy
29000028,TESCO INSTORE PHARMACY,Public Health,Director of Public Health,Local Enhanced Services,,27/07/2015, 936.41 ,,Consultancy
29000028,ASDA PHARMACY,Public Health,Director of Public Health,Local Enhanced Services,,27/07/2015," 1,834.59 ",,Consultancy
5205908,EON ENERGY,Adult Social Care,Director of People,Telephone Landline Costs,,27/07/2015, 550.52 ,,Utilities
5206145,GREENSCAPE,Engineers Client,Director of Place,Highway Construction,,27/07/2015, 985.00 ,,"Works - Construction, Repair & Maintenance"
5205318,TRANSPORT FOR GREATER MANCHESTER,Engineers Client,Director of Place,Engineers -External,,27/07/2015," 1,200.00 ",,Transport
5206417,RAYMOND C HARRISON BUILDERS,Housing,Director of Place,Improvement Grants - Final Mandatory,,27/07/2015, 985.60 ,,"Works -  Construction, Repair & Maintenance"
5206376,PARKLANE,Environmental Services,Director of Place,Hired Transport,,27/07/2015," 1,742.40 ",,Transport
5206377,PARKLANE,Environmental Services,Director of Place,Hired Transport,,27/07/2015," 2,112.00 ",,Transport
5206183,PENNINE CARE IN PATIENT SERVS PRIORY,Education,Director of People,Voluntary Organisations Fees,,27/07/2015," 3,325.00 ",,Social Community Care
5206186,PENNINE CARE IN PATIENT SERVS PRIORY,Education,Director of People,Voluntary Organisations Fees,,27/07/2015," 3,325.00 ",,Social Community Care
5206184,PENNINE CARE IN PATIENT SERVS PRIORY,Education,Director of People,Voluntary Organisations Fees,,27/07/2015," 3,850.00 ",,Social Community Care
5206182,PENNINE CARE IN PATIENT SERVS PRIORY,Education,Director of People,Voluntary Organisations Fees,,27/07/2015," 1,400.00 ",,Social Community Care
5206247,MRL HEALTHCARE LIMITED,Adult Social Care,Director of People,Homecare Fees,,27/07/2015," 1,492.37 ",,Social Community Care Supplies & Services
5206245,MRL HEALTHCARE LIMITED,Adult Social Care,Director of People,Homecare Fees,,27/07/2015," 1,854.25 ",,Social Community Care Supplies & Services
5206248,MRL HEALTHCARE LIMITED,Adult Social Care,Director of People,Homecare Fees,,27/07/2015," 1,349.28 ",,Social Community Care Supplies & Services
5206246,MRL HEALTHCARE LIMITED,Adult Social Care,Director of People,Homecare Fees,,27/07/2015," 19,215.00 ",,Social Community Care Supplies & Services
5206249,MRL HEALTHCARE LIMITED,Adult Social Care,Director of People,Homecare Fees,,27/07/2015," 19,215.00 ",,Social Community Care Supplies & Services
5206303,EMPRESS CONNECT,Asset & Investment Partnership Management,Director of Place,Security Equipment,,27/07/2015," 1,035.00 ",,Information Communication Technology
5204845,VYSIONICS ITS LTD,Environmental Services,Director of Place,General Materials,,27/07/2015," 12,897.00 ",,Traffic Management
5206347,EVOLUTION INTERNET LLP,Education,Director of People,Subscriptions,,27/07/2015," 4,680.00 ",,Unclassifiable
470624,W & B FORMWORK CO 1990,Environmental Services,Director of Place,Sub-contractor Services,,30/07/2015," 2,350.00 ",,"Works - Construction, Repair & Maintenance"
470624,BRAMHALL SURFACING LTD,Environmental Services,Director of Place,Sub-contractor Services,,27/07/2015," 24,659.14 ",,"Works - Construction, Repair & Maintenance"
5204456,COMPLETE BACKGROUND SCREENING LTD,Governance,Director of Governance and Resources,Professional Services,,27/07/2015," 1,867.00 ",,Unclassifiable
5206173,MAGS ROBERTS,Adult Social Care,Director of People,Professional Services,Business Payment,27/07/2015," 1,082.00 ",,Human Resources
5205852,DIMENSION DATA ADVANCED INFRASTRUCTURE LTD,Engineers Client,Director of Place,Engineers -External,,27/07/2015," 8,597.39 ",,Facilities & Management Services
5206336,PRISM MEDICAL UK,Housing,Director of Place,Improvement Grants - Final Mandatory,,27/07/2015," 2,779.28 ",,Medical
5197601,CALCURATE,Exchequer,Director of Governance and Resources,Subscriptions,,27/07/2015, 620.00 ,,Unclassifiable
5204998,DEKKO WINDOW SYSTEMS LTD,Asset & Investment Partnership Management,Director of Place,Electricity,,27/07/2015, 638.82 ,,Utilities
5206158,DIRECT CARE (NORTH WEST) LTD,Adult Social Care,Director of People,Homecare Fees,,27/07/2015," 10,029.21 ",,Social Community Care Supplies & Services
5206149,DIRECT CARE (NORTH WEST) LTD,Adult Social Care,Director of People,Homecare Fees,,27/07/2015," 10,446.56 ",,Social Community Care Supplies & Services
5206154,DIRECT CARE (NORTH WEST) LTD,Adult Social Care,Director of People,Homecare Fees,,27/07/2015," 10,752.97 ",,Social Community Care Supplies & Services
5206100,M.C. & M.A. STEWART HAULAGE LTD,Environmental Services,Director of Place,General Materials,,27/07/2015," 3,847.51 ",,Horticultural
5206085,M.C. & M.A. STEWART HAULAGE LTD,Environmental Services,Director of Place,General Materials,,27/07/2015," 1,307.25 ",,Horticultural
5206084,M.C. & M.A. STEWART HAULAGE LTD,Environmental Services,Director of Place,General Materials,,27/07/2015, 830.00 ,,Horticultural
5206311,NOMIX-ENVIRO LTD,Environmental Services,Director of Place,General Materials,,27/07/2015, 834.40 ,,Horticultural
5205499,THRESHOLD HOUSING PROJECT,Stronger Communities,Director of People,Supporting People Gross Contract,,27/07/2015," 27,259.75 ",,Housing Management
5206179,M G DOMESTIC,Adult Social Care,Director of People,Fixtures & Fittings Purchase,,27/07/2015, 559.99 ,,Domestic Goods
5204925,NEW CHARTER HOUSING TRUST GROUP,Stronger Communities,Director of People,Lettings/Waiting List,,27/07/2015," 19,680.00 ",,Social Community Care Supplies & Services
5197663,RESULT SOFTWARE LTD,Exchequer,Director of Governance and Resources,Subscriptions,,27/07/2015, 700.00 ,,Information Communication Technology
5201509,WICKSTEED LEISURE LIMITED,Environmental Services,Director of Place,Play Equipment,,27/07/2015," 2,296.94 ",,Sports & Playground Equipment & Maintenance
5206359,ASKEWS  AND HOLTS LIBRARY SERVICES LTD,Stronger Communities,Director of People,Purchase Books,,27/07/2015," 1,440.15 ",,Education
5204126,PILAT HR SOLUTIONS,Governance,Director of Governance and Resources,Subscriptions,,27/07/2015," 1,995.00 ",,Consultancy
5204453,NSL LIMITED,Environmental Services,Director of Place,NSL Fees,,30/07/2015," 47,848.63 ",,Traffic Management
5206395,NSL LIMITED,Environmental Services,Director of Place,NSL Fees,,30/07/2015," 53,287.27 ",,Traffic Management
5201786,CARE UK HOMECARE,Adult Social Care,Director of People,Homecare Fees,,30/07/2015," 3,754.41 ",,Social Community Care Supplies & Services
5206583,CLEAPSS,Education,Director of People,Subscriptions,,30/07/2015," 3,696.53 ",,Education
5206153,POSITIVE MEDIA PROMOTIONS LTD,Development Growth & Investment,Director of Place,It Equipment,,30/07/2015, 714.00 ,,Facilities & Management Services
5205984,CALL A CAR (TAMESIDE) LTD,Asset & Investment Partnership Management,Director of Place,Hired Transport,,30/07/2015, 722.50 ,,Human Resources
5199640,JERSEY STREET PROPERTIES LIMITED,Development Growth & Investment,Director of Place,Contributions,,30/07/2015," 1,250.00 ",,Unclassified
5206580,HEALTH MANAGEMENT (UK) LTD,Governance,Director of Governance and Resources,Professional Consultancy Services,,30/07/2015," 8,475.30 ",,Medical
5206612,LIQUIDLOGIC LTD,Adult Social Care,Director of People,Computer Hardware Maintenance Costs,,30/07/2015," 9,101.05 ",,Information Communication Technology
5204229,MOSSLEY PRIVATE HIRE,Education,Director of People,Transport Of Pupils,,30/07/2015," 1,700.00 ",,Transport
5204228,MOSSLEY PRIVATE HIRE,Education,Director of People,Transport Of Pupils,,30/07/2015," 2,750.00 ",,Transport
5206430,FAB EVENTS LIMITED,Environmental Services,Director of Place,Professional Entertainment Services,,30/07/2015, 660.00 ,,Facilities & Management Services
5206396,TAMESIDE HOSPITAL NHS FOUNDATION TRUST,Public Health,Director of Public Health,Professional Services,,30/07/2015," 2,637.50 ",,Unclassified
5204575,TAMESIDE HOSPITAL NHS FOUNDATION TRUST,Public Health,Director of Public Health,Professional Services,,30/07/2015," 2,637.50 ",,Unclassified
5206360,CENTRAL MANCHESTER UNIVERSITY HOSPITAL NHS FT,Public Health,Director of Public Health,Professional Services,,30/07/2015," 27,876.25 ",,Human Resources
5205694,CENTRAL MANCHESTER UNIVERSITY HOSPITAL NHS FT,Public Health,Director of Public Health,Professional Services,,30/07/2015," 5,233.00 ",,Human Resources
5205892,UNIVERSITY HOSPITAL OF SOUTH MANCHESTER,Public Health,Director of Public Health,Professional Services,,30/07/2015," 1,801.96 ",,Unclassified
5205995,UNIVERSITY HOSPITAL OF SOUTH MANCHESTER,Public Health,Director of Public Health,Professional Services,,30/07/2015, 545.57 ,,Unclassified
5206503,PARITOR LTD,Education,Director of People,Computer Software,,30/07/2015," 1,125.00 ",,Information Communication Technology
5204986,LIFECENTRE HATTERSLEY,Stronger Communities,Director of People,Training Course Costs,,30/07/2015," 1,500.00 ",,Unclassifiable
5204983,LIFECENTRE HATTERSLEY,Stronger Communities,Director of People,Training Course Costs,,30/07/2015," 1,538.00 ",,Unclassifiable
5205426,STOCKPORT NHS FOUNDATION TRUST,Public Health,Director of Public Health,Professional Services,,30/07/2015," 254,220.00 ",,Medical
5205484,REDDIPAK LIMITED,Environmental Services,Director of Place,Purchase Wheeled Bins,,30/07/2015, 736.20 ,,Unclassifiable
5205785,NHS TAMESIDE AND GLOSSOP CCG,Adult Social Care,Director of People,Independent Sector Care Fees,,30/07/2015," 25,000.00 ",,Medical
5205612,TYNETEC,Adult Social Care,Director of People,It Equipment,,30/07/2015," 1,363.50 ",,Social Community Care
5204895,TYNETEC,Adult Social Care,Director of People,It Equipment,,30/07/2015," 2,519.50 ",,Social Community Care
5206572,ORACLE CORPORATION UKLTD,Digital Tameside,Director of Place,Computer Software Maintenance Costs,,30/07/2015," 2,787.06 ",,Information Communication Technology
5206504,SOFTCAT LIMITED,Digital Tameside,Director of Place,Computer Software Maintenance Costs,,30/07/2015," 19,913.40 ",,Information Communication Technology
5206529,PRD PROPERTY SERVICES LTD,Governance,Director of Governance and Resources,Legal Fees,,30/07/2015," 4,770.00 ",,Facilities & Management Services
5206037,RNIB,Adult Social Care,Director of People,Subscriptions,,30/07/2015, 550.00 ,,Unclassified
5206185,PENNINE CARE IN PATIENT SERVS PRIORY,Education,Director of People,Voluntary Organisations Fees,,30/07/2015," 3,500.00 ",,Social Community Care
5206511,DR MARGARET SMITH,Education,Director of People,Professional Services,Business Payment,30/07/2015," 1,600.00 ",,Medical
5204753,NEW BRIDGE HORIZONS,Adult Social Care,Director of People,Homecare Fees,,30/07/2015, 508.00 ,,Social Community Care Supplies & Services
5206217,BROADWAY BUILDING CONTRACTORS (OLDHAM) LTD,Housing,Director of Place,Improvement Grants - Final Mandatory,,30/07/2015," 11,003.00 ",,"Works - Construction, Repair & Maintenance"
5204148,UPDATA INFRASTRUCTURE UK LTD,Multiple Heads of Service,Multiple Strategic Directorates,Communications Equipment,,30/07/2015," 14,260.00 ",,Consultancy
5206710,UPDATA INFRASTRUCTURE UK LTD,Multiple Heads of Service,Multiple Strategic Directorates,Telephone Landline Costs,,30/07/2015," 4,019.54 ",,Consultancy
5206705,UPDATA INFRASTRUCTURE UK LTD,Multiple Heads of Service,Multiple Strategic Directorates,Communications Equipment,,30/07/2015, 945.00 ,,Consultancy
5206707,UPDATA INFRASTRUCTURE UK LTD,Multiple Heads of Service,Multiple Strategic Directorates,Communications Equipment,,30/07/2015," 2,160.00 ",,Consultancy
5206703,UPDATA INFRASTRUCTURE UK LTD,Multiple Heads of Service,Multiple Strategic Directorates,Communications Equipment,,30/07/2015," 4,812.71 ",,Consultancy
5206708,UPDATA INFRASTRUCTURE UK LTD,Multiple Heads of Service,Multiple Strategic Directorates,Communications Equipment,,30/07/2015," 3,762.00 ",,Consultancy
5206706,UPDATA INFRASTRUCTURE UK LTD,Multiple Heads of Service,Multiple Strategic Directorates,Telephone Landline Costs,,30/07/2015, 821.51 ,,Consultancy
5206633,THE FURNISHING SERVICE LTD,Stronger Communities,Director of People,Fixtures & Fittings Purchase,,30/07/2015, 876.59 ,,Furniture
5206525,FOUNDATION (CENTRAL SERVICES),Stronger Communities,Director of People,Supporting People Gross Contract,,30/07/2015," 30,970.50 ",,Social Community Care Supp and Services
5206524,FOUNDATION (CENTRAL SERVICES),Stronger Communities,Director of People,Supporting People Gross Contract,,30/07/2015," 30,970.50 ",,Social Community Care Supp and Services
5204051,FRONTIER MEDICAL PRODUCTS,Public Health,Director of Public Health,Local Enhanced Services,,30/07/2015," 5,456.20 ",,Consultancy
5203418,ONE ADVENTURE LTD,Stronger Communities,Director of People,Professional Entertainment Services,,30/07/2015, 500.00 ,,Leisure Services
5206435,COMPLETE BACKGROUND SCREENING LTD,Governance,Director of Governance and Resources,Professional Services,,30/07/2015," 2,194.50 ",,Unclassifiable
5206531,4WAY CONSULTING LTD,Environmental Services,Director of Place,Engineers -External,,30/07/2015," 3,988.96 ",,Environmental Services
5206534,4WAY CONSULTING LTD,Environmental Services,Director of Place,Engineers -External,,30/07/2015, 673.43 ,,Environmental Services
5204371,R S & P HARRISON PROPERTY,Asset & Investment Partnership Management,Director of Place,Non-Authority Accommodation Rental,,30/07/2015," 1,666.66 ",,Unclassifiable
5206481, ,Adult Social Care,Director of People,Contribution to Maintenance Fee Income,Redacted Supplier,30/07/2015," 1,411.15 ",,Unclassifiable
5206473, ,Adult Social Care,Director of People,Contribution to Maintenance Fee Income,Redacted Supplier,30/07/2015, 851.90 ,,Unclassifiable
5206472, ,Adult Social Care,Director of People,Contribution to Maintenance Fee Income,Redacted Supplier,30/07/2015," 1,179.68 ",,Unclassifiable
5206350,XPRESS SOFTWARESOLUTIONS LTD,Governance,Director of Governance and Resources,Licences,,30/07/2015," 12,505.00 ",,Information Communication Technology
5206035,VODAFONE,Asset & Investment Partnership Management,Director of Place,Telephone Landline Costs,,30/07/2015, 886.00 ,,Information Communication Technology
5206537,DIRECT CARE (NORTH WEST) LTD,Adult Social Care,Director of People,Homecare Fees,,30/07/2015," 10,916.30 ",,Social Community Care Supplies & Services
5206539,DIRECT CARE (NORTH WEST) LTD,Adult Social Care,Director of People,Homecare Fees,,30/07/2015," 10,983.48 ",,Social Community Care Supplies & Services
5206713,DIRECT CARE (NORTH WEST) LTD,Adult Social Care,Director of People,Homecare Fees,,30/07/2015," 11,227.97 ",,Social Community Care Supplies & Services
5206541,DIRECT CARE (NORTH WEST) LTD,Adult Social Care,Director of People,Homecare Fees,,30/07/2015," 10,501.00 ",,Social Community Care Supplies & Services
5206540,DIRECT CARE (NORTH WEST) LTD,Adult Social Care,Director of People,Homecare Fees,,30/07/2015," 10,788.20 ",,Social Community Care Supplies & Services
5205610,CROMWELL POLYTHENE LTD.,Environmental Services,Director of Place,Purchase Wheeled Bins,,30/07/2015," 6,050.91 ",,Unclassified
5203727,CROMWELL POLYTHENE LTD.,Environmental Services,Director of Place,Purchase Wheeled Bins,,30/07/2015," 4,792.80 ",,Unclassified
5206420,F G MARSHALL LTD,Environmental Services,Director of Place,Plaques,,30/07/2015," 1,092.69 ",,Cemetery & Crematorium
5202551,SCOPE,Adult Social Care,Director of People,Homecare Fees,,30/07/2015," 12,838.72 ",,Unclassified
5204637,SCOPE,Adult Social Care,Director of People,Homecare Fees,,30/07/2015," 12,838.72 ",,Unclassified
5205630,THE TOGETHER TRUST,Adult Social Care,Director of People,Homecare Fees, ,30/07/2015," 1,968.00 ",,Social Community Care
5206344,NORTHERN POWER,Asset & Investment Partnership Management,Director of Place,Building Maintenance,,30/07/2015," 1,354.00 ",,Utilities
5206614,WILDE CONSULTING ENGINEERS,Engineers Client,Director of Place,Adaptations - Small Jobs,,30/07/2015," 6,592.62 ",,Consultancy
5206614,WILDE CONSULTING ENGINEERS,Engineers Client,Director of Place,Engineers -External,,30/07/2015," 8,389.07 ",,Consultancy
5206614,WILDE CONSULTING ENGINEERS,Engineers Client,Director of Place,Engineers -External,,30/07/2015, 121.04 ,,Consultancy
5206328,BT PLC,Asset & Investment Partnership Management,Director of Place,Telephone Landline Costs,,30/07/2015," 1,621.88 ",,Information Communication Technology
5206379,GRIP STEEL  REINFORCEMENTS LTD,Environmental Services,Director of Place,General Equipment Purchase,,30/07/2015," 1,000.00 ",,Cemetery & Crematorium
5206404,PHS GROUP PLC,Asset & Investment Partnership Management,Director of Place,Personal Hygiene Costs,,30/07/2015, 570.96 ,,Cleaning & Janitorial
5206400,PHS GROUP PLC,Asset & Investment Partnership Management,Director of Place,Personal Hygiene Costs,,30/07/2015," 1,345.26 ",,Cleaning & Janitorial
5206488,J FREELEY LTD,Environmental Services,Director of Place,Engineers Works,,30/07/2015," 15,923.20 ",,"Works - Construction, Repair & Maintenance"
5206330,ELECTORAL REFORM SERVICES,Governance,Director of Governance and Resources,Printing And Stationery,,30/07/2015," 1,543.92 ",,Unclassified
5206231,UNITED UTILITIES WATER PLC,Asset & Investment Partnership Management,Director of Place,Metered Water Costs,,30/07/2015," 1,848.10 ",,Utilities
5206255,UNITED UTILITIES WATER PLC,Asset & Investment Partnership Management,Director of Place,Metered Water Costs,,30/07/2015, 807.85 ,,Utilities
5206226,UNITED UTILITIES WATER PLC,Asset & Investment Partnership Management,Director of Place,Metered Water Costs,,30/07/2015, 963.37 ,,Utilities
5206237,UNITED UTILITIES WATER PLC,Asset & Investment Partnership Management,Director of Place,Metered Water Costs,,30/07/2015, 584.80 ,,Utilities
5206230,UNITED UTILITIES WATER PLC,Asset & Investment Partnership Management,Director of Place,Metered Water Costs,,30/07/2015, 565.45 ,,Utilities
5206256,UNITED UTILITIES WATER PLC,Environmental Services,Director of Place,Metered Water Costs,,30/07/2015," 1,501.65 ",,Utilities
5206256,UNITED UTILITIES WATER PLC,Asset & Investment Partnership Management,Director of Place,Metered Water Costs,,30/07/2015," 2,323.47 ",,Utilities
5206240,UNITED UTILITIES WATER PLC,Asset & Investment Partnership Management,Director of Place,Metered Water Costs,,30/07/2015, 695.71 ,,Utilities
5205841,INSIGHT DIRECT (UK)LTD,Development Growth & Investment,Director of Place,Computer Hardware Purchase,,30/07/2015," 3,884.63 ",,Information Communication Technology
5206546,TOGETHER FOR MENTAL WELLBEING,Adult Social Care,Director of People,Professional Services,,30/07/2015," 7,418.25 ",,Social Community Care
5206156,ANDREW MOORE,Childrens Services,Director of People,Legal Fees,Business Payment,30/07/2015," 3,700.00 ",,Legal Services
5206579,ROYAL MAIL GROUP PLC,Exchequer,Director of Governance and Resources,Postages,,30/07/2015," 1,001.46 ",,Mail Services
5206250,ROYAL MAIL GROUP PLC,Exchequer,Director of Governance and Resources,Postages,,30/07/2015," 2,316.47 ",,Mail Services
5206252,ROYAL MAIL GROUP PLC,Exchequer,Director of Governance and Resources,Postages,,30/07/2015," 1,266.78 ",,Mail Services
5201783,EON ENERGY,Environmental Services,Director of Place,Electricity,,30/07/2015," 2,429.22 ",,Utilities
5205884,OFSTED,Childrens Services,Director of People,Inspection Fees,,30/07/2015," 1,761.00 ",,Financial Services
3250519,BURNT TREE GROUP LIMITED,Environmental Services,Director of Place,Additional Hire,,30/07/2015," 2,625.60 ",,Vehicles
3250519,DENNIS EAGLE LTD,Environmental Services,Director of Place,General Materials,,30/07/2015," 7,390.55 ",,Vehicles
3250519,DENNIS EAGLE LTD,Transport,Director of Place,Debits Goods Received,,30/07/2015, 30.36 ,,Vehicles
3250519,F G ROWLAND LTD,Environmental Services,Director of Place,Additional Hire,,30/07/2015, 550.00 ,,Vehicles
3250519,F G ROWLAND LTD,Environmental Services,Director of Place,Core Hire,,30/07/2015, 845.00 ,,Vehicles
3250519,F G ROWLAND LTD,Environmental Services,Director of Place,Workshop Recharges including Misuse & Damage Costs,,30/07/2015, 250.00 ,,Vehicles
3250519,F. R. SHARROCK LIMITED,Environmental Services,Director of Place,Debits Goods Received,,30/07/2015, 299.78 ,,Public Bodies
3250519,F. R. SHARROCK LIMITED,Environmental Services,Director of Place,General Materials,,30/07/2015, 424.40 ,,Public Bodies
3250519,FAUN ZOELLER (UK) LTD,Environmental Services,Director of Place,General Materials,,30/07/2015, 854.73 ,,Vehicles
3250519,G B OILS TA CARLTON FUELS,Transport,Director of Place,Diesel Fuel,,30/07/2015," 28,010.60 ",,Transport
3250519,HI-Q TYRESERVICES,Environmental Services,Director of Place,General Materials,,30/07/2015, 68.29 ,,Vehicles
3250519,HI-Q TYRESERVICES,Environmental Services,Director of Place,Tyre Costs,,30/07/2015," 3,332.52 ",,Vehicles
3250519,TAMESIDE ACCIDENT REPAIR CENTRE LTD,Environmental Services,Director of Place,Insurance Claim Excess,,30/07/2015, 500.00 ,,Vehicles
3250519,JCB INSURANCE SERVICES LTD,Environmental Services,Director of Place,General Materials,,30/07/2015," 1,673.30 ",,Unclassified
3250519,BPP TRANSPORT ENGINEERS LTD,Environmental Services,Director of Place,General Materials,,30/07/2015, 682.36 ,,Transport
3250519,HOSEMASTER MANCHESTER LTD,Environmental Services,Director of Place,General Materials,,30/07/2015, 595.34 ,,"Works - Construction, Repair & Maintenance"
5206773,VINCENT OBRIEN (CONSTRUCTION),Housing,Director of Place,Improvement Grants - Final Mandatory,,30/07/2015," 3,596.00 ",,"Works - Construction, Repair & Maintenance"
5206792,GREENSCAPE,Adult Social Care,Director of People,Professional Services,,30/07/2015," 7,000.00 ",,"Works - Construction, Repair & Maintenance"
5206793,GREENSCAPE,Adult Social Care,Director of People,Professional Services,,30/07/2015," 7,000.00 ",,"Works - Construction, Repair & Maintenance"
5206383,NATIONAL GRID plc,Environmental Services,Director of Place,Sub-contractor Services,,30/07/2015," 3,110.76 ",,Unclassified
5205631,ALTERNATIVE FUTURES GROUP,Adult Social Care,Director of People,Homecare Fees,,30/07/2015," 138,833.33 ",,Social Community Care Supplies & Services
5206423,ALTERNATIVE FUTURES GROUP,Adult Social Care,Director of People,Homecare Fees,,30/07/2015," 25,744.12 ",,Social Community Care Supplies & Services
5206581,J P KELSEY PLUMBING & HEATING LTD,Housing,Director of Place,Improvement Grants - Final Mandatory,,30/07/2015," 5,835.00 ",,Building Construction Materials
5206902,ROCOM,Multiple Heads of Service,Multiple Strategic Directorates,Communications Equipment,,30/07/2015," 7,400.00 ",,Information Communication Technology
5206789,COMFORT CALL LIMITED,Adult Social Care,Director of People,Homecare Fees,,30/07/2015," 34,488.79 ",,Medical
5202777,PENNINE CARE IN PATIENT SERVS PRIORY,Education,Director of People,Voluntary Organisations Fees,,30/07/2015," 1,400.00 ",,Social Community Care
5202775,PENNINE CARE IN PATIENT SERVS PRIORY,Education,Director of People,Voluntary Organisations Fees,,30/07/2015," 2,100.00 ",,Social Community Care
5202779,PENNINE CARE IN PATIENT SERVS PRIORY,Education,Director of People,Voluntary Organisations Fees,,30/07/2015, 525.00 ,,Social Community Care
5202778,PENNINE CARE IN PATIENT SERVS PRIORY,Education,Director of People,Voluntary Organisations Fees,,30/07/2015, 875.00 ,,Social Community Care
5203335,UPDATA INFRASTRUCTURE UK LTD,Multiple Heads of Service,Multiple Strategic Directorates,Communications Equipment,,30/07/2015," 6,578.75 ",,Consultancy
5206831,N A BROWN LTD,Environmental Services,Director of Place,General Materials,,30/07/2015," 1,433.50 ",,Unclassifiable
5205815,EDUCATION FUNDING AGENCY,Asset Management and Investment Partnership Management,Director of Place,Furniture And Fittings,,30/07/2015," 80,075.23 ",,Unclassified
5206356,ARCO LIMITED,Environmental Services,Director of Place,Protective Clothing,,30/07/2015, 534.50 ,,Clothing
5205401,ARCO LIMITED,Environmental Services,Director of Place,Purchase Wheeled Bins,,30/07/2015, 611.20 ,,Clothing
5206570,THE CARE TEAM LTD,Stronger Communities,Director of People,Professional Services,,30/07/2015," 1,500.00 ",,Unclassifiable
5200352,VODAFONE,Digital Tameside,Director of Place,It Equipment,,30/07/2015, 999.00 ,,Information Communication Technology
5206806,TRISCAN SYSTEMS LIMITED,Environmental Services,Director of Place,Computer Hardware Maintenance Costs,,30/07/2015," 1,524.40 ",,Information Communication Technology
5206500,MOSSCARE HOUSING LTD,Adult Social Care,Director of People,Non-Authority Accommodation Rental,,30/07/2015," 29,330.65 ",,Social Community Care Supplies & Services
5206619,PROGRESS CARE HOUSING ASSOCIATION LIMITED,Adult Social Care,Director of People,Non-Authority Accommodation Rental,,30/07/2015," 5,448.98 ",,Housing Management
5206833,ULVERSCROFT LARGE PRINT  BOOKS LTD,Stronger Communities,Director of People,Purchase Books,,30/07/2015, 932.65 ,,Education
5206454,NEW CHARTER HOUSING TRUST GROUP,Adult Social Care,Director of People,Non-Authority Accommodation Rental,,30/07/2015," 2,551.64 ",,Social Community Care Supplies & Services
5206445,NEW CHARTER HOUSING TRUST GROUP,Childrens Services,Director of People,Non-Authority Accommodation Rental,,30/07/2015," 2,050.44 ",,Social Community Care Supplies & Services
5206839,JO EDWARDS,Childrens Services,Director of People,Professional Services,Business Payment,30/07/2015," 1,008.00 ",,Unclassified
5206578,ELECTRICITY NORTH WEST LTD,Engineers Client,Director of Place,Acquisition - Land,,30/07/2015," 8,615.24 ",,Utilities
5206956,OPENREACH BILLING TEAM (CNS),Environmental Services,Director of Place,Sub-contractor Services,,03/08/2015," 9,333.34 ",,Information Communication Technology
5206938,CARE UK HOMECARE,Adult Social Care,Director of People,Homecare Fees,,03/08/2015," 34,237.93 ",,Social Community Care Supplies & Services
5206976,EVERGLADES NURSERIES LTD,Environmental Services,Director of Place,General Materials,,03/08/2015, 540.00 ,,Horticultural
5199651,PG FABRICATIONS,Environmental Services,Director of Place,General Materials,,03/08/2015, 800.00 ,,"Works - Construction, Repair & Maintenance"
5207129,S & S MARQUEES,Stronger Communities,Director of People,Professional Entertainment Services,Business Payment,03/08/2015," 1,649.50 ",,Leisure Services
5207002,METRONET (UK) LIMITED,Asset & Investment Partnership Management,Director of Place,Security Equipment,,03/08/2015," 2,883.33 ",,Facilities & Management Services
5205409,STOCKPORT NHS FOUNDATION TRUST,Public Health,Director of Public Health,Professional Services,,03/08/2015," 2,424.42 ",,Medical
5204838,NHS TAMESIDE AND GLOSSOP CCG,Corporate Costs,Corporate Costs,Professional Services,,03/08/2015," 378,000.00 ",,Medical
5204837,NHS TAMESIDE AND GLOSSOP CCG,Corporate Costs,Corporate Costs,Professional Services,,03/08/2015," 188,000.00 ",,Medical
5207004,TYNETEC,Adult Social Care,Director of People,It Equipment,,03/08/2015, 738.20 ,,Social Community Care
5206808,PREMIER BRICKWORK (M/C) LTD,Environmental Services,Director of Place,Engineers Works,,03/08/2015, 645.00 ,,"Works -  Construction, Repair & Maintenance"
5206941,ROCOM,Environmental Services,Director of Place,Telephone Landline Costs,,03/08/2015," 1,314.55 ",,Information Communication Technology
5207149,PROFILE SECURITY SERVICES LIMITED,Asset & Investment Partnership Management,Director of Place,Security Services,,03/08/2015," 2,515.30 ",,Facilities & Management Services
5207150,PROFILE SECURITY SERVICES LIMITED,Asset & Investment Partnership Management,Director of Place,Security Services,,03/08/2015," 10,304.78 ",,Facilities & Management Services
5206922,NORTHERN PROPERTIES LTD,Adult Social Care,Director of People,Non-Authority Accommodation Rental,,03/08/2015," 1,847.29 ",,Facilities & Management Services
5206869,FOUNTAINS & FEATURES LIMITED,Environmental Services,Director of Place,General Materials,,03/08/2015, 558.00 ,,Domestic Goods
5206959,DAISY COMMUNICATIONS LTD,Multiple Heads of Service,Multiple Strategic Directorates,Telephone Landline Costs,,03/08/2015," 4,422.87 ",,Public Bodies
5206765,RICOH UK,Multiple Heads of Service,Multiple Strategic Directorates,Photoprinting,,03/08/2015," 3,829.29 ",,Facilities & Management Services
5206841,CLOVERLEAF ADVOCACY 2000 LTD,Adult Social Care,Director of People,Professional Services,,03/08/2015," 12,408.30 ",,Social Community Care Supplies & Services
5206874,UPDATA INFRASTRUCTURE UK LTD,Multiple Heads of Service,Multiple Strategic Directorates,Telephone Landline Costs,,03/08/2015," 3,035.00 ",,Consultancy
5203462,UPDATA INFRASTRUCTURE UK LTD,Multiple Heads of Service,Multiple Strategic Directorates,Communications Equipment,,03/08/2015," 5,880.00 ",,Consultancy
5200885,UPDATA INFRASTRUCTURE UK LTD,Multiple Heads of Service,Multiple Strategic Directorates,Communications Equipment,,03/08/2015, 650.00 ,,Consultancy
5206989,THE FURNISHING SERVICE LTD,Stronger Communities,Director of People,Fixtures & Fittings Purchase,,03/08/2015," 1,034.62 ",,Furniture
5206992,THE FURNISHING SERVICE LTD,Stronger Communities,Director of People,Fixtures & Fittings Purchase,,03/08/2015, 566.70 ,,Furniture
5206993,THE FURNISHING SERVICE LTD,Stronger Communities,Director of People,Fixtures & Fittings Purchase,,03/08/2015," 1,759.59 ",,Furniture
5206991,THE FURNISHING SERVICE LTD,Stronger Communities,Director of People,Fixtures & Fittings Purchase,,03/08/2015, 507.41 ,,Furniture
5206812,MAPS LEGAL ASSISTANCE,Corporate Costs,Corporate Costs,Transport Insurance,,03/08/2015, 952.61 ,,Unclassified
5206968,CHESHIRE FALCONRY,Environmental Services,Director of Place,Professional Entertainment Services,,03/08/2015, 585.00 ,,Leisure Services
5207077,UK HEALTH FORUM,Public Health,Director of Public Health,Subscriptions,,03/08/2015," 2,200.00 ",,Consultancy
5206840,COMMUNITY INTEGRATED CARE,Adult Social Care,Director of People,Homecare Fees,,03/08/2015," 18,360.00 ",,Social Community Care Supplies & Services
5206386,DOCUMENT AND DATA SHRED LTD,Multiple Heads of Service,Multiple Strategic Directorates,Waste Disposal Fees,,03/08/2015, 942.50 ,,Environmental Services
5206949,HMS DECORATIVE SURFACING LTD,Engineers Client,Director of Place,Road Marking Works,,03/08/2015," 17,103.98 ",,Building Construction Materials
5205506,DEKKO WINDOW SYSTEMS LTD,Asset & Investment Partnership Management,Director of Place,Electricity,,03/08/2015, 718.35 ,,Utilities
5206936,CLAIM TIME LTD,Multiple Heads of Service,Multiple Strategic Directorates,Claims Settled,,03/08/2015," 2,275.00 ",,Unclassifiable
5206935, ,Multiple Heads of Service,Multiple Strategic Directorates,Claims Settled,Redacted Supplier,03/08/2015," 3,500.00 ",,Unclassifiable
5207038, ,Childrens Services,Director of People,Living Without Formal Support,Redacted Supplier,03/08/2015, 570.00 ,,Unclassifiable
5202842,STOCKPORT MBC,Childrens Services,Director of People,Training Course Costs,,03/08/2015," 3,650.25 ",,Unclassified
5206890,STOCKPORT MBC,Childrens Services,Director of People,Professional Services,,03/08/2015," 2,500.00 ",,Unclassified
5207013,STOCKPORT MBC,Corporate Costs,Corporate Costs,Coroners Service Costs,,03/08/2015," 191,665.00 ",,Unclassified
5205890,VODAFONE,Finance,Director of Governance and Resources,Telephone Landline Costs,,03/08/2015, 665.66 ,,Information Communication Technology
5206712,DIRECT CARE (NORTH WEST) LTD,Adult Social Care,Director of People,Homecare Fees,,03/08/2015," 10,716.59 ",,Social Community Care Supplies & Services
5206983,ADASS,Adult Social Care,Director of People,Subscriptions,,03/08/2015," 1,700.00 ",,Social Community Care Supplies & Services
5207147,MR JAMES TURLEY T/A R TURLEY PLUMBERS,Housing,Director of Place,Improvement Grants - Final Mandatory,Business Payment,03/08/2015," 1,220.00 ",,"Works - Construction, Repair & Maintenance"
5207019,CREATIVE SUPPORT LTD,Adult Social Care,Director of People,Homecare Fees, ,03/08/2015," 28,726.66 ",,Social Community Care Supplies & Services
5206971,CONTAINER COMPONENTS EUROPE LIMITED,Environmental Services,Director of Place,Purchase Wheeled Bins,,03/08/2015, 943.80 ,,Vehicles
5206803,ARGOS BUSINESS SOLUTIONS,Childrens Services,Director of People,Cash Grants,,03/08/2015, 593.41 ,,Domestic Goods
5206574,ARGOS BUSINESS SOLUTIONS,Childrens Services,Director of People,Cash Grants,,03/08/2015, 604.91 ,,Domestic Goods
5207033,THE AWARD SCHEME LTD,Stronger Communities,Director of People,General Materials,,03/08/2015, 534.00 ,,Leisure Services
5207033,THE AWARD SCHEME LTD,Stronger Communities,Director of People,Postages,,03/08/2015, 12.50 ,,Leisure Services
5207124,RADIO CABS (ASHTON)LTD,Childrens Services,Director of People,Staff Travel Costs,,03/08/2015, 505.00 ,,Transport
5206857,ORANGE PCS,Digital Tameside,Director of Place,Mobile Telephones,,03/08/2015, 628.13 ,,Information Communication Technology
5206611,ORANGE PCS,Digital Tameside,Director of Place,Mobile Telephones,,03/08/2015," 3,156.60 ",,Information Communication Technology
5206862,ORANGE PCS,Digital Tameside,Director of Place,Mobile Telephones,,03/08/2015," 3,206.03 ",,Information Communication Technology
5207078,P MCGUINNESS & CO LTD,Engineers Client,Director of Place,Engineers -External,,03/08/2015," 7,000.00 ",,"Works - Construction, Repair & Maintenance"
5190603,KOMPAN LTD,Environmental Services,Director of Place,Play Equipment,,03/08/2015," 3,694.08 ",,Sports & Playground Equipment & Maintenance
5202388,VODAFONE FIXED NETWORKS LIMITED,Multiple Heads of Service,Multiple Strategic Directorates,Telephone Landline Costs,,03/08/2015," 4,100.00 ",,Information Communication Technology
5206912,WESLEY PROPERTIES (NORTHERN) LTD,Adult Social Care,Director of People,Non-Authority Accommodation Rental,,03/08/2015," 1,369.89 ",,Facilities & Management Services
5207001,ASKEWS  AND HOLTS LIBRARY SERVICES LTD,Stronger Communities,Director of People,Purchase Books,,03/08/2015," 1,250.00 ",,Education
5206290,NPOWER LIMITED,Asset & Investment Partnership Management,Director of Place,Electricity,,03/08/2015, 808.65 ,,Utilities
5205424,NPOWER LIMITED,Asset & Investment Partnership Management,Director of Place,Electricity,,03/08/2015," 15,268.00 ",,Utilities
5205421,NPOWER LIMITED,Asset & Investment Partnership Management,Director of Place,Electricity,,03/08/2015, 539.15 ,,Utilities
5206261,NPOWER LIMITED,Asset & Investment Partnership Management,Director of Place,Electricity,,03/08/2015," 1,186.06 ",,Utilities
5205731,NPOWER LIMITED,Asset & Investment Partnership Management,Director of Place,Electricity,,03/08/2015," 1,444.29 ",,Utilities
5205085,NPOWER LIMITED,Asset & Investment Partnership Management,Director of Place,Electricity,,03/08/2015," 2,556.34 ",,Utilities
5204912,NPOWER LIMITED,Asset & Investment Partnership Management,Director of Place,Electricity,,03/08/2015," 2,558.86 ",,Utilities
5205083,NPOWER LIMITED,Asset & Investment Partnership Management,Director of Place,Electricity,,03/08/2015," 1,498.35 ",,Utilities
5204530,NPOWER LIMITED,Asset & Investment Partnership Management,Director of Place,Electricity,,03/08/2015, 827.66 ,,Utilities
5205730,NPOWER LIMITED,Asset & Investment Partnership Management,Director of Place,Electricity,,03/08/2015," 1,390.81 ",,Utilities
5206264,NPOWER LIMITED,Asset & Investment Partnership Management,Director of Place,Electricity,,03/08/2015, 623.39 ,,Utilities
5204111,NPOWER LIMITED,Education,Director of People,Electricity,,03/08/2015," 1,276.08 ",,Utilities
5205427,NPOWER LIMITED,Asset & Investment Partnership Management,Director of Place,Electricity,,03/08/2015, 836.28 ,,Utilities
5205422,NPOWER LIMITED,Asset & Investment Partnership Management,Director of Place,Electricity,,03/08/2015, 761.79 ,,Utilities
5204525,NPOWER LIMITED,Asset & Investment Partnership Management,Director of Place,Electricity,,03/08/2015," 1,392.56 ",,Utilities
5206090,NPOWER LIMITED,Environmental Services,Director of Place,Electricity,,03/08/2015," 1,273.66 ",,Utilities
5204533,NPOWER LIMITED,Asset & Investment Partnership Management,Director of Place,Gas,,03/08/2015, 941.56 ,,Utilities
5205733,NPOWER LIMITED,Asset & Investment Partnership Management,Director of Place,Electricity,,03/08/2015," 1,268.48 ",,Utilities
5204625,NPOWER LIMITED,Asset & Investment Partnership Management,Director of Place,Electricity,,03/08/2015," 2,385.46 ",,Utilities
5206295,NPOWER LIMITED,Asset & Investment Partnership Management,Director of Place,Electricity,,03/08/2015, 535.72 ,,Utilities
5205418,NPOWER LIMITED,Asset & Investment Partnership Management,Director of Place,Electricity,,03/08/2015," 1,406.25 ",,Utilities
5207023,NPOWER LIMITED,Environmental Services,Director of Place,Electricity,,03/08/2015," 103,550.81 ",,Utilities
5204906,NPOWER LIMITED,Asset & Investment Partnership Management,Director of Place,Electricity,,03/08/2015," 1,312.58 ",,Utilities
5204631,NPOWER LIMITED,Asset & Investment Partnership Management,Director of Place,Electricity,,03/08/2015, 550.66 ,,Utilities
5204913,NPOWER LIMITED,Asset & Investment Partnership Management,Director of Place,Electricity,,03/08/2015, 808.67 ,,Utilities
5204626,NPOWER LIMITED,Asset & Investment Partnership Management,Director of Place,Electricity,,03/08/2015, 566.78 ,,Utilities
5204632,NPOWER LIMITED,Asset & Investment Partnership Management,Director of Place,Electricity,,03/08/2015," 1,978.35 ",,Utilities
5204628,NPOWER LIMITED,Asset & Investment Partnership Management,Director of Place,Electricity,,03/08/2015," 1,724.60 ",,Utilities
5205416,NPOWER LIMITED,Asset & Investment Partnership Management,Director of Place,Electricity,,03/08/2015," 6,473.11 ",,Utilities
5205729,NPOWER LIMITED,Asset & Investment Partnership Management,Director of Place,Electricity,,03/08/2015," 1,977.29 ",,Utilities
5204907,NPOWER LIMITED,Asset & Investment Partnership Management,Director of Place,Electricity,,03/08/2015, 786.30 ,,Utilities
5206769,NPOWER LIMITED,Environmental Services,Director of Place,Electricity,,03/08/2015," 87,043.56 ",,Utilities
5206273,NPOWER LIMITED,Asset & Investment Partnership Management,Director of Place,Electricity,,03/08/2015, 663.22 ,,Utilities
5205736,NPOWER LIMITED,Asset & Investment Partnership Management,Director of Place,Electricity,,03/08/2015, 538.71 ,,Utilities
5206270,NPOWER LIMITED,Asset & Investment Partnership Management,Director of Place,Electricity,,03/08/2015," 1,525.48 ",,Utilities
5206275,NPOWER LIMITED,Asset & Investment Partnership Management,Director of Place,Electricity,,03/08/2015, 685.92 ,,Utilities
5206292,NPOWER LIMITED,Asset & Investment Partnership Management,Director of Place,Electricity,,03/08/2015, 682.45 ,,Utilities
5205737,NPOWER LIMITED,Asset & Investment Partnership Management,Director of Place,Electricity,,03/08/2015," 1,445.31 ",,Utilities
5204532,NPOWER LIMITED,Asset & Investment Partnership Management,Director of Place,Electricity,,03/08/2015," 1,245.53 ",,Utilities
5204610,NPOWER LIMITED,Asset & Investment Partnership Management,Director of Place,Electricity,,03/08/2015, 805.40 ,,Utilities
5204697,NPOWER LIMITED,Asset & Investment Partnership Management,Director of Place,Electricity,,03/08/2015, 738.81 ,,Utilities
5204904,NPOWER LIMITED,Asset & Investment Partnership Management,Director of Place,Electricity,,03/08/2015, 840.41 ,,Utilities
5206913,STAMFORD PROPERTIES,Adult Social Care,Director of People,Non-Authority Accommodation Rental,,03/08/2015," 1,017.43 ",,Unclassifiable
5206818,ELECTRICITY NORTH WEST LTD,Engineers Client,Director of Place,Street Lighting Works,,03/08/2015," 34,442.53 ",,Utilities
5206027,THE PENNINE ACUTE HOSPITALS NHS TRUST,Public Health,Director of Public Health,Professional Services,,03/08/2015," 1,017.00 ",,Medical
5206917,TAMESIDE ARTS LTD,Adult Social Care,Director of People,Professional Services,,03/08/2015," 1,071.00 ",,Leisure Services
5206918,TAMESIDE ARTS LTD,Adult Social Care,Director of People,Professional Services,,03/08/2015," 1,071.00 ",,Leisure Services
5207068,IAN BOYS,Stronger Communities,Director of People,Other Accomodation Related Costs,Business Payment,03/08/2015, 500.00 ,,Mail Services
3250520,DENNIS EAGLE LTD,Environmental Services,Director of Place,General Materials,,06/08/2015, 807.64 ,,Vehicles
3250520,F & G COMMERCIALS (OLDHAM) LIMITED,Environmental Services,Director of Place,General Materials,,06/08/2015, 615.66 ,,Vehicles
3250520,G B OILS TA CARLTON FUELS,Transport,Director of Place,Diesel Fuel,,06/08/2015," 19,076.06 ",,Transport
3250520,G B OILS TA CARLTON FUELS,Transport,Director of Place,Gas - Oil Fuel,,06/08/2015," 4,375.00 ",,Transport
3250520,JOHNSTON SWEEPERS LTD,Transport,Director of Place,"Plant, Vehicles And Equipment",,06/08/2015," 263,933.00 ",,Environmental Services
3250520,SGM CONTRACTS LLP,Environmental Services,Director of Place,General Materials,,06/08/2015, 728.74 ,,"Works - Construction, Repair & Maintenance"
3250520,HOSEMASTER MANCHESTER LTD,Environmental Services,Director of Place,General Materials,,06/08/2015, 728.78 ,,"Works - Construction, Repair & Maintenance"
3250520,LEX AUTOLEASE,Environmental Services,Director of Place,Core Hire,,06/08/2015, 728.75 ,,Unclassifiable
5205784,SEFTON COUNCIL,Governance,Director of Governance and Resources,Subscriptions,,06/08/2015," 1,000.00 ",,Unclassified
5205692,CALLROUND LIMITED,Education,Director of People,Professional Services,,06/08/2015," 2,200.00 ",,Public Bodies
5204149,UPDATA INFRASTRUCTURE UK LTD,Multiple Heads of Service,Multiple Strategic Directorates,Communications Equipment,,06/08/2015," 1,260.00 ",,Consultancy
5207490,LISA HEYS,Education,Director of People,Training Course Costs,Business Payment,06/08/2015, 600.00 ,,Unclassifiable
5207492,R S & P HARRISON PROPERTY,Asset & Investment Partnership Management,Director of Place,Building & Contents Insurance,,06/08/2015," 1,345.25 ",,Unclassifiable
5205675,NEW IMAGE(PUBLIC RELATIONS) LTD,Digital Tameside,Director of Place,Professional Entertainment Services,,06/08/2015," 25,030.00 ",,Facilities & Management Services
5207483,THE PHIRST GROUP T/A APEX HEALTH AND SOCIAL CARE,Adult Social Care,Director of People,Homecare Fees,,06/08/2015, 753.66 ,,Social Community Care Supplies & Services
5207146,MR JAMES TURLEY T/A R TURLEY PLUMBERS,Housing,Director of Place,Improvement Grants - Final Mandatory,Business Payment,06/08/2015," 1,480.00 ",,"Works - Construction, Repair & Maintenance"
5206221,ALLIED HEALTHCARE GROUP LTD (MEDICO),Adult Social Care,Director of People,Homecare Fees,,06/08/2015," 12,362.72 ",,Social Community Care Supplies & Services
5206220,ALLIED HEALTHCARE GROUP LTD (MEDICO),Adult Social Care,Director of People,Homecare Fees,,06/08/2015," 12,250.63 ",,Social Community Care Supplies & Services
5207440,ALLIED HEALTHCARE GROUP LTD (MEDICO),Adult Social Care,Director of People,Homecare Fees,,06/08/2015," 12,165.23 ",,Social Community Care Supplies & Services
5207488,CREATIVE SUPPORT LTD,Adult Social Care,Director of People,Residential Home Long Stay Fees,,06/08/2015," 1,661.52 ",,Social Community Care Supplies & Services
5207471,MANCHESTER DOGS HOME,Environmental Services,Director of Place,Professional Services, ,06/08/2015, 864.12 ,,Environmental Services
5207196,EXPERIAN LTD,Development Growth & Investment,Director of Place,Professional Services,,06/08/2015," 5,048.00 ",,Financial Services
5207489,TAMESIDE COLLEGE,Digital Tameside,Director of Place,Professional Services,,06/08/2015, 600.00 ,,Unclassified
5206914,"TAMESIDE, OLDHAM AND GLOSSOP MIND",Adult Social Care,Director of People,Professional Services,,06/08/2015," 2,509.20 ",,Social Community Care Supplies & Services
5207380,PRISM MEDICAL UK (CARE FREE DIVISION),Housing,Director of Place,Improvement Grants - Final Mandatory,,06/08/2015," 1,467.00 ",,Social Community Care Supplies & Services
5207234,ASONE DESIGN LIMITED,Development Growth & Investment,Director of Place,Professional Services,,06/08/2015, 720.00 ,,Facilities & Management Services
5207217,MISS SARAH DONALDSON,Childrens Services,Director of People,Legal Fees,Business Payment,06/08/2015, 950.00 ,,Legal Services
5207074, ,Adult Social Care,Director of People,Day Care Fees,Redacted Supplier,06/08/2015, 723.55 ,,Unclassifiable
5207279,BLACKPOOL PLEASURE BEACH,Strategy & Early Intervention,Director of People,"Activity (Materials, Trips)",,06/08/2015, 961.50 ,,Leisure Services
5207222,PG FABRICATIONS,Multiple Heads of Service,Multiple Strategic Directorates,Security Equipment,,06/08/2015, 918.30 ,,"Works - Construction, Repair & Maintenance"
5207305,DENTON LINKS,Environmental Services,Director of Place,Hired Transport,,06/08/2015," 1,140.00 ",,Transport
5207259,PITNEY BOWES BUSINESS INSIGHT,Digital Tameside,Director of Place,Computer Hardware Maintenance Costs,,06/08/2015, 895.00 ,,Mail Services
5207178,GREENSCAPE,Adult Social Care,Director of People,Tree Planting Programme,,06/08/2015," 1,790.16 ",,"Works - Construction, Repair & Maintenance"
5207281,LEISA GRAY,Stronger Communities,Director of People,Professional Entertainment Services,Business Payment,06/08/2015, 525.00 ,,Unclassifiable
5206970,FAB EVENTS LIMITED,Environmental Services,Director of Place,Professional Entertainment Services,,06/08/2015, 811.00 ,,Facilities & Management Services
5207007,TMP UK LTD,Environmental Services,Director of Place,"Marketing, Publicity and Recruitment",,06/08/2015," 2,833.02 ",,Human Resources
5206397,TAMESIDE HOSPITAL NHS FOUNDATION TRUST,Public Health,Director of Public Health,Professional Services,,06/08/2015," 2,637.50 ",,Unclassified
5206302,TAMESIDE HOSPITAL NHS FOUNDATION TRUST,Public Health,Director of Public Health,Professional Services,,06/08/2015," 3,083.00 ",,Unclassified
5206394,TAMESIDE HOSPITAL NHS FOUNDATION TRUST,Public Health,Director of Public Health,Professional Services,,06/08/2015," 2,637.50 ",,Unclassified
5207028,DTZ,Development Growth & Investment,Director of Place,Professional Services,,06/08/2015," 5,000.00 ",,Non 3rd Party spend  
5206805,NHS TAMESIDE AND GLOSSOP CCG,Public Health,Director of Public Health,Professional Services,,06/08/2015," 100,071.10 ",,Medical
5206950,ROCHDALE MBC,Adult Social Care,Director of People,Residential Home Short Stay Fees,,06/08/2015," 2,571.43 ",,Unclassified
5207348,ROCHDALE MBC,Multiple Heads of Service,Multiple Strategic Directorates,Communications Equipment,,06/08/2015," 1,440.00 ",,Unclassified
5207241,PENNINE CARE IN PATIENT SERVS PRIORY,Education,Director of People,Voluntary Organisations Fees,,06/08/2015," 1,050.00 ",,Social Community Care
5206924,COMMUNITY AND VOLUNTARY ACTION TAMESIDE,Adults Early Intervention,Director of People,Development Monies,,06/08/2015," 11,153.00 ",,Financial Services
5207239,UPDATA INFRASTRUCTURE UK LTD,Multiple Heads of Service,Multiple Strategic Directorates,Communications Equipment,,06/08/2015," 84,631.80 ",,Consultancy
5207156,LIFELINE PROJECT LTD (PH),Public Health,Director of Public Health,Professional Services,,06/08/2015," 8,329.66 ",,Consultancy
5206624,FRONTIER MEDICAL PRODUCTS,Public Health,Director of Public Health,Local Enhanced Services,,06/08/2015," 6,534.35 ",,Consultancy
5206617,FRONTIER MEDICAL PRODUCTS,Public Health,Director of Public Health,Local Enhanced Services,,06/08/2015," 3,683.70 ",,Consultancy
5207335,ARTS TAG LTD,Stronger Communities,Director of People,Professional Entertainment Services,,06/08/2015, 512.50 ,,Leisure Services
5207428, ,Adult Social Care,Director of People,Residential Home Short Stay Fees,Redacted Supplier,06/08/2015, 595.30 ,,Unclassifiable
5205676,WILLIAMS WOODWARD LTD,Finance,Director of Governance and Resources,Professional Consultancy Services,,06/08/2015," 6,640.00 ",,Consultancy
5205680,APPLIED PSYCHOLOGIES,Education,Director of People,Professional Services,,06/08/2015," 2,800.00 ",,Education
5206933,BAKER TILLY TAX AND ACCOUNTING LTD,Stronger Communities,Director of People,Professional Services,,06/08/2015," 5,833.33 ",,Unclassifiable
5207008,CENTUM CONSTRUCTION SERVICES LTD,Engineers Client,Director of Place,Refurbishment Construction Costs,,06/08/2015," 23,293.07 ",,"Building,Const,Materials& Services"
5207011,CENTUM CONSTRUCTION SERVICES LTD,Engineers Client,Director of Place,Refurbishment Construction Costs,,06/08/2015," 21,063.85 ",,"Building,Const,Materials& Services"
5206964,CARILLION SPECIALIST SERVICES LTD,Development Growth & Investment,Director of Place,Professional Services,,06/08/2015," 5,596.36 ",,"Building,Const,Materials& Services"
5207278,OWEN GLYNN BUILDING CONTRACTOR,Governance,Director of Governance and Resources,Purchase General Office Equipment,,06/08/2015," 2,610.00 ",,"Building,Const,Materials& Services"
5207286,STOCKPORT MBC,Environmental Services,Director of Place,Sub-contractor Services,,06/08/2015," 22,370.30 ",,Unclassified
5207270,ROBINSON & JORDAN FUNERAL SERVICES,Environmental Services,Director of Place,Burial Fees,,06/08/2015," 1,424.00 ",,Cemetery & Crematorium
5207215,CREATIVE SUPPORT LTD,Adult Social Care,Director of People,Homecare Fees,,06/08/2015," 2,203.96 ",,Social Community Care Supplies & Services
5207194,ADDLESHAW GODDARD,Asset & Investment Partnership Management,Director of Place,Legal Fees,,06/08/2015," 8,156.00 ",,Unclassified
5207224,REMPLOY LIMITED,Adult Social Care,Director of People,Telephone Landline Costs,,06/08/2015, 598.00 ,,Education
5207223,REMPLOY LIMITED,Adult Social Care,Director of People,Telephone Landline Costs,,06/08/2015, 598.00 ,,Education
5205501,NEW CHARTER HOUSING TRUST GROUP,Stronger Communities,Director of People,Supporting People Gross Contract,,06/08/2015," 20,022.16 ",,Social Community Care Supplies & Services
5207183,TAMESIDE MAGISTRATES COURT,Exchequer,Director of Governance and Resources,Professional Services,,06/08/2015," 3,930.00 ",,Legal Services
5207005,WORMS EYE LTD,Environmental Services,Director of Place,Engineers -External,,06/08/2015, 974.00 ,,Environmental Services
5207349,NORTH WEST EMPLOYERS,Governance,Director of Governance and Resources,Training Course Costs,,06/08/2015, 631.50 ,,Human Resources
5207337,NORTH WEST EMPLOYERS,Governance,Director of Governance and Resources,Training Course Costs,,06/08/2015," 1,306.20 ",,Human Resources
5207345,NORTH WEST EMPLOYERS,Governance,Director of Governance and Resources,Training Course Costs,,06/08/2015, 627.90 ,,Human Resources
5207343,NORTH WEST EMPLOYERS,Governance,Director of Governance and Resources,Training Course Costs,,06/08/2015," 15,562.50 ",,Human Resources
5207374,NORTH WEST EMPLOYERS,Corporate Costs,Corporate Costs,Subscriptions,,06/08/2015," 22,280.25 ",,Human Resources
5205709,PHOENIX SOFTWARE LTD,Digital Tameside,Director of Place,Computer Software,,06/08/2015, 895.00 ,,Information Communication Technology
5207209,CORONA ENERGY RETAIL 4 LIMITED,Asset & Investment Partnership Management,Director of Place,Gas,,06/08/2015, 512.28 ,,Utilities
5207453,TAMESIDE CITIZENS ADVICE BUREAU,Exchequer,Director of Governance and Resources,Professional Services,,06/08/2015," 2,462.00 ",,Social Community Care Supplies & Services
5207451,TAMESIDE CITIZENS ADVICE BUREAU,Exchequer,Director of Governance and Resources,Professional Services,,06/08/2015," 2,473.00 ",,Social Community Care Supplies & Services
5206886,ANN FITZPATRICK,Governance,Director of Governance and Resources,Training Course Costs,Business Payment,06/08/2015, 600.00 ,,Unclassifiable
5207176,OCR,Development Growth & Investment,Director of Place,Examination Fees,,06/08/2015, 621.60 ,,Unclassified
5207547,CARE UK HOMECARE,Adult Social Care,Director of People,Homecare Fees,,07/08/2015," 5,309.16 ",,Social Community Care Supplies & Services
5202684,CARE UK HOMECARE,Adult Social Care,Director of People,Homecare Fees,,07/08/2015," 3,779.72 ",,Social Community Care Supplies & Services
5207219,PAYPARTNERS LTD (MONTHLY),Adult Social Care,Director of People,Sub-contractor Services,,07/08/2015, 798.00 ,,Social Community Care Supplies & Services
5207220,PAYPARTNERS LTD (MONTHLY),Adult Social Care,Director of People,Sub-contractor Services,,07/08/2015," 4,592.00 ",,Social Community Care Supplies & Services
5206203,DOMAIN CARE NORTH WEST LTD,Adult Social Care,Director of People,Homecare Fees,,07/08/2015," 1,440.00 ",,Social Community Care
5206206,DOMAIN CARE NORTH WEST LTD,Adult Social Care,Director of People,Homecare Fees,,07/08/2015, 849.50 ,,Social Community Care
5199628,VILLAGE URBAN RESORTS,Education,Director of People,Training Course Costs,,07/08/2015, 500.00 ,,Human Resources
5205953,JAPANESE KNOTWEED CONTROL,Asset Management and Investment Partnership Management,Director of Place,Professional Weedspraying Services,,07/08/2015," 1,850.00 ",,Horticultural
5205465,ALTERNATIVE FUTURES GROUP,Adult Social Care,Director of People,Homecare Fees,,07/08/2015," 9,518.24 ",,Social Community Care Supplies & Services
5207141,ALTERNATIVE FUTURES GROUP,Adult Social Care,Director of People,Homecare Fees,,07/08/2015," 10,710.40 ",,Social Community Care Supplies & Services
5206788,NHS TAMESIDE AND GLOSSOP CCG,Corporate Costs,Corporate Costs,Professional Services,,07/08/2015," 373,000.00 ",,Medical
5205878,NEW BRIDGE HORIZONS,Adult Social Care,Director of People,Homecare Fees,,07/08/2015," 2,335.00 ",,Social Community Care Supplies & Services
5205896,NEW BRIDGE HORIZONS,Adult Social Care,Director of People,Homecare Fees,,07/08/2015, 508.00 ,,Social Community Care Supplies & Services
5205894,NEW BRIDGE HORIZONS,Adult Social Care,Director of People,Homecare Fees,,07/08/2015," 1,868.00 ",,Social Community Care Supplies & Services
5205893,NEW BRIDGE HORIZONS,Adult Social Care,Director of People,Homecare Fees,,07/08/2015," 1,634.50 ",,Social Community Care Supplies & Services
5207334,COMMUNITY AND VOLUNTARY ACTION TAMESIDE,Strategy & Early Intervention,Director of People,Professional Services,,07/08/2015," 12,500.00 ",,Financial Services
5207336,COMMUNITY AND VOLUNTARY ACTION TAMESIDE,Strategy & Early Intervention,Director of People,Professional Services,,07/08/2015," 12,500.00 ",,Financial Services
5207372,COMPLETE BACKGROUND SCREENING LTD,Governance,Director of Governance and Resources,Professional Services,,07/08/2015," 2,733.00 ",,Unclassifiable
5206385,EDUCATION LANGUAGE LTD,Education,Director of People,Training Course Costs,,07/08/2015," 1,500.00 ",,Consultancy
5207570,CROWN SERVICES ORGANISATIONS LTD,Environmental Services,Director of Place,Engineers Works,,07/08/2015," 3,000.00 ",,"Works - Construction, Repair & Maintenance"
5205814,NORTH WEST COMMUNITY  SERVICES (GTR M/CR) LTD,Adult Social Care,Director of People,Homecare Fees,,07/08/2015, 603.78 ,,Social Community Care Supplies & Services
5205550,NORTH WEST COMMUNITY  SERVICES (GTR M/CR) LTD,Adult Social Care,Director of People,Homecare Fees,,07/08/2015," 1,394.94 ",,Social Community Care Supplies & Services
5207168,BERTRAM LIBRARY SERVICES,Education,Director of People,Text Books Periodicals and Newspapers,,07/08/2015, 910.45 ,,Education
5205801,BERTRAM LIBRARY SERVICES,Education,Director of People,Text Books Periodicals and Newspapers,,07/08/2015," 1,958.39 ",,Education
5204053,BERTRAM LIBRARY SERVICES,Education,Director of People,Text Books Periodicals and Newspapers,,07/08/2015, 542.44 ,,Education
5205798,BERTRAM LIBRARY SERVICES,Education,Director of People,Text Books Periodicals and Newspapers,,07/08/2015, 986.29 ,,Education
5205810,BERTRAM LIBRARY SERVICES,Education,Director of People,Text Books Periodicals and Newspapers,,07/08/2015, 974.34 ,,Education
5205799,BERTRAM LIBRARY SERVICES,Education,Director of People,Text Books Periodicals and Newspapers,,07/08/2015," 1,934.48 ",,Education
5205803,BERTRAM LIBRARY SERVICES,Education,Director of People,Text Books Periodicals and Newspapers,,07/08/2015," 1,770.30 ",,Education
5205804,BERTRAM LIBRARY SERVICES,Education,Director of People,Text Books Periodicals and Newspapers,,07/08/2015," 2,147.27 ",,Education
5207371,UNIVERSITY OF SALFORD,Development Growth & Investment,Director of Place,Refreshments,,07/08/2015," 1,743.50 ",,Unclassified
5206408,ABLE COMMUNITY CARE,Adult Social Care,Director of People,Homecare Fees,,07/08/2015," 1,580.00 ",,Social Community Care Supplies & Services
5207157,ABLE COMMUNITY CARE,Adult Social Care,Director of People,Homecare Fees,,07/08/2015," 1,580.00 ",,Social Community Care Supplies & Services
5207491,K P DODD CONSTRUCTION LTD,Housing,Director of Place,Improvement Grants - Final Mandatory,,07/08/2015," 3,536.00 ",,"Works - Construction, Repair & Maintenance"
3250509,TERBERG MATEC UK LTD,Environmental Services,Director of Place,General Materials,,12/08/2015, 274.72 ,,Environmental Services
3250509,TERBERG MATEC UK LTD,Transport,Director of Place,Debits Goods Received,,12/08/2015, 515.65 ,,Environmental Services
5203972,HMCTS,Childrens Services,Director of People,Court Fees,,12/08/2015," 22,605.00 ",,Non 3rd Party spend  
5204153,MACK 4 LIMITED,Housing,Director of Place,Improvement Grants - Final Mandatory,,12/08/2015," 4,267.00 ",,"Works - Construction, Repair & Maintenance"
5204157,MACK 4 LIMITED,Housing,Director of Place,Improvement Grants - Final Mandatory,,12/08/2015," 3,065.00 ",,"Works - Construction, Repair & Maintenance"
5204154,MACK 4 LIMITED,Housing,Director of Place,Improvement Grants - Final Mandatory,,12/08/2015," 3,085.00 ",,"Works - Construction, Repair & Maintenance"
5204068,MR KELVIN RUTLEDGE QC,Adult Social Care,Director of People,Legal Fees,Business Payment,12/08/2015," 2,000.00 ",,Unclassifiable
5202533,CITIZENS ADVICE BUREAU LTD,Stronger Communities,Director of People,Grants to Citizens' Advice Bureau,,12/08/2015," 78,035.00 ",,Public Bodies
5202943,SOUTHERN ELECTRIC GAS,Asset & Investment Partnership Management,Director of Place,Electricity,,12/08/2015," 2,480.13 ",,Public Bodies
5207573,GREAT PLACES HOUSING GROUP,Adult Social Care,Director of People,Non-Authority Accommodation Rental,,12/08/2015," 1,086.15 ",,Housing Management
5207572,GREAT PLACES HOUSING GROUP,Adult Social Care,Director of People,Non-Authority Accommodation Rental,,12/08/2015," 1,086.15 ",,Housing Management
5207574,GREAT PLACES HOUSING GROUP,Adult Social Care,Director of People,Non-Authority Accommodation Rental,,12/08/2015," 1,086.15 ",,Housing Management
5207575,GREAT PLACES HOUSING GROUP,Adult Social Care,Director of People,Non-Authority Accommodation Rental,,12/08/2015," 1,086.15 ",,Housing Management
5207493,RICOH UK,Development Growth & Investment,Director of Place,Printing And Stationery,,12/08/2015, 853.02 ,,Facilities & Management Services
5207569,EMPRESS CONNECT,Asset & Investment Partnership Management,Director of Place,Security Equipment,,12/08/2015," 6,750.00 ",,Information Communication Technology
5206621, ,Childrens Services,Director of People,Foster Carer Agency Fees,Redacted Supplier,12/08/2015," 2,052.20 ",,Unclassifiable
5206610, ,Childrens Services,Director of People,Foster Carer Agency Fees,Redacted Supplier,12/08/2015," 1,986.00 ",,Unclassifiable
5207475,ARCO LIMITED,Environmental Services,Director of Place,Purchase Wheeled Bins,,12/08/2015, 916.80 ,,Clothing
5207590,MR JOHN DELANEY,Education,Director of People,Transport Of Pupils,Business Payment,12/08/2015," 1,300.00 ",,Unclassified
5207594,MR JOHN DELANEY,Education,Director of People,Transport Of Pupils,Business Payment,12/08/2015," 1,620.00 ",,Unclassified
5207591,MR JOHN DELANEY,Environmental Services,Director of Place,Hired Transport,Business Payment,12/08/2015," 1,955.00 ",,Unclassified
5207452,CAPES DUNN & CO,Stronger Communities,Director of People,Professional Services,,12/08/2015," 3,500.00 ",,Facilities & Management Services
5207496,ALLIED HEALTHCARE GROUP LTD (MEDICO),Adult Social Care,Director of People,Homecare Fees,,12/08/2015," 12,371.26 ",,Social Community Care Supplies & Services
5207016,ALLIED HEALTHCARE GROUP LTD (MEDICO),Adult Social Care,Director of People,Homecare Fees,,12/08/2015," 12,655.21 ",,Social Community Care Supplies & Services
5206954,CARDSAVE ONLINE LTD,Exchequer,Director of Governance and Resources,National Giro,,12/08/2015," 1,638.66 ",,Public Bodies
5206382,ORANGE PCS,Digital Tameside,Director of Place,Mobile Telephones,,12/08/2015," 10,583.76 ",,Information Communication Technology
5209934,ASHTON OLD BATHS LIMITED,Engineers Client,Director of Place,Refurbishment Construction Costs, ,03/09/2015," 170,002.08 ",,"Building,Const,Materials& Services"
5205613,MISS SARAH DONALDSON,Childrens Services,Director of People,Legal Fees,Business Payment,12/08/2015, 950.00 ,,Legal Services
5207853,ANDREW MOORE,Childrens Services,Director of People,Legal Fees,Business Payment,12/08/2015," 3,150.00 ",,Legal Services
5207988,MISS JANICE WILLS,Childrens Services,Director of People,Legal Fees,Business Payment,12/08/2015, 550.00 ,,Legal Services
5207954,MR GRAHAM BAILEY,Childrens Services,Director of People,Legal Fees,Business Payment,12/08/2015, 950.00 ,,Unclassifiable
5207998,MR KELVIN RUTLEDGE QC,Childrens Services,Director of People,Legal Fees,Business Payment,12/08/2015," 1,000.00 ",,Unclassifiable
5207271,INSPIREDSPACES TAMESIDE LTD,Asset Management and Investment Partnership Management,Director of Place,Refurbishment Construction Costs,,12/08/2015," 245,344.04 ",,Consultancy
5207271,INSPIREDSPACES TAMESIDE LTD,Tameside Investment Partnership,Director of Place,External  Consultants,,12/08/2015," 14,025.00 ",,Consultancy
5207273,INSPIREDSPACES TAMESIDE LTD,Asset & Investment Partnership Management,Director of Place,Cleaning Contractor Costs,,12/08/2015," 32,651.79 ",,Consultancy
5207274,INSPIREDSPACES TAMESIDE(PROJECTCO1) LTD,Asset & Investment Partnership Management,Director of Place,Free School Meal Costs,,12/08/2015," 8,318.90 ",,"Works - Construction, Repair & Maintenance"
5207274,INSPIREDSPACES TAMESIDE(PROJECTCO1) LTD,Asset & Investment Partnership Management,Director of Place,Professional Services,,12/08/2015," 10,745.85 ",,"Works - Construction, Repair & Maintenance"
5207274,INSPIREDSPACES TAMESIDE(PROJECTCO1) LTD,Asset & Investment Partnership Management,Director of Place,Unitary Charge Payments,,12/08/2015," 496,142.92 ",,"Works - Construction, Repair & Maintenance"
5207274,INSPIREDSPACES TAMESIDE(PROJECTCO1) LTD,Asset & Investment Partnership Management,Director of Place,Utilities,,12/08/2015," 30,618.05 ",,"Works - Construction, Repair & Maintenance"
5207275,INSPIREDSPACES TAMESIDE (PROJECTCO2) LTD,Asset & Investment Partnership Management,Director of Place,Free School Meal Costs,,12/08/2015," 18,290.10 ",,"Works - Construction, Repair & Maintenance"
5207275,INSPIREDSPACES TAMESIDE (PROJECTCO2) LTD,Asset & Investment Partnership Management,Director of Place,Professional Services,,12/08/2015," 3,162.51 ",,"Works - Construction, Repair & Maintenance"
5207275,INSPIREDSPACES TAMESIDE (PROJECTCO2) LTD,Asset & Investment Partnership Management,Director of Place,Refreshments,,12/08/2015," 2,353.20 ",,"Works - Construction, Repair & Maintenance"
5207275,INSPIREDSPACES TAMESIDE (PROJECTCO2) LTD,Asset & Investment Partnership Management,Director of Place,Unitary Charge Payments,,12/08/2015," 815,136.94 ",,"Works - Construction, Repair & Maintenance"
5207275,INSPIREDSPACES TAMESIDE (PROJECTCO2) LTD,Asset & Investment Partnership Management,Director of Place,Utilities,,12/08/2015," 49,186.25 ",,"Works - Construction, Repair & Maintenance"
5207548,CARE UK HOMECARE,Adult Social Care,Director of People,Homecare Fees,,12/08/2015," 5,309.16 ",,Social Community Care Supplies & Services
5207798,DENTON LINKS,Education,Director of People,Transport Of Ola Pupils,,12/08/2015," 1,955.00 ",,Transport
5207796,DENTON LINKS,Education,Director of People,Transport Of Ola Pupils,,12/08/2015," 1,650.00 ",,Transport
5207793,DENTON LINKS,Education,Director of People,Transport Of Ola Pupils,,12/08/2015," 1,650.00 ",,Transport
5207830,DENTON LINKS,Education,Director of People,Transport Of Ola Pupils,,12/08/2015," 2,530.00 ",,Transport
5207752,DENTON LINKS,Education,Director of People,Transport Of Ola Pupils,,12/08/2015," 1,275.00 ",,Transport
5207795,DENTON LINKS,Education,Director of People,Transport Of Ola Pupils,,12/08/2015," 3,674.00 ",,Transport
5207794,DENTON LINKS,Education,Director of People,Transport Of Ola Pupils,,12/08/2015," 3,674.00 ",,Transport
5207792,DENTON LINKS,Education,Director of People,Transport Of Ola Pupils,,12/08/2015," 2,171.00 ",,Transport
5207831,MOSSLEY PRIVATE HIRE,Environmental Services,Director of Place,Hired Transport,,12/08/2015," 1,357.00 ",,Transport
5207837,MOSSLEY PRIVATE HIRE,Education,Director of People,Transport Of Pupils,,12/08/2015," 1,625.00 ",,Transport
5207843,MOSSLEY PRIVATE HIRE,Education,Director of People,Transport Of Pupils,,12/08/2015," 1,800.00 ",,Transport
5207845,MOSSLEY PRIVATE HIRE,Environmental Services,Director of Place,Hired Transport,,12/08/2015," 1,528.00 ",,Transport
5207833,DAVID CROZIER,Education,Director of People,Transport Of Pupils,Business Payment,12/08/2015, 988.00 ,,Unclassifiable
5207835,DAVID CROZIER,Education,Director of People,Transport Of Pupils,Business Payment,12/08/2015, 858.00 ,,Unclassifiable
5207933,STOCKPORT NHS FOUNDATION TRUST,Childrens Services,Director of People,Homecare Fees,,12/08/2015," 2,356.00 ",,Medical
5207848,LIME TRAVEL,Environmental Services,Director of Place,Hired Transport,,12/08/2015, 960.00 ,,Human Resources
5207849,LIME TRAVEL,Strategy & Early Intervention,Director of People,Hired Transport,,12/08/2015," 1,891.50 ",,Human Resources
5207743,LIME TRAVEL,Education,Director of People,Transport Of Pupils,,12/08/2015," 1,046.50 ",,Human Resources
5207846,LIME TRAVEL,Education,Director of People,Transport Of Pupils,,12/08/2015," 1,183.00 ",,Human Resources
5207847,LIME TRAVEL,Education,Director of People,Transport Of Pupils,,12/08/2015," 1,638.00 ",,Human Resources
5207746,LIME TRAVEL,Education,Director of People,Transport Of Ola Pupils,,12/08/2015," 1,643.50 ",,Human Resources
5207758,COMFORT CALL LIMITED,Adult Social Care,Director of People,Homecare Fees,,12/08/2015," 35,906.43 ",,Medical
5207740,PARKLANE,Environmental Services,Director of Place,Hired Transport,,12/08/2015," 2,208.00 ",,Transport
5207874,PARKLANE,Environmental Services,Director of Place,Hired Transport,,12/08/2015," 1,821.60 ",,Transport
5207934,DEFENSIVE DRIVER TRAINING LTD,Environmental Services,Director of Place,Training Course Costs,,12/08/2015," 2,000.00 ",,Human Resources
5207936,11KBW LIMITED,Engineers Client,Director of Place,Legal Fees,,12/08/2015," 5,550.00 ",,Legal Services
5207603, ,Stronger Communities,Director of People,Other Accomodation Related Costs,Redacted Supplier,12/08/2015, 500.00 ,,Unclassifiable
5207601,COMMUNITY AND VOLUNTARY ACTION TAMESIDE,Adults Early Intervention,Director of People,Refreshments,,12/08/2015," 7,500.00 ",,Financial Services
5207961,TAMESIDE VENDING & CATERING SUPPLIES LTD,Adult Social Care,Director of People,Refreshments,,12/08/2015, 501.00 ,,Consultancy
5205857,PLACEFIRST LTD,Engineers Client,Director of Place,Professional Services,,12/08/2015, 750.00 ,,Public Bodies
5207964,MRL HEALTHCARE LIMITED,Adult Social Care,Director of People,Homecare Fees,,12/08/2015," 19,215.00 ",,Social Community Care Supplies & Services
